Organisation Name,Organisation Code,Effective Date,Directorate,Service Category,Service Category URI,Supplier Name,Payment Date,Transaction Number,Net Amount,Irrecoverable VAT,Purpose_of_the_expenditure,Merchant Category,DELETE FIELD,
Wyre Council,http://opendatacommunities.org/doc/district-council/wyre,30/08/2022,Resources,Planning and Development Servs,132C,Daisy Communications LTD,03/08/2022,RS142976,37.97,0.00,Monthly Charges,Advertising - General,46100,
Wyre Council,http://opendatacommunities.org/doc/district-council/wyre,30/08/2022,People and Places,Cultural and Related Services,132A,We Design Maps,15/08/2022,PE143304,625.00,0.00,"Advert on Fleetwood Map for Discover Wyre, Rossall Point Tower and Wyre Great Outdoors",Advertising - General,46100,
Wyre Council,http://opendatacommunities.org/doc/district-council/wyre,30/08/2022,People and Places,Cultural and Related Services,132A,Be Inspired,10/08/2022,PE143250,325.00,0.00,Full page advert for Wyre Theatres - Food Festival,Advertising - General,46100,
Wyre Council,http://opendatacommunities.org/doc/district-council/wyre,30/08/2022,People and Places,Planning and Development Servs,132C,National World Publishing Ltd,02/08/2022,PE143020,432.00,0.00,Public notice for Garstang courier and Blackpool Gazette Wednesday 27.07.22,Advertising - Statutory Notices,46103,
Wyre Council,http://opendatacommunities.org/doc/district-council/wyre,30/08/2022,People and Places,Planning and Development Servs,132C,National World Publishing Ltd,30/08/2022,PE143584,648.00,0.00,Public notice for Garstang Courier and Blackpool Gazette 17/08/22,Advertising - Statutory Notices,46103,
Wyre Council,http://opendatacommunities.org/doc/district-council/wyre,30/08/2022,People and Places,Planning and Development Servs,132C,National World Publishing Ltd,30/08/2022,PE143585,133.20,0.00,Public notice for Fleetwood Weekly News 17/08/22,Advertising - Statutory Notices,46103,
Wyre Council,http://opendatacommunities.org/doc/district-council/wyre,30/08/2022,People and Places,Support Services,135B,M J Wilkinson,30/08/2022,PE143404,211.20,0.00,Hire of Labour only timesheet 10767  23/5/22 to 24/5/22 @ 211.20,Agency Staff,13000,
Wyre Council,http://opendatacommunities.org/doc/district-council/wyre,30/08/2022,People and Places,Support Services,135B,M J Wilkinson,17/08/2022,PE143398,211.20,0.00,Hire of labour only time sheet 1076511/5/22 to 12/5/22 @ 211.20,Agency Staff,13000,
Wyre Council,http://opendatacommunities.org/doc/district-council/wyre,30/08/2022,People and Places,Support Services,135B,M J Wilkinson,17/08/2022,PE143399,528.00,0.00,Hire of labour only timesheet 10766 16/5/22 to 20/5/22@ 528.00,Agency Staff,13000,
Wyre Council,http://opendatacommunities.org/doc/district-council/wyre,30/08/2022,People and Places,Support Services,135B,M J Wilkinson,17/08/2022,PE143402,488.40,0.00,Hire of labour only 27/6/22 to 1/7/22 @ 488.40,Agency Staff,13000,
Wyre Council,http://opendatacommunities.org/doc/district-council/wyre,30/08/2022,Resources,Support Services,135B,BUTLER ROSE,15/08/2022,RS142472,1909.05,0.00,Interim Accountant Support ,Agency Staff,13000,
Wyre Council,http://opendatacommunities.org/doc/district-council/wyre,30/08/2022,Resources,Support Services,135B,BUTLER ROSE,03/08/2022,RS143079,1909.05,0.00,Interim Accountant Support ,Agency Staff,13000,
Wyre Council,http://opendatacommunities.org/doc/district-council/wyre,30/08/2022,Resources,Support Services,135B,BUTLER ROSE,03/08/2022,RS142916,1909.05,0.00,Interim Accountant Support ,Agency Staff,13000,
Wyre Council,http://opendatacommunities.org/doc/district-council/wyre,30/08/2022,Resources,Support Services,135B,BUTLER ROSE,03/08/2022,RS142862,1909.05,0.00,Interim Accountant Support ,Agency Staff,13000,
Wyre Council,http://opendatacommunities.org/doc/district-council/wyre,30/08/2022,Resources,Support Services,135B,BUTLER ROSE,03/08/2022,RS142808,1909.05,0.00,Interim Accountant Support ,Agency Staff,13000,
Wyre Council,http://opendatacommunities.org/doc/district-council/wyre,30/08/2022,People and Places,Cultural and Related Services,132A,LINK SECURITY SERVICES NW LTD,15/08/2022,PE143347,253.12,0.00,Marine Hall agency staff,Agency Staff,13000,
Wyre Council,http://opendatacommunities.org/doc/district-council/wyre,30/08/2022,People and Places,Cultural and Related Services,132A,LINK SECURITY SERVICES NW LTD,15/08/2022,PE143342,243.00,0.00,Marine Hall agency staff,Agency Staff,13000,
Wyre Council,http://opendatacommunities.org/doc/district-council/wyre,30/08/2022,Resources,Housing General Fund,134A,G2V Recruitment Group Ltd T/A G2 Recruitment Solu,09/08/2022,RS143208,-1231.65,0.00,Internal credit to cancel RS141884 which was paid without VAT,Agency Staff,13000,
Wyre Council,http://opendatacommunities.org/doc/district-council/wyre,30/08/2022,Resources,Housing General Fund,134A,Park Avenue Recruitment Ltd,09/08/2022,RS143241,1444.56,0.00,"work hours, invoice 19071.",Agency Staff,13000,
Wyre Council,http://opendatacommunities.org/doc/district-council/wyre,30/08/2022,Resources,Support Services,135B,Park Avenue Recruitment Ltd,08/08/2022,RS143209,1787.50,0.00,Appointment of an interim Estates Surveyor,Agency Staff,13000,
Wyre Council,http://opendatacommunities.org/doc/district-council/wyre,30/08/2022,Resources,Housing General Fund,134A,Park Avenue Recruitment Ltd,18/08/2022,RS143417,1451.97,0.00,14-08-22. Invoice 19451,Agency Staff,13000,
Wyre Council,http://opendatacommunities.org/doc/district-council/wyre,30/08/2022,People and Places,Cultural and Related Services,132A,Quantum Staffing Solutions Ltd,23/08/2022,PE143458,623.72,0.00,Marine Hall agency staff,Agency Staff,13000,
Wyre Council,http://opendatacommunities.org/doc/district-council/wyre,30/08/2022,Resources,Support Services,135B,Daisy Communications LTD,03/08/2022,RS142976,9.48,0.00,Monthly Charges,Alarm Systems and Security - Annual,25201,
Wyre Council,http://opendatacommunities.org/doc/district-council/wyre,30/08/2022,People and Places,Cultural and Related Services,132A,M D Security,15/08/2022,PE141725,290.00,0.00,Monitoring of fire and security alarm at mount pavilion,Alarm Systems and Security - Annual,25201,
Wyre Council,http://opendatacommunities.org/doc/district-council/wyre,30/08/2022,Resources,Cultural and Related Services,132A,M D Security,15/08/2022,RS141723,160.00,0.00,Maintenance of security alarm system for mount pavilion,Alarm Systems and Security - Annual,25201,
Wyre Council,http://opendatacommunities.org/doc/district-council/wyre,30/08/2022,People and Places,Cultural and Related Services,132A,M D Security,30/08/2022,PE143482,49.00,0.00,Found fault on emergency telephone  at Riverside Room,Alarm Systems and Security - Responsive,25203,
Wyre Council,http://opendatacommunities.org/doc/district-council/wyre,30/08/2022,Resources,Planning and Development Servs,132C,M D Security,18/08/2022,RS143280,125.00,0.00,Copse Road. Shutter contact replaced,Alarm Systems and Security - Responsive,25203,
Wyre Council,http://opendatacommunities.org/doc/district-council/wyre,30/08/2022,Resources,Planning and Development Servs,132C,M D Security,03/08/2022,RS143135,101.00,0.00,Copse Road BAtteries check and replaced,Alarm Systems and Security - Responsive,25203,
Wyre Council,http://opendatacommunities.org/doc/district-council/wyre,30/08/2022,Resources,Cultural and Related Services,132A,M D Security,02/08/2022,RS142958,59.00,0.00,Call Out to Mount Pavilion,Alarm Systems and Security - Responsive,25203,
Wyre Council,http://opendatacommunities.org/doc/district-council/wyre,30/08/2022,People and Places,Cultural and Related Services,132A,Andrew Signs LTD,18/08/2022,PE143411,437.50,0.00,various notices about rec disturbance,Amenity and Information Signs,40400,
Wyre Council,http://opendatacommunities.org/doc/district-council/wyre,30/08/2022,Resources,Corporate and Democratic Core,131A,PR Chauffeuring Services,30/08/2022,RS143611,1353.00,0.00,Payment for July 2022 Chauffeuring Services.,Attendant Chauffeur Service,44402,
Wyre Council,http://opendatacommunities.org/doc/district-council/wyre,30/08/2022,Finance,Corporate and Democratic Core,131A,NATWEST BANK,09/08/2022,WPST00067463,1010.01,0.00,NATWEST BANK CHARGES,Bank Charges,46008,
Wyre Council,http://opendatacommunities.org/doc/district-council/wyre,30/08/2022,Resources,Central Services to the Public,131C,Post Office Limited,31/08/2022,RS143568,59.00,0.00,Payout Scheme 065 01/07/22-31/07/22,Bank Charges,46008,
Wyre Council,http://opendatacommunities.org/doc/district-council/wyre,30/08/2022,People and Places,Environmental Services,132B,Nicholaus Cardwell Building & Maintenance,09/08/2022,PE143226,580.00,0.00,For the removal and disposal of waste materials and any other contaminated items from 2 Flakefleet Avenue Fleetwood,Boarding Up Premises/House Clearance,27018,
Wyre Council,http://opendatacommunities.org/doc/district-council/wyre,30/08/2022,Resources,Support Services,135B,NSL Services Group,09/08/2022,RS143244,156.37,0.00,Variable Car Park Fee,Cash Collection Security Service,42504,
Wyre Council,http://opendatacommunities.org/doc/district-council/wyre,30/08/2022,Resources,Parking Services,133F,NSL Services Group,09/08/2022,RS143244,1798.26,0.00,Variable Car Park Fee,Cash Collection Security Service,42504,
Wyre Council,http://opendatacommunities.org/doc/district-council/wyre,30/08/2022,Resources,Planning and Development Servs,132C,NSL Services Group,09/08/2022,RS143244,156.37,0.00,Variable Car Park Fee,Cash Collection Security Service,42504,
Wyre Council,http://opendatacommunities.org/doc/district-council/wyre,30/08/2022,Resources,Cultural and Related Services,132A,NSL Services Group,09/08/2022,RS143244,78.19,0.00,Variable Car Park Fee,Cash Collection Security Service,42504,
Wyre Council,http://opendatacommunities.org/doc/district-council/wyre,30/08/2022,Finance,Cultural and Related Services,132A,,03/08/2022,WPST00066367,1932.75,0.00,puganinis 21/7,Catering,41100,
Wyre Council,http://opendatacommunities.org/doc/district-council/wyre,30/08/2022,People and Places,Cultural and Related Services,132A,Twelve Event Management LTD,24/08/2022,PE143534,2998.79,0.00,Catering - Wedding at Marine Hall 27/8/22,Catering,41100,
Wyre Council,http://opendatacommunities.org/doc/district-council/wyre,30/08/2022,People and Places,Planning and Development Servs,132C,M D Security,18/08/2022,PE143413,890.00,0.00,TO SUPPLY AND INSTALL AS PER ESTIMATE 658   2 X EXTERNAL GJC PIRS FOR COPSE ROAD DEPO DUE TO FAILED UNITS 890.00 PLUS 20%,CCTV Running Costs,46831,
Wyre Council,http://opendatacommunities.org/doc/district-council/wyre,30/08/2022,People and Places,Cultural and Related Services,132A,Key Engineering & Hygiene Supplies LTD,30/08/2022,PE143369,5.21,0.00,WASHING UP LIQUID 5 LTR,Cleaning Materials,40501,
Wyre Council,http://opendatacommunities.org/doc/district-council/wyre,30/08/2022,People and Places,Cultural and Related Services,132A,Key Engineering & Hygiene Supplies LTD,30/08/2022,PE143369,24.70,0.00,ENSURE ALCOHOL SANITISER 750ML,Cleaning Materials,40501,
Wyre Council,http://opendatacommunities.org/doc/district-council/wyre,30/08/2022,People and Places,Cultural and Related Services,132A,Key Engineering & Hygiene Supplies LTD,30/08/2022,PE143369,42.66,0.00,GREEN 1 PLY INTER-FOLD HAND TOWEL 250L X 190W 3600 SHEETS,Cleaning Materials,40501,
Wyre Council,http://opendatacommunities.org/doc/district-council/wyre,30/08/2022,People and Places,Cultural and Related Services,132A,Key Engineering & Hygiene Supplies LTD,30/08/2022,PE143369,83.52,0.00,EXTRA STRONG BLACK REFUSE SACK 18X29X39 180G 90LTR (PER 200),Cleaning Materials,40501,
Wyre Council,http://opendatacommunities.org/doc/district-council/wyre,30/08/2022,People and Places,Cultural and Related Services,132A,Key Engineering & Hygiene Supplies LTD,30/08/2022,PE143369,30.36,0.00,2PLY WHITE TOILET ROLLS 320SHEETS 36PER CASE,Cleaning Materials,40501,
Wyre Council,http://opendatacommunities.org/doc/district-council/wyre,30/08/2022,People and Places,Planning and Development Servs,132C,Key Engineering & Hygiene Supplies LTD,24/08/2022,PE143357,61.20,0.00,EXTRA STRONG BLACK REFUSE SACK 18X29X39 180G 90LTR (PER 200),Cleaning Materials,40501,
Wyre Council,http://opendatacommunities.org/doc/district-council/wyre,30/08/2022,People and Places,Planning and Development Servs,132C,Key Engineering & Hygiene Supplies LTD,24/08/2022,PE143357,42.55,0.00,LUX PEARL HAND/BODY SOAP 5 LTR,Cleaning Materials,40501,
Wyre Council,http://opendatacommunities.org/doc/district-council/wyre,30/08/2022,People and Places,Planning and Development Servs,132C,Key Engineering & Hygiene Supplies LTD,24/08/2022,PE143357,18.05,0.00,DISINFECTANT PINE,Cleaning Materials,40501,
Wyre Council,http://opendatacommunities.org/doc/district-council/wyre,30/08/2022,People and Places,Planning and Development Servs,132C,Key Engineering & Hygiene Supplies LTD,24/08/2022,PE143357,39.04,0.00,LOW FOAM CLEANER HEAVY,Cleaning Materials,40501,
Wyre Council,http://opendatacommunities.org/doc/district-council/wyre,30/08/2022,People and Places,Planning and Development Servs,132C,Key Engineering & Hygiene Supplies LTD,24/08/2022,PE143357,14.10,0.00,FRESH AIR + FABRIC AEROSOL 400ML,Cleaning Materials,40501,
Wyre Council,http://opendatacommunities.org/doc/district-council/wyre,30/08/2022,People and Places,Planning and Development Servs,132C,Key Engineering & Hygiene Supplies LTD,24/08/2022,PE143357,126.20,0.00,2PLY WHITE JUMBO TOILET ROLL,Cleaning Materials,40501,
Wyre Council,http://opendatacommunities.org/doc/district-council/wyre,30/08/2022,People and Places,Planning and Development Servs,132C,Key Engineering & Hygiene Supplies LTD,24/08/2022,PE143357,22.05,0.00,BLUE VINYL DISPOSB GLOVES POWDERED MEDIUM PER100 BLUE,Cleaning Materials,40501,
Wyre Council,http://opendatacommunities.org/doc/district-council/wyre,30/08/2022,People and Places,Planning and Development Servs,132C,Key Engineering & Hygiene Supplies LTD,24/08/2022,PE143357,85.40,0.00,GREEN 1 PLY INTER-FOLD HAND TOWEL 250L X 190W 3600 SHEETS,Cleaning Materials,40501,
Wyre Council,http://opendatacommunities.org/doc/district-council/wyre,30/08/2022,People and Places,Support Services,135B,Key Engineering & Hygiene Supplies LTD,30/08/2022,PE143111,30.64,0.00,BLUE CENTREFEED ROLLS 144M x 195MM PACK OF SIX,Cleaning Materials,40501,
Wyre Council,http://opendatacommunities.org/doc/district-council/wyre,30/08/2022,People and Places,Support Services,135B,Key Engineering & Hygiene Supplies LTD,30/08/2022,PE143111,32.64,0.00,EVANS CYCLONE EXTRA THICK BLEACH 750ML,Cleaning Materials,40501,
Wyre Council,http://opendatacommunities.org/doc/district-council/wyre,30/08/2022,People and Places,Support Services,135B,Key Engineering & Hygiene Supplies LTD,30/08/2022,PE143111,16.02,0.00,LIQUID SPRAY POLISH 750ML TRIGGER SPRAY,Cleaning Materials,40501,
Wyre Council,http://opendatacommunities.org/doc/district-council/wyre,30/08/2022,People and Places,Support Services,135B,Key Engineering & Hygiene Supplies LTD,30/08/2022,PE143111,169.20,0.00,BLUE INTERFOLD HAND TOWELS 3600 SHEETS,Cleaning Materials,40501,
Wyre Council,http://opendatacommunities.org/doc/district-council/wyre,30/08/2022,People and Places,Support Services,135B,Key Engineering & Hygiene Supplies LTD,30/08/2022,PE143111,28.80,0.00,EAU-FRESH NON ACIDIC POT POURRI TOILET CLEANER/ 1 litre,Cleaning Materials,40501,
Wyre Council,http://opendatacommunities.org/doc/district-council/wyre,30/08/2022,People and Places,Support Services,135B,Key Engineering & Hygiene Supplies LTD,30/08/2022,PE143111,31.53,0.00,HERON MEDIUM BLACK REFUSE SACK 18X29X33 100G (200),Cleaning Materials,40501,
Wyre Council,http://opendatacommunities.org/doc/district-council/wyre,30/08/2022,People and Places,Support Services,135B,Key Engineering & Hygiene Supplies LTD,30/08/2022,PE143111,136.08,0.00,3 PLY WHITE TOILET ROLLS (40 PACK),Cleaning Materials,40501,
Wyre Council,http://opendatacommunities.org/doc/district-council/wyre,30/08/2022,People and Places,Support Services,135B,Key Engineering & Hygiene Supplies LTD,30/08/2022,PE143111,3.61,0.00,KEYPINE PINE DISINFECTANT 5 LITRE,Cleaning Materials,40501,
Wyre Council,http://opendatacommunities.org/doc/district-council/wyre,30/08/2022,People and Places,Support Services,135B,Key Engineering & Hygiene Supplies LTD,30/08/2022,PE143111,5.21,0.00,KIND DETERGENT 5 LITRE,Cleaning Materials,40501,
Wyre Council,http://opendatacommunities.org/doc/district-council/wyre,30/08/2022,People and Places,Support Services,135B,Key Engineering & Hygiene Supplies LTD,30/08/2022,PE143111,12.02,0.00,VERSATILE HARD SURFACE CLEANER 5 LITRE,Cleaning Materials,40501,
Wyre Council,http://opendatacommunities.org/doc/district-council/wyre,30/08/2022,People and Places,Support Services,135B,Key Engineering & Hygiene Supplies LTD,30/08/2022,PE143111,7.23,0.00,EVANS FOAMING LEMON SOAP,Cleaning Materials,40501,
Wyre Council,http://opendatacommunities.org/doc/district-council/wyre,30/08/2022,People and Places,Support Services,135B,Key Engineering & Hygiene Supplies LTD,30/08/2022,PE143111,38.32,0.00,BRASSO LIQUID TINS,Cleaning Materials,40501,
Wyre Council,http://opendatacommunities.org/doc/district-council/wyre,30/08/2022,People and Places,Support Services,135B,Key Engineering & Hygiene Supplies LTD,30/08/2022,PE143111,16.40,0.00,LARGE TOWEL DISPENSER,Cleaning Materials,40501,
Wyre Council,http://opendatacommunities.org/doc/district-council/wyre,30/08/2022,People and Places,Support Services,135B,Key Engineering & Hygiene Supplies LTD,30/08/2022,PE143111,18.68,0.00,BLUE NITRILE POWDER FREE GLOVES MEDIUM,Cleaning Materials,40501,
Wyre Council,http://opendatacommunities.org/doc/district-council/wyre,30/08/2022,Resources,Support Services,135B,Key Engineering & Hygiene Supplies LTD,22/08/2022,RS140799,10.22,0.00,KIND DETERGENT 5 LITRE,Cleaning Materials,40501,
Wyre Council,http://opendatacommunities.org/doc/district-council/wyre,30/08/2022,Resources,Support Services,135B,Key Engineering & Hygiene Supplies LTD,22/08/2022,RS140799,10.80,0.00,VERSATILE HARD SURFACE CLEANER 5 LITRE,Cleaning Materials,40501,
Wyre Council,http://opendatacommunities.org/doc/district-council/wyre,30/08/2022,Resources,Support Services,135B,Key Engineering & Hygiene Supplies LTD,22/08/2022,RS140799,18.84,0.00,EAUFRESH NON ACIDIC POT POURRI TOILET CLEANER 1 LTR,Cleaning Materials,40501,
Wyre Council,http://opendatacommunities.org/doc/district-council/wyre,30/08/2022,Resources,Support Services,135B,Key Engineering & Hygiene Supplies LTD,22/08/2022,RS140799,32.64,0.00,THICKENED BLEACH 750ML,Cleaning Materials,40501,
Wyre Council,http://opendatacommunities.org/doc/district-council/wyre,30/08/2022,Resources,Support Services,135B,Key Engineering & Hygiene Supplies LTD,22/08/2022,RS140799,111.10,0.00,WHITE 2PLY LUXURY TOILET ROLL 320 40 PER PACK,Cleaning Materials,40501,
Wyre Council,http://opendatacommunities.org/doc/district-council/wyre,30/08/2022,Resources,Support Services,135B,Key Engineering & Hygiene Supplies LTD,22/08/2022,RS140799,5.11,0.00,WASHING UP LIQUID 5 LTR,Cleaning Materials,40501,
Wyre Council,http://opendatacommunities.org/doc/district-council/wyre,30/08/2022,Resources,Support Services,135B,Key Engineering & Hygiene Supplies LTD,22/08/2022,RS140799,138.64,0.00,1 PLY BLUE INTERFOLD 3600 SHEETS,Cleaning Materials,40501,
Wyre Council,http://opendatacommunities.org/doc/district-council/wyre,30/08/2022,Resources,Support Services,135B,Key Engineering & Hygiene Supplies LTD,22/08/2022,RS140799,20.60,0.00,MEDIUM BLACK REFUSE SACK 18X29X34 100G,Cleaning Materials,40501,
Wyre Council,http://opendatacommunities.org/doc/district-council/wyre,30/08/2022,Resources,Support Services,135B,Key Engineering & Hygiene Supplies LTD,22/08/2022,RS140799,4.90,0.00,20 X 15 BLEACHED DISH CLOTHS EA,Cleaning Materials,40501,
Wyre Council,http://opendatacommunities.org/doc/district-council/wyre,30/08/2022,Resources,Support Services,135B,Key Engineering & Hygiene Supplies LTD,22/08/2022,RS140799,10.80,0.00,FLORATILE GENERAL PURPOSE  CLEANER 5 LTR,Cleaning Materials,40501,
Wyre Council,http://opendatacommunities.org/doc/district-council/wyre,30/08/2022,Resources,Support Services,135B,Key Engineering & Hygiene Supplies LTD,22/08/2022,RS140799,13.62,0.00,EVANS FOAMING LEMON SOAP,Cleaning Materials,40501,
Wyre Council,http://opendatacommunities.org/doc/district-council/wyre,30/08/2022,Resources,Support Services,135B,Key Engineering & Hygiene Supplies LTD,22/08/2022,RS140799,7.38,0.00,SAFE ZONE PLUS VIRUCIDAL DISINFECTANT 5 LITRE,Cleaning Materials,40501,
Wyre Council,http://opendatacommunities.org/doc/district-council/wyre,30/08/2022,Resources,Support Services,135B,Key Engineering & Hygiene Supplies LTD,22/08/2022,RS140799,27.86,0.00,BLUE 2 ply centrefeed roll 144M x 195mm 400 sheets,Cleaning Materials,40501,
Wyre Council,http://opendatacommunities.org/doc/district-council/wyre,30/08/2022,Resources,Support Services,135B,Key Engineering & Hygiene Supplies LTD,22/08/2022,RS140799,3.50,0.00,Red colour coded dishcloths,Cleaning Materials,40501,
Wyre Council,http://opendatacommunities.org/doc/district-council/wyre,30/08/2022,Resources,Support Services,135B,Key Engineering & Hygiene Supplies LTD,01/08/2022,RS141351,52.34,0.00,AZURE FOAM WASH SOAP 1 LITRE CARTRIDGE,Cleaning Materials,40501,
Wyre Council,http://opendatacommunities.org/doc/district-council/wyre,30/08/2022,Resources,Support Services,135B,Key Engineering & Hygiene Supplies LTD,01/08/2022,RS141351,16.32,0.00,EVANS CYCLONE EXTRA THICK BLEACH 750ML,Cleaning Materials,40501,
Wyre Council,http://opendatacommunities.org/doc/district-council/wyre,30/08/2022,Resources,Support Services,135B,Key Engineering & Hygiene Supplies LTD,01/08/2022,RS141351,126.90,0.00,Blue Interfold Hand Towels 3600 Sheets,Cleaning Materials,40501,
Wyre Council,http://opendatacommunities.org/doc/district-council/wyre,30/08/2022,Resources,Support Services,135B,Key Engineering & Hygiene Supplies LTD,01/08/2022,RS141351,9.42,0.00,EAU-FRESH NON ACIDIC POT POURRI TOILET CLEANER/ 1 litre,Cleaning Materials,40501,
Wyre Council,http://opendatacommunities.org/doc/district-council/wyre,30/08/2022,Resources,Support Services,135B,Key Engineering & Hygiene Supplies LTD,01/08/2022,RS141351,5.11,0.00,KIND DETERGENT 5 LITRE,Cleaning Materials,40501,
Wyre Council,http://opendatacommunities.org/doc/district-council/wyre,30/08/2022,Resources,Support Services,135B,Key Engineering & Hygiene Supplies LTD,01/08/2022,RS141351,88.88,0.00,WHITE 2PLY LUXURY TOILET ROLL 320 40 PER PACK,Cleaning Materials,40501,
Wyre Council,http://opendatacommunities.org/doc/district-council/wyre,30/08/2022,Resources,Support Services,135B,Key Engineering & Hygiene Supplies LTD,01/08/2022,RS141351,12.42,0.00,CLEAR WINDOW CLEANER 750ML,Cleaning Materials,40501,
Wyre Council,http://opendatacommunities.org/doc/district-council/wyre,30/08/2022,Resources,Support Services,135B,Key Engineering & Hygiene Supplies LTD,22/08/2022,RS143359,16.32,0.00,EVANS CYCLONE EXTRA THICK BLEACH 750ML,Cleaning Materials,40501,
Wyre Council,http://opendatacommunities.org/doc/district-council/wyre,30/08/2022,Resources,Support Services,135B,Key Engineering & Hygiene Supplies LTD,22/08/2022,RS143359,3.61,0.00,KEYPINE PINE DISINFECTANT 5 LITRE,Cleaning Materials,40501,
Wyre Council,http://opendatacommunities.org/doc/district-council/wyre,30/08/2022,Resources,Support Services,135B,Key Engineering & Hygiene Supplies LTD,22/08/2022,RS143359,169.20,0.00,BLUE INTERFOLD HAND TOWELS 3600 SHEETS,Cleaning Materials,40501,
Wyre Council,http://opendatacommunities.org/doc/district-council/wyre,30/08/2022,Resources,Support Services,135B,Key Engineering & Hygiene Supplies LTD,22/08/2022,RS143359,10.51,0.00,REGULAR BLACK SACKS 18X29X38,Cleaning Materials,40501,
Wyre Council,http://opendatacommunities.org/doc/district-council/wyre,30/08/2022,Resources,Support Services,135B,Key Engineering & Hygiene Supplies LTD,22/08/2022,RS143359,7.23,0.00,EVANS FOAMING LEMON SOAP,Cleaning Materials,40501,
Wyre Council,http://opendatacommunities.org/doc/district-council/wyre,30/08/2022,Resources,Support Services,135B,Key Engineering & Hygiene Supplies LTD,22/08/2022,RS143359,10.00,0.00,20 x 15 Bleached Dishcloths,Cleaning Materials,40501,
Wyre Council,http://opendatacommunities.org/doc/district-council/wyre,30/08/2022,Resources,Support Services,135B,Key Engineering & Hygiene Supplies LTD,22/08/2022,RS143359,102.06,0.00,3 PLY WHITE TOILET ROLLS (40 PACK),Cleaning Materials,40501,
Wyre Council,http://opendatacommunities.org/doc/district-council/wyre,30/08/2022,Resources,Support Services,135B,Key Engineering & Hygiene Supplies LTD,22/08/2022,RS143359,32.64,0.00,EVANS CYCLONE EXTRA THICK BLEACH 750ML,Cleaning Materials,40501,
Wyre Council,http://opendatacommunities.org/doc/district-council/wyre,30/08/2022,Resources,Support Services,135B,Key Engineering & Hygiene Supplies LTD,22/08/2022,RS143359,5.21,0.00,KIND DETERGENT 5 LITRE,Cleaning Materials,40501,
Wyre Council,http://opendatacommunities.org/doc/district-council/wyre,30/08/2022,Resources,Support Services,135B,Key Engineering & Hygiene Supplies LTD,22/08/2022,RS143359,15.06,0.00,SAFE ZONE PLUS VIRUCIDAL DISINFECTANT 5 LITRE,Cleaning Materials,40501,
Wyre Council,http://opendatacommunities.org/doc/district-council/wyre,30/08/2022,Resources,Support Services,135B,Key Engineering & Hygiene Supplies LTD,22/08/2022,RS143359,28.90,0.00,Small Paper Towel Dispenser,Cleaning Materials,40501,
Wyre Council,http://opendatacommunities.org/doc/district-council/wyre,30/08/2022,Resources,Support Services,135B,Key Engineering & Hygiene Supplies LTD,22/08/2022,RS143359,3.10,0.00,STANDARD YELLOW DUSTER 20 x 18,Cleaning Materials,40501,
Wyre Council,http://opendatacommunities.org/doc/district-council/wyre,30/08/2022,Resources,Support Services,135B,Key Engineering & Hygiene Supplies LTD,22/08/2022,RS143359,18.91,0.00,WHITE BIN LINERS,Cleaning Materials,40501,
Wyre Council,http://opendatacommunities.org/doc/district-council/wyre,30/08/2022,Resources,Support Services,135B,Key Engineering & Hygiene Supplies LTD,22/08/2022,RS143359,19.20,0.00,EAU-FRESH NON ACIDIC POT POURRI TOILET CLEANER/ 1 litre,Cleaning Materials,40501,
Wyre Council,http://opendatacommunities.org/doc/district-council/wyre,30/08/2022,Resources,Support Services,135B,Key Engineering & Hygiene Supplies LTD,22/08/2022,RS143359,8.96,0.00,ENSURE ALCOHOL BASED SANITISER 5 LITRE,Cleaning Materials,40501,
Wyre Council,http://opendatacommunities.org/doc/district-council/wyre,30/08/2022,Resources,Support Services,135B,Key Engineering & Hygiene Supplies LTD,22/08/2022,RS143359,7.22,0.00,KEYPINE PINE DISINFECTANT 5 LITRE,Cleaning Materials,40501,
Wyre Council,http://opendatacommunities.org/doc/district-council/wyre,30/08/2022,Resources,Support Services,135B,Key Engineering & Hygiene Supplies LTD,22/08/2022,RS143359,6.01,0.00,VERSATILE HARD SURFACE CLEANER 5 LITRE,Cleaning Materials,40501,
Wyre Council,http://opendatacommunities.org/doc/district-council/wyre,30/08/2022,Resources,Support Services,135B,Key Engineering & Hygiene Supplies LTD,22/08/2022,RS143359,3.60,0.00,RED STRIPE DISHCLOTH,Cleaning Materials,40501,
Wyre Council,http://opendatacommunities.org/doc/district-council/wyre,30/08/2022,Resources,Support Services,135B,Key Engineering & Hygiene Supplies LTD,22/08/2022,RS140799,28.26,0.00,EAUFRESH NON ACIDIC POT POURRI TOILET CLEANER 1 LTR,Cleaning Materials,40501,
Wyre Council,http://opendatacommunities.org/doc/district-council/wyre,30/08/2022,Resources,Support Services,135B,Key Engineering & Hygiene Supplies LTD,22/08/2022,RS140799,33.69,0.00,MEDIUM BLACK REFUSE SACK 18X29X34 100G,Cleaning Materials,40501,
Wyre Council,http://opendatacommunities.org/doc/district-council/wyre,30/08/2022,Resources,Support Services,135B,Key Engineering & Hygiene Supplies LTD,22/08/2022,RS140799,152.00,0.00,Blue Interfold Hand Towels 3600 Sheets,Cleaning Materials,40501,
Wyre Council,http://opendatacommunities.org/doc/district-council/wyre,30/08/2022,Resources,Support Services,135B,Key Engineering & Hygiene Supplies LTD,22/08/2022,RS140799,122.21,0.00,WHITE 2PLY LUXURY TOILET ROLL 320 40 PER PACK,Cleaning Materials,40501,
Wyre Council,http://opendatacommunities.org/doc/district-council/wyre,30/08/2022,Resources,Support Services,135B,Key Engineering & Hygiene Supplies LTD,22/08/2022,RS140799,6.81,0.00,EVANS FOAMING LEMON SOAP,Cleaning Materials,40501,
Wyre Council,http://opendatacommunities.org/doc/district-council/wyre,30/08/2022,Resources,Support Services,135B,Key Engineering & Hygiene Supplies LTD,22/08/2022,RS140799,14.76,0.00,SAFE PLZONE US VIRUCIDAL DISINFECTANT 5 LITRE,Cleaning Materials,40501,
Wyre Council,http://opendatacommunities.org/doc/district-council/wyre,30/08/2022,Resources,Support Services,135B,Key Engineering & Hygiene Supplies LTD,22/08/2022,RS140799,32.64,0.00,EVANS CYCLONE EXTRA THICK BLEACH 750ML,Cleaning Materials,40501,
Wyre Council,http://opendatacommunities.org/doc/district-council/wyre,30/08/2022,People and Places,Environmental Services,132B,Key Engineering & Hygiene Supplies LTD,22/08/2022,PE143099,191.60,0.00,"SUPPLY AND DELIVER QUOTATION 14740 5/7/22  DELIVERY TO WYRE COUNCIL, COPSE ROAD DEPOT, COPSE ROAD, FLEETWOOD, FY7 6RP",Cleaning Materials,40501,
Wyre Council,http://opendatacommunities.org/doc/district-council/wyre,30/08/2022,People and Places,Environmental Services,132B,Key Engineering & Hygiene Supplies LTD,30/08/2022,PE143356,495.05,0.00,"Supply PPE as per quotation 14112 As per John   Delivery to Wyre Council, Copse Road Depot, Copse Road, Fleetwood, FY7 6RP.",Community Payback Scheme,56007,
Wyre Council,http://opendatacommunities.org/doc/district-council/wyre,30/08/2022,People and Places,Environmental Services,132B,Key Engineering & Hygiene Supplies LTD,30/08/2022,PE143356,119.11,0.00,boots,Community Payback Scheme,56007,
Wyre Council,http://opendatacommunities.org/doc/district-council/wyre,30/08/2022,Resources,Support Services,135B,Coolspirit LTD,17/08/2022,RS143396,1456.09,0.00,"Quantum SuperLoader 3, Bronze Support Plan (5x9xND onsite), Uplift, 3 yr, Z1 1,456.09 1,456.09",Comp Hardware Purchases,43500,
Wyre Council,http://opendatacommunities.org/doc/district-council/wyre,30/08/2022,Resources,Support Services,135B,Coolspirit LTD,17/08/2022,RS143383,4018.85,0.00,"Quantum SuperLoader 3 with 8 Slots, 1x LTO-7 Drive and 3 Year Bronze 9x5xNBD Support Quantum SuperLoader 3, 1 LTO-7HH tape drive, Model C, 8 slots 6Gb/s SAS rackmt, barcode reader EMEA",Comp Hardware Purchases,43500,
Wyre Council,http://opendatacommunities.org/doc/district-council/wyre,30/08/2022,Resources,Support Services,135B,Coolspirit LTD,17/08/2022,RS143383,150.00,0.00,COOLSPIRiT Project Management Logisitics,Comp Hardware Purchases,43500,
Wyre Council,http://opendatacommunities.org/doc/district-council/wyre,30/08/2022,Resources,Support Services,135B,Coolspirit LTD,17/08/2022,RS143383,65.00,0.00,Carriage,Comp Hardware Purchases,43500,
Wyre Council,http://opendatacommunities.org/doc/district-council/wyre,30/08/2022,Resources,Support Services,135B,Amazon Business,03/08/2022,RS142586,98.40,0.00,"Logitech B100 Wired USB Mouse, 3-Buttons, Optical Tracking, Ambidextrous PC / Mac / Laptop - Black",Comp Hardware Purchases,43500,
Wyre Council,http://opendatacommunities.org/doc/district-council/wyre,30/08/2022,Resources,Support Services,135B,Amazon Business,03/08/2022,RS142499,46.64,0.00,NETGEAR 5 Port Gigabit Network Switch GS305 | Ethernet Switch | Ethernet Splitter | Plug-and-Play | Silent Operation | Desktop or Wall Mount,Comp Hardware Purchases,43500,
Wyre Council,http://opendatacommunities.org/doc/district-council/wyre,30/08/2022,Resources,Support Services,135B,Amazon Business,03/08/2022,RS142499,29.98,0.00,NETGEAR 8 Port Gigabit Network Switch GS308 | Ethernet Switch | Ethernet Splitter | Plug-and-Play | Silent Operation | Desktop or Wall Mount,Comp Hardware Purchases,43500,
Wyre Council,http://opendatacommunities.org/doc/district-council/wyre,30/08/2022,Resources,Support Services,135B,Amazon Business,03/08/2022,RS142297,85.12,0.00,"Logitech Z150 PC Speaker, Stereo Sound, 2 Speakers, 6 Watts Peak Power, 3.5mm Input, Right Speaker Controller, Headphone Jack, UK Plug, PC/TV/Mobile Phone/Tablet - Black",Comp Hardware Purchases,43500,
Wyre Council,http://opendatacommunities.org/doc/district-council/wyre,30/08/2022,Resources,Support Services,135B,Amazon Business,03/08/2022,RS142296,110.82,0.00,"Anker PowerConf S330 USB Conference Speaker for Home Office, Smart Voice Enhancement, Plug and Play, 360� Voice Coverage via 4 Microphones, and Powerful Sound.",Comp Hardware Purchases,43500,
Wyre Council,http://opendatacommunities.org/doc/district-council/wyre,30/08/2022,Resources,Support Services,135B,Amazon Business,08/08/2022,RS143196,28.87,0.00,Dell TB15/TB16 Docking Station Replacement Thunderbolt USB-C Cable,Comp Hardware Purchases,43500,
Wyre Council,http://opendatacommunities.org/doc/district-council/wyre,30/08/2022,Resources,Support Services,135B,Amazon Business,08/08/2022,RS143197,28.32,0.00,PIBEEX Extension Lead with USB Slots 13A 4 Way Plug Sockets with Individual Switches 2 USB Ports Extension Cord Mountable Power Strips with 2M extension cable 3250W,Comp Hardware Purchases,43500,
Wyre Council,http://opendatacommunities.org/doc/district-council/wyre,30/08/2022,Resources,Support Services,135B,Amazon Business,24/08/2022,RS143508,99.90,0.00,"Logitech B100 Wired USB Mouse, 3-Buttons, Optical Tracking, Ambidextrous PC / Mac / Laptop - Black.",Comp Hardware Purchases,43500,
Wyre Council,http://opendatacommunities.org/doc/district-council/wyre,30/08/2022,Resources,Support Services,135B,NSSE LTD,18/08/2022,RS143414,1200.00,0.00,Reference: N040 16 41709 GOLD Contract 1 year 24/7/365 emergency coverage 8-hour emergency response to site 1 x *Preventative Maintenance  Service visit in normal working  hours Technical updates 24/7/365 technical helpline,Computer Equipment Maintenance,43600,
Wyre Council,http://opendatacommunities.org/doc/district-council/wyre,30/08/2022,Resources,Support Services,135B,Amazon Business,24/08/2022,RS143538,3.32,0.00,"Mobile Stuff Samsung Galaxy A50 Screen Protector, [2 PACK] Tempered Glass [9H Hardness] [Bubble Free] [Case Friendly] Screen Protective Film For Galaxy A50 (2019).",Computer Stationery and Consumables,43501,
Wyre Council,http://opendatacommunities.org/doc/district-council/wyre,30/08/2022,Resources,Support Services,135B,Amazon Business,03/08/2022,RS142528,31.64,0.00,"ZoneFoker for Samsung Galaxy Tab A8 Case, 10.5 inch 2021 Galaxy Tablet A8 Case, Slim Heavy Duty Shockproof Rugged Protective Case with Kickstand for 10.5 SM-X200/X205/X207 for Man Kids (Black)",Computer Stationery and Consumables,43501,
Wyre Council,http://opendatacommunities.org/doc/district-council/wyre,30/08/2022,People and Places,Planning and Development Servs,132C,Kings Chambers,15/08/2022,PE142939,2362.50,0.00,Appeal advise for Land South of Blackpool Road - APP/U2370/W/21/3278191 LPA ref: 19/00615/OULMAJ,Consultants Fees,42612,
Wyre Council,http://opendatacommunities.org/doc/district-council/wyre,30/08/2022,People and Places,Planning and Development Servs,132C,Kings Chambers,11/08/2022,PE143273,450.00,0.00,Legal advice for the local plan,Consultants Fees,42612,
Wyre Council,http://opendatacommunities.org/doc/district-council/wyre,30/08/2022,Resources,Planning and Development Servs,132C,The Tom Lucas Partnership,09/08/2022,RS143232,300.00,0.00,Survey in respect of insurance rebuild costs re Project Neptune,Consultants Fees,42612,
Wyre Council,http://opendatacommunities.org/doc/district-council/wyre,30/08/2022,People and Places,Environmental Services,132B,Osborne Richardson,15/08/2022,PE143293,705.60,0.00,To provide Contaminated land & Air Quality Consultancy April 2022-March 2023  (Annual purchase order to draw invoices from throughout the year),Consultants Fees,42612,
Wyre Council,http://opendatacommunities.org/doc/district-council/wyre,30/08/2022,People and Places,Planning and Development Servs,132C,Singleton Clamp & Partners Ltd,09/08/2022,PE143225,10000.00,0.00,Informal Hearing advise for the Blackpool Road Appeal,Consultants Fees,42612,
Wyre Council,http://opendatacommunities.org/doc/district-council/wyre,30/08/2022,People and Places,Planning and Development Servs,132C,Springate Ltd TA Smith Leisure,08/08/2022,PE143194,1600.00,0.00,Report on Fleetwood Golf Club providing specialist rental valuation advice in relation to the lease renewal of the Fleetwood Golf Course,Consultants Fees,42612,
Wyre Council,http://opendatacommunities.org/doc/district-council/wyre,30/08/2022,People and Places,Planning and Development Servs,132C,Oxford Consultants for Social Inclusion Ltd,23/08/2022,PE143515,5000.00,0.00,Annual subscription of Community Insights,Consultants Fees,42612,
Wyre Council,http://opendatacommunities.org/doc/district-council/wyre,30/08/2022,People and Places,"Cultural, Environ and Planning",137B,Halcrow Group LTD,09/08/2022,PE143223,3842.12,0.00,Additional works as authorised by Carl Green,Consultants Fees (New CCR),04022,
Wyre Council,http://opendatacommunities.org/doc/district-council/wyre,30/08/2022,People and Places,"Cultural, Environ and Planning",137B,RYDER LANDSCAPE CONSULTANTS LTD,08/08/2022,PE143186,2290.28,0.00,Work undertaken on The Mount project,Consultants Fees (New CCR),04022,
Wyre Council,http://opendatacommunities.org/doc/district-council/wyre,30/08/2022,People and Places,"Cultural, Environ and Planning",137B,Vivid Resourcing Ltd,01/08/2022,PE142476,3395.00,0.00,Project management services for Fleetwood HAZ - Fleetwood Market Project - services running to 17 June 2022.,Consultants Fees (New CCR),04022,
Wyre Council,http://opendatacommunities.org/doc/district-council/wyre,30/08/2022,People and Places,"Cultural, Environ and Planning",137B,Vivid Resourcing Ltd,17/08/2022,PE143365,7197.40,0.00,Monthly invoice for Fleetwood Market consultancy time,Consultants Fees (New CCR),04022,
Wyre Council,http://opendatacommunities.org/doc/district-council/wyre,30/08/2022,People and Places,"Cultural, Environ and Planning",137B,R DEVELOPMENTS LTD T/A ROSSLEE CONSTRUCTION,31/08/2022,PE143203,39250.00,0.00,"Retention for work to restore the Mount grounds, pavilion and lodge in Fleetwood. Payment due February 2022",Consultants Fees (New CCR),04022,
Wyre Council,http://opendatacommunities.org/doc/district-council/wyre,30/08/2022,People and Places,Central Services to the Public,131C,Blackpool Council,18/08/2022,PE143235,1096.00,0.00,Covid Vaccination Van Charges - 30173315.,Contain Outbreak Management Fund,46615,
Wyre Council,http://opendatacommunities.org/doc/district-council/wyre,30/08/2022,People and Places,Central Services to the Public,131C,Blackpool Council,18/08/2022,PE143235,310.92,0.00,Ad Hock Charges Vaccine Guarantee Charges for Fleetwood and Cleveleys,Contain Outbreak Management Fund,46615,
Wyre Council,http://opendatacommunities.org/doc/district-council/wyre,30/08/2022,People and Places,Support Services,135B,F M Waste LTD,09/08/2022,PE143212,200.00,0.00,Empty of skips for Cemeteries in the Wyre Borough  Annual order for 2022/23,Containers Skips and Hire,40105,
Wyre Council,http://opendatacommunities.org/doc/district-council/wyre,30/08/2022,People and Places,Support Services,135B,F M Waste LTD,09/08/2022,PE143211,135.00,0.00,Empty of skips for Cemeteries in the Wyre Borough  Annual order for 2022/23,Containers Skips and Hire,40105,
Wyre Council,http://opendatacommunities.org/doc/district-council/wyre,30/08/2022,People and Places,Support Services,135B,F M Waste LTD,09/08/2022,PE143210,240.00,0.00,Empty of skips for Cemeteries in the Wyre Borough  Annual order for 2022/23,Containers Skips and Hire,40105,
Wyre Council,http://opendatacommunities.org/doc/district-council/wyre,30/08/2022,People and Places,Non Service Related Exp,137F,ADJ Doors Ltd T/A Keman Roller Shutters,04/08/2022,PE142673,34795.00,0.00,Maintenance of MOT workshop,Contract (New CCR),04020,
Wyre Council,http://opendatacommunities.org/doc/district-council/wyre,30/08/2022,People and Places,"Cultural, Environ and Planning",137B,RAPID RETAIL LTD,10/08/2022,PE143166,250.00,0.00,Rental of 2 x Mobile Merchandising Units April 22 to March 23,Contract (New CCR),04020,
Wyre Council,http://opendatacommunities.org/doc/district-council/wyre,30/08/2022,People and Places,"Cultural, Environ and Planning",137B,RAPID RETAIL LTD,04/08/2022,PE143113,250.00,0.00,Rental of 2 x Mobile Merchandising Units April 22 to March 23,Contract (New CCR),04020,
Wyre Council,http://opendatacommunities.org/doc/district-council/wyre,30/08/2022,Resources,"Cultural, Environ and Planning",137B,VODAFONE LIMITED,15/08/2022,RS142964,24.00,0.00,Monthly Charges,Contract (New CCR),04020,
Wyre Council,http://opendatacommunities.org/doc/district-council/wyre,30/08/2022,People and Places,"Cultural, Environ and Planning",137B,Balfour Beatty Civil Engineering Ltd,23/08/2022,PE142647,20571.84,0.00,"FAO Chloe Sumner Balfour Beatty Civil Engineering Ltd Chaddock Lane  Worsley Manchester M28 1XY  Tel, 0161 638 0800 Chloe.Sumner@balfourbeatty.com   Wyre Beach Management Scheme Phase 2 - Preconstruction Works.  Cost 1,313,701.70",Contract (New CCR),04020,
Wyre Council,http://opendatacommunities.org/doc/district-council/wyre,30/08/2022,People and Places,"Cultural, Environ and Planning",137B,Balfour Beatty Civil Engineering Ltd,31/08/2022,PE143618,155750.26,0.00,Wyre Beach Management Scheme Phase 1 - Preconstruction Works.  FAO Chloe Sumner Balfour Beatty Civil Engineering Ltd Chaddock Lane  Worsley Manchester M28 1XY,Contract (New CCR),04020,
Wyre Council,http://opendatacommunities.org/doc/district-council/wyre,30/08/2022,People and Places,"Cultural, Environ and Planning",137B,Balfour Beatty Civil Engineering Ltd,11/08/2022,PE143271,114217.24,0.00,Wyre Beach Management Scheme Phase 1 - Preconstruction Works.FAO Chloe SumnerBalfour Beatty Civil Engineering LtdChaddock Lane WorsleyManchesterM28 1XY,Contract (New CCR),04020,
Wyre Council,http://opendatacommunities.org/doc/district-council/wyre,30/08/2022,People and Places,"Cultural, Environ and Planning",137B,Groundwork & Leisure Services Ltd,16/08/2022,PE143205,13794.00,0.00,"As per supplied quotation carry out full mechanical and pneumatically clean of existing surface to include wet pour patch repairs. Supply and lay Notts Sport Childsplay in Olive Green to area measuring 22x19m  Site address: Hawthorne Park, Hawthorne Road,",Contract (New CCR),04020,
Wyre Council,http://opendatacommunities.org/doc/district-council/wyre,30/08/2022,Resources,Cultural and Related Services,132A,VODAFONE LIMITED,15/08/2022,RS142964,24.00,0.00,Monthly Charges,Corporate and Professional Subscriptions,45300,
Wyre Council,http://opendatacommunities.org/doc/district-council/wyre,30/08/2022,Finance,Current Assets,130B,,22/08/2022,WPST00069002,32952.06,0.00,ctax refunds 12/8,Council Tax Refunds,01100,
Wyre Council,http://opendatacommunities.org/doc/district-council/wyre,30/08/2022,Finance,Current Assets,130B,,04/08/2022,WPST00066634,21344.14,0.00,ctax refunds 22/7,Council Tax Refunds,01100,
Wyre Council,http://opendatacommunities.org/doc/district-council/wyre,30/08/2022,Finance,Current Assets,130B,,15/08/2022,WPST00068220,20200.17,0.00,ctax refunds 5/8,Council Tax Refunds,01100,
Wyre Council,http://opendatacommunities.org/doc/district-council/wyre,30/08/2022,Finance,Current Assets,130B,,09/08/2022,WPST00067461,14677.72,0.00,29/7 REFUNDS,Council Tax Refunds,01100,
Wyre Council,http://opendatacommunities.org/doc/district-council/wyre,30/08/2022,People and Places,Cultural and Related Services,132A,Stardrivemusic,02/08/2022,PE143097,550.00,0.00,For the hire and haulage of a generator and site supervision for Gambolling Arena shows in Poulton on Saturday 30th Julyand Fleetwood Saturday 13th August.Hires and haulage  200Time                       350Total                       550,Creative People and Places Contribution,45227,
Wyre Council,http://opendatacommunities.org/doc/district-council/wyre,30/08/2022,People and Places,Cultural and Related Services,132A,LINK SECURITY SERVICES NW LTD,03/08/2022,PE143132,162.00,0.00,For 2 x door staff at Tram Sunday to supervise the Inflatable pub. July 17th 2022Total excluding VAT 155.52,Creative People and Places Contribution,45227,
Wyre Council,http://opendatacommunities.org/doc/district-council/wyre,30/08/2022,People and Places,Support Services,135B,EK Motors Factors LTD,15/08/2022,PE143327,243.52,0.00,Parts,Daywork Materials (Excl.Tyres),30507,
Wyre Council,http://opendatacommunities.org/doc/district-council/wyre,30/08/2022,People and Places,Support Services,135B,EK Motors Factors LTD,15/08/2022,PE143333,23.34,0.00,Parts,Daywork Materials (Excl.Tyres),30507,
Wyre Council,http://opendatacommunities.org/doc/district-council/wyre,30/08/2022,People and Places,Environmental Services,132B,EK Motors Factors LTD,15/08/2022,PE143321,117.56,0.00,Parts,Daywork Materials (Excl.Tyres),30507,
Wyre Council,http://opendatacommunities.org/doc/district-council/wyre,30/08/2022,People and Places,Environmental Services,132B,EK Motors Factors LTD,15/08/2022,PE143338,21.00,0.00,Parts,Daywork Materials (Excl.Tyres),30507,
Wyre Council,http://opendatacommunities.org/doc/district-council/wyre,30/08/2022,People and Places,Environmental Services,132B,EK Motors Factors LTD,15/08/2022,PE143320,21.00,0.00,PARTS,Daywork Materials (Excl.Tyres),30507,
Wyre Council,http://opendatacommunities.org/doc/district-council/wyre,30/08/2022,People and Places,Environmental Services,132B,EK Motors Factors LTD,15/08/2022,PE143320,-21.00,0.00,PARTS,Daywork Materials (Excl.Tyres),30507,
Wyre Council,http://opendatacommunities.org/doc/district-council/wyre,30/08/2022,People and Places,Environmental Services,132B,EK Motors Factors LTD,15/08/2022,PE143322,40.57,0.00,Parts,Daywork Materials (Excl.Tyres),30507,
Wyre Council,http://opendatacommunities.org/doc/district-council/wyre,30/08/2022,People and Places,Environmental Services,132B,EK Motors Factors LTD,15/08/2022,PE143324,14.95,0.00,Parts,Daywork Materials (Excl.Tyres),30507,
Wyre Council,http://opendatacommunities.org/doc/district-council/wyre,30/08/2022,People and Places,Planning and Development Servs,132C,EK Motors Factors LTD,15/08/2022,PE143319,15.60,0.00,Parts,Daywork Materials (Excl.Tyres),30507,
Wyre Council,http://opendatacommunities.org/doc/district-council/wyre,30/08/2022,People and Places,Planning and Development Servs,132C,EK Motors Factors LTD,15/08/2022,PE143318,15.60,0.00,Parts,Daywork Materials (Excl.Tyres),30507,
Wyre Council,http://opendatacommunities.org/doc/district-council/wyre,30/08/2022,People and Places,Planning and Development Servs,132C,EK Motors Factors LTD,15/08/2022,PE143307,10.40,0.00,Mann Oli filter,Daywork Materials (Excl.Tyres),30507,
Wyre Council,http://opendatacommunities.org/doc/district-council/wyre,30/08/2022,People and Places,Environmental Services,132B,EK Motors Factors LTD,15/08/2022,PE143325,31.54,0.00,Parts,Daywork Materials (Excl.Tyres),30507,
Wyre Council,http://opendatacommunities.org/doc/district-council/wyre,30/08/2022,People and Places,Environmental Services,132B,EK Motors Factors LTD,15/08/2022,PE143336,65.28,0.00,Parts,Daywork Materials (Excl.Tyres),30507,
Wyre Council,http://opendatacommunities.org/doc/district-council/wyre,30/08/2022,People and Places,Environmental Services,132B,EK Motors Factors LTD,15/08/2022,PE143326,16.53,0.00,Parts,Daywork Materials (Excl.Tyres),30507,
Wyre Council,http://opendatacommunities.org/doc/district-council/wyre,30/08/2022,People and Places,Support Services,135B,FR Sharrock LTD,15/08/2022,PE143231,493.02,0.00,Various parts,Daywork Materials (Excl.Tyres),30507,
Wyre Council,http://opendatacommunities.org/doc/district-council/wyre,30/08/2022,People and Places,Support Services,135B,FR Sharrock LTD,15/08/2022,PE143231,225.48,0.00,Various parts,Daywork Materials (Excl.Tyres),30507,
Wyre Council,http://opendatacommunities.org/doc/district-council/wyre,30/08/2022,People and Places,Environmental Services,132B,RENTOKIL INITIAL UK LTD,03/08/2022,PE143153,105.42,0.00,Clinical waste collection and disposal services to Wyre domestic customers.  To include provision of containers for financial year 2022/23,Disposal Costs Hazardous Waste,27012,
Wyre Council,http://opendatacommunities.org/doc/district-council/wyre,30/08/2022,People and Places,Environmental Services,132B,RENTOKIL INITIAL UK LTD,03/08/2022,PE143152,898.77,0.00,Clinical waste collection and disposal services to Wyre domestic customers.  To include provision of containers for financial year 2022/23,Disposal Costs Hazardous Waste,27012,
Wyre Council,http://opendatacommunities.org/doc/district-council/wyre,30/08/2022,People and Places,Environmental Services,132B,RENTOKIL INITIAL UK LTD,03/08/2022,PE143159,3.51,0.00,Clinical waste collection and disposal services to Wyre domestic customers.  To include provision of containers for financial year 2022/23,Disposal Costs Hazardous Waste,27012,
Wyre Council,http://opendatacommunities.org/doc/district-council/wyre,30/08/2022,People and Places,Environmental Services,132B,RENTOKIL INITIAL UK LTD,03/08/2022,PE143158,10.54,0.00,Clinical waste collection and disposal services to Wyre domestic customers.  To include provision of containers for financial year 2022/23,Disposal Costs Hazardous Waste,27012,
Wyre Council,http://opendatacommunities.org/doc/district-council/wyre,30/08/2022,People and Places,Environmental Services,132B,RENTOKIL INITIAL UK LTD,03/08/2022,PE143157,148.74,0.00,Clinical waste collection and disposal services to Wyre domestic customers.  To include provision of containers for financial year 2022/23,Disposal Costs Hazardous Waste,27012,
Wyre Council,http://opendatacommunities.org/doc/district-council/wyre,30/08/2022,People and Places,Environmental Services,132B,RENTOKIL INITIAL UK LTD,03/08/2022,PE143154,165.83,0.00,Clinical waste collection and disposal services to Wyre domestic customers.  To include provision of containers for financial year 2022/23,Disposal Costs Hazardous Waste,27012,
Wyre Council,http://opendatacommunities.org/doc/district-council/wyre,30/08/2022,People and Places,Cultural and Related Services,132A,Carlsberg UK LTD,23/08/2022,PE143457,1555.85,0.00,Marine Hall drinks,Drinks,41001,
Wyre Council,http://opendatacommunities.org/doc/district-council/wyre,30/08/2022,People and Places,Planning and Development Servs,132C,Bryt Energy Limited,30/08/2022,PE143427,3228.69,0.00,Electricity Charges for the period 01/07/22-31/07/22,Electricity,22000,
Wyre Council,http://opendatacommunities.org/doc/district-council/wyre,30/08/2022,People and Places,Planning and Development Servs,132C,Bryt Energy Limited,01/08/2022,PE142785,847.91,0.00,Electricity charges for the period 01/06/22-30/06/22,Electricity,22000,
Wyre Council,http://opendatacommunities.org/doc/district-council/wyre,30/08/2022,People and Places,Planning and Development Servs,132C,Bryt Energy Limited,30/08/2022,PE143423,841.40,0.00,Electricity charges for the period 01/07/22-31/07/22,Electricity,22000,
Wyre Council,http://opendatacommunities.org/doc/district-council/wyre,30/08/2022,People and Places,Cultural and Related Services,132A,Bryt Energy Limited,30/08/2022,PE143426,113.21,0.00,Electricity Charges for the period 01/07/22-31/07/22,Electricity,22000,
Wyre Council,http://opendatacommunities.org/doc/district-council/wyre,30/08/2022,People and Places,Cultural and Related Services,132A,Bryt Energy Limited,30/08/2022,PE143426,-0.10,0.00,Balance brought forward,Electricity,22000,
Wyre Council,http://opendatacommunities.org/doc/district-council/wyre,30/08/2022,People and Places,Cultural and Related Services,132A,Bryt Energy Limited,01/08/2022,PE142788,118.19,0.00,Electricity charges for the period 01/06/22-30/06/22,Electricity,22000,
Wyre Council,http://opendatacommunities.org/doc/district-council/wyre,30/08/2022,People and Places,Cultural and Related Services,132A,Bryt Energy Limited,30/08/2022,PE143425,768.27,0.00,Electricity Charges for the period 01/07/22-31/07/22,Electricity,22000,
Wyre Council,http://opendatacommunities.org/doc/district-council/wyre,30/08/2022,People and Places,Environmental Services,132B,Bryt Energy Limited,30/08/2022,PE143429,43.47,0.00,Electricity charges for the period 01/07/22-31/07/22,Electricity,22000,
Wyre Council,http://opendatacommunities.org/doc/district-council/wyre,30/08/2022,People and Places,Cultural and Related Services,132A,Bryt Energy Limited,30/08/2022,PE143424,2355.84,0.00,Electricity Charges for the period 01/07/22-31/07/22,Electricity,22000,
Wyre Council,http://opendatacommunities.org/doc/district-council/wyre,30/08/2022,People and Places,Cultural and Related Services,132A,Bryt Energy Limited,30/08/2022,PE143424,-0.01,0.00,overpayment from last invoice,Electricity,22000,
Wyre Council,http://opendatacommunities.org/doc/district-council/wyre,30/08/2022,People and Places,Cultural and Related Services,132A,Bryt Energy Limited,01/08/2022,PE142786,2171.62,0.00,Electricity charges for the period 01/06/22-30/06/22,Electricity,22000,
Wyre Council,http://opendatacommunities.org/doc/district-council/wyre,30/08/2022,People and Places,Cultural and Related Services,132A,Bryt Energy Limited,01/08/2022,PE142787,537.63,0.00,Electricity charges for the period 01/06/22-30/06/22,Electricity,22000,
Wyre Council,http://opendatacommunities.org/doc/district-council/wyre,30/08/2022,People and Places,Support Services,135B,Bryt Energy Limited,30/08/2022,PE143428,4486.97,0.00,Electricity supplied for the period 01/07/22-31/07/22,Electricity,22000,
Wyre Council,http://opendatacommunities.org/doc/district-council/wyre,30/08/2022,People and Places,Support Services,135B,Bryt Energy Limited,30/08/2022,PE143428,-0.01,0.00,Balance brough forward from previous invoice,Electricity,22000,
Wyre Council,http://opendatacommunities.org/doc/district-council/wyre,30/08/2022,People and Places,Support Services,135B,Bryt Energy Limited,01/08/2022,PE142790,4650.76,0.00,Electricity charges for the period 01/06/22-30/06/22,Electricity,22000,
Wyre Council,http://opendatacommunities.org/doc/district-council/wyre,30/08/2022,People and Places,Environmental Services,132B,Corona Energy Retail 4 Limited,30/08/2022,PE143525,145.04,0.00,Electricity Charges,Electricity,22000,
Wyre Council,http://opendatacommunities.org/doc/district-council/wyre,30/08/2022,People and Places,Central Services to the Public,131C,Corona Energy Retail 4 Limited,30/08/2022,PE143525,557.39,0.00,Electricity Charges,Electricity,22000,
Wyre Council,http://opendatacommunities.org/doc/district-council/wyre,30/08/2022,People and Places,Cultural and Related Services,132A,Corona Energy Retail 4 Limited,30/08/2022,PE143525,48.17,0.00,Electricity Charges,Electricity,22000,
Wyre Council,http://opendatacommunities.org/doc/district-council/wyre,30/08/2022,People and Places,Cultural and Related Services,132A,Corona Energy Retail 4 Limited,30/08/2022,PE143525,133.97,0.00,Electricity Charges,Electricity,22000,
Wyre Council,http://opendatacommunities.org/doc/district-council/wyre,30/08/2022,People and Places,Environmental Services,132B,Corona Energy Retail 4 Limited,30/08/2022,PE143525,248.36,0.00,Electricity Charges,Electricity,22000,
Wyre Council,http://opendatacommunities.org/doc/district-council/wyre,30/08/2022,People and Places,Environmental Services,132B,Corona Energy Retail 4 Limited,30/08/2022,PE143525,972.51,0.00,Electricity Charges,Electricity,22000,
Wyre Council,http://opendatacommunities.org/doc/district-council/wyre,30/08/2022,People and Places,Environmental Services,132B,Corona Energy Retail 4 Limited,30/08/2022,PE143525,36.63,0.00,Electricity Charges,Electricity,22000,
Wyre Council,http://opendatacommunities.org/doc/district-council/wyre,30/08/2022,People and Places,Cultural and Related Services,132A,Corona Energy Retail 4 Limited,30/08/2022,PE143525,167.45,0.00,Electricity Charges,Electricity,22000,
Wyre Council,http://opendatacommunities.org/doc/district-council/wyre,30/08/2022,People and Places,Cultural and Related Services,132A,Corona Energy Retail 4 Limited,30/08/2022,PE143525,205.87,0.00,Electricity Charges,Electricity,22000,
Wyre Council,http://opendatacommunities.org/doc/district-council/wyre,30/08/2022,People and Places,Cultural and Related Services,132A,Corona Energy Retail 4 Limited,30/08/2022,PE143525,31.61,0.00,Electricity Charges,Electricity,22000,
Wyre Council,http://opendatacommunities.org/doc/district-council/wyre,30/08/2022,People and Places,Cultural and Related Services,132A,Corona Energy Retail 4 Limited,30/08/2022,PE143525,206.94,0.00,Electricity Charges,Electricity,22000,
Wyre Council,http://opendatacommunities.org/doc/district-council/wyre,30/08/2022,People and Places,Cultural and Related Services,132A,Corona Energy Retail 4 Limited,30/08/2022,PE143525,371.65,0.00,Electricity Charges,Electricity,22000,
Wyre Council,http://opendatacommunities.org/doc/district-council/wyre,30/08/2022,People and Places,Cultural and Related Services,132A,Corona Energy Retail 4 Limited,30/08/2022,PE143525,323.69,0.00,Electricity Charges,Electricity,22000,
Wyre Council,http://opendatacommunities.org/doc/district-council/wyre,30/08/2022,People and Places,Cultural and Related Services,132A,Corona Energy Retail 4 Limited,30/08/2022,PE143525,370.01,0.00,Electricity Charges,Electricity,22000,
Wyre Council,http://opendatacommunities.org/doc/district-council/wyre,30/08/2022,People and Places,Cultural and Related Services,132A,Corona Energy Retail 4 Limited,30/08/2022,PE143525,144.24,0.00,Electricity Charges,Electricity,22000,
Wyre Council,http://opendatacommunities.org/doc/district-council/wyre,30/08/2022,People and Places,Environmental Services,132B,Corona Energy Retail 4 Limited,30/08/2022,PE143525,42.67,0.00,Electricity Charges,Electricity,22000,
Wyre Council,http://opendatacommunities.org/doc/district-council/wyre,30/08/2022,People and Places,Cultural and Related Services,132A,Corona Energy Retail 4 Limited,30/08/2022,PE143525,51.63,0.00,Electricity Charges,Electricity,22000,
Wyre Council,http://opendatacommunities.org/doc/district-council/wyre,30/08/2022,People and Places,Planning and Development Servs,132C,Corona Energy Retail 4 Limited,30/08/2022,PE143525,257.49,0.00,Electricity Charges,Electricity,22000,
Wyre Council,http://opendatacommunities.org/doc/district-council/wyre,30/08/2022,People and Places,Cultural and Related Services,132A,Corona Energy Retail 4 Limited,30/08/2022,PE143525,353.12,0.00,Electricity Charges,Electricity,22000,
Wyre Council,http://opendatacommunities.org/doc/district-council/wyre,30/08/2022,People and Places,Cultural and Related Services,132A,Corona Energy Retail 4 Limited,30/08/2022,PE143525,42.61,0.00,Electricity Charges,Electricity,22000,
Wyre Council,http://opendatacommunities.org/doc/district-council/wyre,30/08/2022,People and Places,Cultural and Related Services,132A,Corona Energy Retail 4 Limited,30/08/2022,PE143525,24.74,0.00,Electricity Charges,Electricity,22000,
Wyre Council,http://opendatacommunities.org/doc/district-council/wyre,30/08/2022,People and Places,Cultural and Related Services,132A,Corona Energy Retail 4 Limited,30/08/2022,PE143525,183.97,0.00,Electricity Charges,Electricity,22000,
Wyre Council,http://opendatacommunities.org/doc/district-council/wyre,30/08/2022,People and Places,Environmental Services,132B,Corona Energy Retail 4 Limited,30/08/2022,PE143525,268.56,0.00,Electricity Charges,Electricity,22000,
Wyre Council,http://opendatacommunities.org/doc/district-council/wyre,30/08/2022,People and Places,Planning and Development Servs,132C,Corona Energy Retail 4 Limited,30/08/2022,PE143525,516.75,0.00,Electricity Charges,Electricity,22000,
Wyre Council,http://opendatacommunities.org/doc/district-council/wyre,30/08/2022,People and Places,Cultural and Related Services,132A,Corona Energy Retail 4 Limited,30/08/2022,PE143525,29.74,0.00,Electricity Charges,Electricity,22000,
Wyre Council,http://opendatacommunities.org/doc/district-council/wyre,30/08/2022,Finance,Central Services to the Public,131C,,04/08/2022,WPST00066636,15000.00,0.00,energy rebate scheme 22/7,Energy Rebate Payment,45124,
Wyre Council,http://opendatacommunities.org/doc/district-council/wyre,30/08/2022,Finance,Central Services to the Public,131C,,03/08/2022,WPST00066365,12750.00,0.00,energy rebate scheme 21/7,Energy Rebate Payment,45124,
Wyre Council,http://opendatacommunities.org/doc/district-council/wyre,30/08/2022,Finance,Central Services to the Public,131C,,03/08/2022,WPST00066366,3000.00,0.00,energy rebate scheme 21/7,Energy Rebate Payment,45124,
Wyre Council,http://opendatacommunities.org/doc/district-council/wyre,30/08/2022,Finance,Central Services to the Public,131C,,26/08/2022,WPST00070858,10000.00,0.00,PAYMENT TO POST OFFICE ACCOUNT 18/8,Energy Rebate Payment,45124,
Wyre Council,http://opendatacommunities.org/doc/district-council/wyre,30/08/2022,Finance,Central Services to the Public,131C,,09/08/2022,WPST00067460,20100.00,0.00,ENERGY REBATE PAYMENT 29/7,Energy Rebate Payment,45124,
Wyre Council,http://opendatacommunities.org/doc/district-council/wyre,30/08/2022,Finance,Central Services to the Public,131C,,30/08/2022,WPST00071035,30000.00,0.00,post office account transfer 23/8,Energy Rebate Payment,45124,
Wyre Council,http://opendatacommunities.org/doc/district-council/wyre,30/08/2022,Resources,Housing General Fund,134A,Jacobs Enforcement Agency,02/08/2022,RS143035,370.65,0.00,Commission on monies,Enforcement Agents` Fees,42602,
Wyre Council,http://opendatacommunities.org/doc/district-council/wyre,30/08/2022,Resources,Housing General Fund,134A,Jacobs Enforcement Agency,03/08/2022,RS143124,381.13,0.00,Commission on monies recovered,Enforcement Agents` Fees,42602,
Wyre Council,http://opendatacommunities.org/doc/district-council/wyre,30/08/2022,Resources,Central Services to the Public,131C,Jacobs Enforcement Agency,03/08/2022,RS143129,385.00,0.00,commision on monies collected,Enforcement Agents` Fees,42602,
Wyre Council,http://opendatacommunities.org/doc/district-council/wyre,30/08/2022,People and Places,Cultural and Related Services,132A,Fylde Coast Holiday Club,09/08/2022,PE143224,4794.00,0.00,"Wyre HAF Summer 2022: 1st August to 26th August (16 days), 50 places per day = 800 total places,12 per day (12 per place x 50 children x 16 days = 9,600), Staffing: 50 per additional coach per day x2 (50 per day x 2 staff x 16 days = 1,600), 4.50 p",External Coaching,46850,
Wyre Council,http://opendatacommunities.org/doc/district-council/wyre,30/08/2022,People and Places,Cultural and Related Services,132A,Fylde Coast Holiday Club,09/08/2022,PE143230,4920.00,0.00,"Wyre HAF Summer 2022: 1st August to 26th August (16 days), 50 places per day = 800 total places,12 per day (12 per place x 50 children x 16 days = 9,600), Staffing: 50 per additional coach per day x2 (50 per day x 2 staff x 16 days = 1,600), 4.50 p",External Coaching,46850,
Wyre Council,http://opendatacommunities.org/doc/district-council/wyre,30/08/2022,People and Places,Cultural and Related Services,132A,Fylde Coast Holiday Club,24/08/2022,PE143530,5046.00,0.00,"Wyre HAF Summer 2022: 1st August to 26th August (16 days), 50 places per day = 800 total places,12 per day (12 per place x 50 children x 16 days = 9,600), Staffing: 50 per additional coach per day x2 (50 per day x 2 staff x 16 days = 1,600), 4.50 p",External Coaching,46850,
Wyre Council,http://opendatacommunities.org/doc/district-council/wyre,30/08/2022,People and Places,Cultural and Related Services,132A,Fylde Coast Holiday Club,24/08/2022,PE143531,4794.00,0.00,"Holiday club at Fleetwood High  School from 08:30  16:00.  4 sessions per week per child.  233 children 12.00 per day per child 2796.00 Packed breakfast/lunch/snack  including a choice of cereal bars,  pastries, raisons, sandwich, fruit,  biscuit/cake,",External Coaching,46850,
Wyre Council,http://opendatacommunities.org/doc/district-council/wyre,30/08/2022,People and Places,Cultural and Related Services,132A,Acorns,08/08/2022,PE143201,3121.00,0.00,"up to 35 places per day on the Wyre HAF programme, summer 2022. 25th July to 5th August (10 days)35 places per day = 350 total places25 per day or 14 per half day (25 x 35 x 10 = 8,750)Food - 4 per head (x 35 x 10 = 1,400) Admin: 25 per hour (�",External Coaching,46850,
Wyre Council,http://opendatacommunities.org/doc/district-council/wyre,30/08/2022,People and Places,Cultural and Related Services,132A,SD SSC Limited T/A Sportscool Fylde,24/08/2022,PE143532,11535.00,0.00,"SportsCool ElswickVillage Hall and Over Wyre Sports centre, 25th July to 19th August (16 days), 65 places per day = 1040 total places,22.50 per day, including food, 22.50 x 65 places x 16 days = 23,400) Staffing: 20 per hourVenue Hire: 102 per da",External Coaching,46850,
Wyre Council,http://opendatacommunities.org/doc/district-council/wyre,30/08/2022,People and Places,Cultural and Related Services,132A,SD SSC Limited T/A Sportscool Fylde,08/08/2022,PE143188,11940.00,0.00,"SportsCool ElswickVillage Hall and Over Wyre Sports centre, 25th July to 19th August (16 days), 65 places per day = 1040 total places,22.50 per day, including food, 22.50 x 65 places x 16 days = 23,400) Staffing: 20 per hourVenue Hire: 102 per da",External Coaching,46850,
Wyre Council,http://opendatacommunities.org/doc/district-council/wyre,30/08/2022,People and Places,Cultural and Related Services,132A,Lancashire County Council,02/08/2022,PE143086,17.50,0.00,Hire of meeting room at Garstang Library for two hours on Thursday 18 August 2022,External Contractor,46700,
Wyre Council,http://opendatacommunities.org/doc/district-council/wyre,30/08/2022,People and Places,Cultural and Related Services,132A,G.Whitley,17/08/2022,PE143360,980.00,0.00,Bannisters hand rail at Rossall,External Contractor,46700,
Wyre Council,http://opendatacommunities.org/doc/district-council/wyre,30/08/2022,People and Places,Cultural and Related Services,132A,Hanley Chesworth  LTD,03/08/2022,PE143134,1135.00,0.00,2 x tramper service  and parts,External Contractor,46700,
Wyre Council,http://opendatacommunities.org/doc/district-council/wyre,30/08/2022,People and Places,Support Services,135B,Allstar Business Solutions LTD,31/08/2022,PE143507,193.05,0.00,Monthly Fuel Charges,Fuel,30500,
Wyre Council,http://opendatacommunities.org/doc/district-council/wyre,30/08/2022,People and Places,Support Services,135B,Allstar Business Solutions LTD,11/08/2022,PE143155,349.85,0.00,Fuel Charges,Fuel,30500,
Wyre Council,http://opendatacommunities.org/doc/district-council/wyre,30/08/2022,People and Places,Support Services,135B,Allstar Business Solutions LTD,11/08/2022,PE142965,521.41,0.00,Fuel Charges,Fuel,30500,
Wyre Council,http://opendatacommunities.org/doc/district-council/wyre,30/08/2022,People and Places,Support Services,135B,Allstar Business Solutions LTD,11/08/2022,PE142965,7.14,0.00,Late Payment Fee,Fuel,30500,
Wyre Council,http://opendatacommunities.org/doc/district-council/wyre,30/08/2022,People and Places,Support Services,135B,Allstar Business Solutions LTD,11/08/2022,PE142965,7.14,0.00,Late Payment Fee,Fuel,30500,
Wyre Council,http://opendatacommunities.org/doc/district-council/wyre,30/08/2022,People and Places,Support Services,135B,Allstar Business Solutions LTD,11/08/2022,PE142965,446.22,0.00,Fuel Charges,Fuel,30500,
Wyre Council,http://opendatacommunities.org/doc/district-council/wyre,30/08/2022,People and Places,Support Services,135B,Allstar Business Solutions LTD,11/08/2022,PE143155,491.75,0.00,Fuel Charges,Fuel,30500,
Wyre Council,http://opendatacommunities.org/doc/district-council/wyre,30/08/2022,People and Places,Support Services,135B,Allstar Business Solutions LTD,31/08/2022,PE143507,379.17,0.00,Monthly Fuel Charges,Fuel,30500,
Wyre Council,http://opendatacommunities.org/doc/district-council/wyre,30/08/2022,People and Places,Cultural and Related Services,132A,AvantiGas ON Ltd,09/08/2022,PE143148,317.58,0.00,Gas charges for the period 01/07/22-31/07/2022,Gas,22001,
Wyre Council,http://opendatacommunities.org/doc/district-council/wyre,30/08/2022,People and Places,Support Services,135B,AvantiGas ON Ltd,09/08/2022,PE143150,1149.14,0.00,Gas charges for the period 01/07/22-31/07/2022,Gas,22001,
Wyre Council,http://opendatacommunities.org/doc/district-council/wyre,30/08/2022,People and Places,Planning and Development Servs,132C,AvantiGas ON Ltd,09/08/2022,PE143147,44.00,0.00,Gas charges for the period 01/07/22-31/07/2022,Gas,22001,
Wyre Council,http://opendatacommunities.org/doc/district-council/wyre,30/08/2022,People and Places,Planning and Development Servs,132C,AvantiGas ON Ltd,09/08/2022,PE143149,601.50,0.00,Gas charges for the period 01/07/22-31/07/2022,Gas,22001,
Wyre Council,http://opendatacommunities.org/doc/district-council/wyre,30/08/2022,People and Places,"Cultural, Environ and Planning",137B,Forton Parish Council,17/08/2022,PE143406,50769.00,0.00,payment of S106 money towards improvements to Forton Playing fields.,Grants and Advances,04060,
Wyre Council,http://opendatacommunities.org/doc/district-council/wyre,30/08/2022,People and Places,Environmental Services,132B,M J Wilkinson,17/08/2022,PE143395,350.00,0.00,Collection of Seal from Fleetwood 24/6/22 Collection note number A2224254,Hazardous Waste Disposal,42501,
Wyre Council,http://opendatacommunities.org/doc/district-council/wyre,30/08/2022,Finance,Central Services to the Public,131C,,30/08/2022,WPST00071005,202150.00,0.00,HOUSEHOLD SUPPORT FUND 22/8,Household Support Fund,45122,
Wyre Council,http://opendatacommunities.org/doc/district-council/wyre,30/08/2022,Finance,Central Services to the Public,131C,,04/08/2022,WPST00066656,249570.00,0.00,Household support fund - 25/07/2022,Household Support Fund,45122,
Wyre Council,http://opendatacommunities.org/doc/district-council/wyre,30/08/2022,Finance,Central Services to the Public,131C,,04/08/2022,WPST00066637,40000.00,0.00,post office HSF 22/7/22,Household Support Fund,45122,
Wyre Council,http://opendatacommunities.org/doc/district-council/wyre,30/08/2022,People and Places,Environmental Services,132B,Poulton Pets LTD,17/08/2022,PE143408,1603.50,0.00,Provision of stray dog kennelling service 2022/23,Impounded Dogs Costs,46807,
Wyre Council,http://opendatacommunities.org/doc/district-council/wyre,30/08/2022,Resources,Support Services,135B,Lancashire County Council,03/08/2022,RS143130,5262.94,0.00,Managed Internet ConnectionCivic Centre (WB108)  1Gbps Fibre (100Mb Internet),Internet and Telephone Charges,43503,
Wyre Council,http://opendatacommunities.org/doc/district-council/wyre,30/08/2022,Resources,Support Services,135B,Lancashire County Council,03/08/2022,RS143130,1285.06,0.00,Managed WANBonded SDSL Broadband WB102 Caf� Cove,Internet and Telephone Charges,43503,
Wyre Council,http://opendatacommunities.org/doc/district-council/wyre,30/08/2022,People and Places,Support Services,135B,Nominet UK,17/08/2022,PE143019,691.31,0.00,DNS Services May22 - July22,Internet and Telephone Charges,43503,
Wyre Council,http://opendatacommunities.org/doc/district-council/wyre,30/08/2022,People and Places,Support Services,135B,Nominet UK,17/08/2022,PE143019,69.63,0.00,Community Charge may - July,Internet and Telephone Charges,43503,
Wyre Council,http://opendatacommunities.org/doc/district-council/wyre,30/08/2022,People and Places,Support Services,135B,Nominet UK,17/08/2022,PE143019,5.00,0.00,Quarterly Invoice Charge,Internet and Telephone Charges,43503,
Wyre Council,http://opendatacommunities.org/doc/district-council/wyre,30/08/2022,Resources,Support Services,135B,Daisy Communications LTD,03/08/2022,RS142976,15.00,0.00,Monthly Charges,Internet and Telephone Charges,43503,
Wyre Council,http://opendatacommunities.org/doc/district-council/wyre,30/08/2022,Resources,Cultural and Related Services,132A,Daisy Communications LTD,03/08/2022,RS142976,9.48,0.00,Monthly Charges,Internet and Telephone Charges,43503,
Wyre Council,http://opendatacommunities.org/doc/district-council/wyre,30/08/2022,Resources,Cultural and Related Services,132A,Daisy Communications LTD,03/08/2022,RS142976,24.47,0.00,Monthly Charges,Internet and Telephone Charges,43503,
Wyre Council,http://opendatacommunities.org/doc/district-council/wyre,30/08/2022,Resources,Corporate and Democratic Core,131A,Daisy Communications LTD,03/08/2022,RS142976,9.49,0.00,Monthly Charges,Internet and Telephone Charges,43503,
Wyre Council,http://opendatacommunities.org/doc/district-council/wyre,30/08/2022,Resources,Support Services,135B,Daisy Communications LTD,03/08/2022,RS142976,18.96,0.00,Monthly Charges,Internet and Telephone Charges,43503,
Wyre Council,http://opendatacommunities.org/doc/district-council/wyre,30/08/2022,Resources,Support Services,135B,Daisy Communications LTD,03/08/2022,RS142976,38.48,0.00,Monthly Charges,Internet and Telephone Charges,43503,
Wyre Council,http://opendatacommunities.org/doc/district-council/wyre,30/08/2022,Resources,Support Services,135B,THE NETWORKING PEOPLE (TNP) LTD,24/08/2022,RS143549,402.23,0.00,FTTC Connection to Sea Defences Depot FY6 8EJ - Annual rental 26/08/22 - 25/08/23,Internet and Telephone Charges,43503,
Wyre Council,http://opendatacommunities.org/doc/district-council/wyre,30/08/2022,Resources,Support Services,135B,THE NETWORKING PEOPLE (TNP) LTD,08/08/2022,RS143191,290.67,0.00,Wholesale FTTC Install at Garstang YMCA,Internet and Telephone Charges,43503,
Wyre Council,http://opendatacommunities.org/doc/district-council/wyre,30/08/2022,Resources,Support Services,135B,THE NETWORKING PEOPLE (TNP) LTD,08/08/2022,RS143191,402.23,0.00,"Wholesale FTTC connection to Garstang YMCA Swimming Pool, Windsor Road, Garstang, PR3 1ED Annual Rental",Internet and Telephone Charges,43503,
Wyre Council,http://opendatacommunities.org/doc/district-council/wyre,30/08/2022,People and Places,Support Services,135B,Blackpool Council,31/08/2022,PE143168,10898.00,0.00,"Agreed Partial costs in relation to planning appeal for Woodhouse Farm, Poulton, Invoice number 30173109",Legal Fees,46300,
Wyre Council,http://opendatacommunities.org/doc/district-council/wyre,30/08/2022,Resources,Support Services,135B,Forbes Solicitors,02/08/2022,RS143092,1903.50,0.00,Employment Advice,Legal Fees,46300,
Wyre Council,http://opendatacommunities.org/doc/district-council/wyre,30/08/2022,Resources,Support Services,135B,Forbes Solicitors,02/08/2022,RS143104,245.00,0.00,Employment Advice,Legal Fees,46300,
Wyre Council,http://opendatacommunities.org/doc/district-council/wyre,30/08/2022,Resources,Cultural and Related Services,132A,Allcool (NW) Ltd,10/08/2022,RS143243,104.75,0.00,Cooler Fix,Maintenance of Tools or Equipment,40102,
Wyre Council,http://opendatacommunities.org/doc/district-council/wyre,30/08/2022,Resources,Cultural and Related Services,132A,Allcool (NW) Ltd,15/08/2022,RS143290,62.50,0.00,Service Wyre Bar/ fridge in cellar mot working.,Maintenance of Tools or Equipment,40102,
Wyre Council,http://opendatacommunities.org/doc/district-council/wyre,30/08/2022,People and Places,Planning and Development Servs,132C,Trident Rentals Ltd,31/08/2022,PE143579,489.67,0.00,rental compactor to 6th may,Maintenance of Tools or Equipment,40102,
Wyre Council,http://opendatacommunities.org/doc/district-council/wyre,30/08/2022,Resources,Parking Services,133F,VODAFONE LIMITED,15/08/2022,RS142964,14.91,0.00,Monthly Charges,Maintenance of Tools or Equipment,40102,
Wyre Council,http://opendatacommunities.org/doc/district-council/wyre,30/08/2022,People and Places,Cultural and Related Services,132A,Andrew Signs LTD,18/08/2022,PE143410,280.00,0.00,a5 signs and viynal rondels,Materials and Consumables,42002,
Wyre Council,http://opendatacommunities.org/doc/district-council/wyre,30/08/2022,People and Places,Support Services,135B,EK Motors Factors LTD,15/08/2022,PE143332,26.64,0.00,Parts,Materials and Consumables,42002,
Wyre Council,http://opendatacommunities.org/doc/district-council/wyre,30/08/2022,People and Places,Support Services,135B,EK Motors Factors LTD,15/08/2022,PE143331,121.82,0.00,Parts,Materials and Consumables,42002,
Wyre Council,http://opendatacommunities.org/doc/district-council/wyre,30/08/2022,People and Places,Support Services,135B,EK Motors Factors LTD,15/08/2022,PE143330,57.12,0.00,Parts,Materials and Consumables,42002,
Wyre Council,http://opendatacommunities.org/doc/district-council/wyre,30/08/2022,People and Places,Support Services,135B,EK Motors Factors LTD,15/08/2022,PE143329,9.20,0.00,Parts,Materials and Consumables,42002,
Wyre Council,http://opendatacommunities.org/doc/district-council/wyre,30/08/2022,People and Places,Support Services,135B,EK Motors Factors LTD,15/08/2022,PE143328,23.96,0.00,Parts,Materials and Consumables,42002,
Wyre Council,http://opendatacommunities.org/doc/district-council/wyre,30/08/2022,People and Places,Support Services,135B,EK Motors Factors LTD,15/08/2022,PE143323,61.26,0.00,Parts,Materials and Consumables,42002,
Wyre Council,http://opendatacommunities.org/doc/district-council/wyre,30/08/2022,People and Places,Support Services,135B,Key Engineering & Hygiene Supplies LTD,30/08/2022,PE143356,91.92,0.00,SUPPLY AS PER QUOTATION 20/ 5/22 14102 1 of 1 DELTA6BE 6 BLUE 2 PLY CENTREFEED ROLLS 150M X 175MM EMBOSSED 15.32 EACH 91.92 SPC100ML/SPLIT 10 STOKODERM SUN PROTECT 50 PURE 100ML TUBE 7.87 EACH -22.75 60.80 BB15BLKONE 10 B/FIELD ULTIMATE COTTON CAP BLACK O,Materials and Consumables,42002,
Wyre Council,http://opendatacommunities.org/doc/district-council/wyre,30/08/2022,People and Places,Support Services,135B,Key Engineering & Hygiene Supplies LTD,22/08/2022,PE143110,117.25,0.00,"SUPPLY AND DELIVER AS PER YOUR QUOTATION 14689  DELIVERY TO WYRE COUNCIL, COPSE ROAD DEPOT, COPSE ROAD, FLEETWOOD, FY7 6RP.",Materials and Consumables,42002,
Wyre Council,http://opendatacommunities.org/doc/district-council/wyre,30/08/2022,People and Places,Support Services,135B,Broxap,24/08/2022,PE143528,998.00,0.00,Supply 1x BX BSP/SEATBX 720Ashbourne Cast Iron Framed Seat2400mm lengthSurface mountedTimber slatsFrames coated green RAL 6005 Complete with central supporting leg998 each,Materials and Consumables,42002,
Wyre Council,http://opendatacommunities.org/doc/district-council/wyre,30/08/2022,People and Places,Support Services,135B,Broxap,24/08/2022,PE143528,220.00,0.00,"1 x Delivery charge, based on carriage to a FY postcode area (1x triple pallet, no off-loading)- 220Lead time � approx. 8 weeks on a supply only basis   Delivery to Wyre Council, Copse Road Depot, Copse Road, Fleetwood, FY7 6RP.",Materials and Consumables,42002,
Wyre Council,http://opendatacommunities.org/doc/district-council/wyre,30/08/2022,People and Places,Environmental Services,132B,Blackpool Skip Hire LTD,31/08/2022,PE143571,200.00,0.00,"Provision of skips for Chatsworth Depot, Fleetwood",Materials and Consumables,42002,
Wyre Council,http://opendatacommunities.org/doc/district-council/wyre,30/08/2022,People and Places,Support Services,135B,Richardson Traction LTD,04/08/2022,PE143173,500.00,0.00,"April 26th . collect 20ft container with Hiab from FWD MKT and store until 19/07/22.   on 19/07/22 deliver container to Jaen Stansfield park compound and , remove the currant 10 ft container  back to Richardson traction",Materials and Consumables,42002,
Wyre Council,http://opendatacommunities.org/doc/district-council/wyre,30/08/2022,People and Places,Support Services,135B,The County Tyre (Holdings) LTD,16/08/2022,PE143379,113.90,0.00,Tyres,Materials and Consumables,42002,
Wyre Council,http://opendatacommunities.org/doc/district-council/wyre,30/08/2022,People and Places,Cultural and Related Services,132A,PRESTON BRANCH LNWBKA,23/08/2022,PE143456,325.00,0.00,various bee keeping equipment,Materials and Consumables,42002,
Wyre Council,http://opendatacommunities.org/doc/district-council/wyre,30/08/2022,People and Places,Cultural and Related Services,132A,PRESTON BRANCH LNWBKA,23/08/2022,PE143455,187.00,0.00,various bee keeping equipment,Materials and Consumables,42002,
Wyre Council,http://opendatacommunities.org/doc/district-council/wyre,30/08/2022,Resources,Housing General Fund,134A,HUWS GRAY LTD,18/08/2022,RS143415,12.96,0.00,Payment of invoice IC705449,Materials and Consumables,42002,
Wyre Council,http://opendatacommunities.org/doc/district-council/wyre,30/08/2022,People and Places,Support Services,135B,HUWS GRAY LTD,30/08/2022,PE143200,258.86,0.00,Materials,Materials and Consumables,42002,
Wyre Council,http://opendatacommunities.org/doc/district-council/wyre,30/08/2022,People and Places,Support Services,135B,HUWS GRAY LTD,30/08/2022,PE143200,367.88,0.00,Materials,Materials and Consumables,42002,
Wyre Council,http://opendatacommunities.org/doc/district-council/wyre,30/08/2022,People and Places,Support Services,135B,HUWS GRAY LTD,30/08/2022,PE143200,129.00,0.00,2 bags of Top soil @ 64.50 per bag,Materials and Consumables,42002,
Wyre Council,http://opendatacommunities.org/doc/district-council/wyre,30/08/2022,People and Places,Support Services,135B,HUWS GRAY LTD,30/08/2022,PE142541,143.36,0.00,Materials,Materials and Consumables,42002,
Wyre Council,http://opendatacommunities.org/doc/district-council/wyre,30/08/2022,People and Places,Support Services,135B,HUWS GRAY LTD,30/08/2022,PE142541,126.26,0.00,Materials,Materials and Consumables,42002,
Wyre Council,http://opendatacommunities.org/doc/district-council/wyre,30/08/2022,People and Places,Cultural and Related Services,132A,HUWS GRAY LTD,30/08/2022,PE142541,160.61,0.00,Keppel lane fencing,Materials and Consumables,42002,
Wyre Council,http://opendatacommunities.org/doc/district-council/wyre,30/08/2022,People and Places,Cultural and Related Services,132A,HUWS GRAY LTD,30/08/2022,PE142541,231.09,0.00,2 1 ton builders mix 25 x concrete flags,Materials and Consumables,42002,
Wyre Council,http://opendatacommunities.org/doc/district-council/wyre,30/08/2022,People and Places,Cultural and Related Services,132A,HUWS GRAY LTD,30/08/2022,PE142541,57.75,0.00,2 by 2 wood @3.6 2 x box screws,Materials and Consumables,42002,
Wyre Council,http://opendatacommunities.org/doc/district-council/wyre,30/08/2022,People and Places,Cultural and Related Services,132A,HUWS GRAY LTD,30/08/2022,PE143200,150.39,0.00,2 ton 20mm to dust  2 water carriers  5 post crete,Materials and Consumables,42002,
Wyre Council,http://opendatacommunities.org/doc/district-council/wyre,30/08/2022,People and Places,Cultural and Related Services,132A,HUWS GRAY LTD,30/08/2022,PE143200,97.04,0.00,2 ton 20mm and sand mix,Materials and Consumables,42002,
Wyre Council,http://opendatacommunities.org/doc/district-council/wyre,30/08/2022,People and Places,Cultural and Related Services,132A,HUWS GRAY LTD,30/08/2022,PE143200,286.86,0.00,10 x 9 by 2 4.8m 2 box  x 5`` screws,Materials and Consumables,42002,
Wyre Council,http://opendatacommunities.org/doc/district-council/wyre,30/08/2022,People and Places,Cultural and Related Services,132A,HUWS GRAY LTD,30/08/2022,PE143200,35.91,0.00,3 x decking boards,Materials and Consumables,42002,
Wyre Council,http://opendatacommunities.org/doc/district-council/wyre,30/08/2022,People and Places,Cultural and Related Services,132A,HUWS GRAY LTD,30/08/2022,PE142541,136.64,0.00,2 ton 20mm to dust  4 x bag cement 4 x sand,Materials and Consumables,42002,
Wyre Council,http://opendatacommunities.org/doc/district-council/wyre,30/08/2022,People and Places,Cultural and Related Services,132A,HUWS GRAY LTD,30/08/2022,PE142541,30.72,0.00,Various bolts and washers,Materials and Consumables,42002,
Wyre Council,http://opendatacommunities.org/doc/district-council/wyre,30/08/2022,People and Places,Corporate and Democratic Core,131A,Amazon Business,30/08/2022,PE143170,52.08,0.00,A Frame Display Board,Mayoral Hospitality,44401,
Wyre Council,http://opendatacommunities.org/doc/district-council/wyre,30/08/2022,Resources,Housing General Fund,134A,Mobility Care Services,31/08/2022,RS143586,133.00,0.00,REDACT,Minor Adaptations,45261,
Wyre Council,http://opendatacommunities.org/doc/district-council/wyre,30/08/2022,Resources,Housing General Fund,134A,Mobility Care Services,31/08/2022,PE143592,441.00,0.00,REDACT,Minor Adaptations,45261,
Wyre Council,http://opendatacommunities.org/doc/district-council/wyre,30/08/2022,Resources,Housing General Fund,134A,Mobility Care Services,31/08/2022,RS143595,154.00,0.00,REDACT,Minor Adaptations,45261,
Wyre Council,http://opendatacommunities.org/doc/district-council/wyre,30/08/2022,Resources,Housing General Fund,134A,Mobility Care Services,31/08/2022,RS143594,154.00,0.00,REDACT,Minor Adaptations,45261,
Wyre Council,http://opendatacommunities.org/doc/district-council/wyre,30/08/2022,Resources,Housing General Fund,134A,Mobility Care Services,31/08/2022,RS143593,154.00,0.00,REDACT,Minor Adaptations,45261,
Wyre Council,http://opendatacommunities.org/doc/district-council/wyre,30/08/2022,Resources,Housing General Fund,134A,Mobility Care Services,31/08/2022,RS143591,154.00,0.00,REDACT,Minor Adaptations,45261,
Wyre Council,http://opendatacommunities.org/doc/district-council/wyre,30/08/2022,Resources,Housing General Fund,134A,Mobility Care Services,31/08/2022,RS143590,534.00,0.00,REDACT,Minor Adaptations,45261,
Wyre Council,http://opendatacommunities.org/doc/district-council/wyre,30/08/2022,Resources,Housing General Fund,134A,Mobility Care Services,31/08/2022,RS143589,880.00,0.00,REDACT,Minor Adaptations,45261,
Wyre Council,http://opendatacommunities.org/doc/district-council/wyre,30/08/2022,Resources,Housing General Fund,134A,Mobility Care Services,31/08/2022,RS143588,287.00,0.00,REDACT,Minor Adaptations,45261,
Wyre Council,http://opendatacommunities.org/doc/district-council/wyre,30/08/2022,Resources,Housing General Fund,134A,Mobility Care Services,31/08/2022,RS143587,133.00,0.00,REDACT,Minor Adaptations,45261,
Wyre Council,http://opendatacommunities.org/doc/district-council/wyre,30/08/2022,Resources,Housing General Fund,134A,Mobility Care Services,31/08/2022,RS143597,462.00,0.00,REDACT,Minor Adaptations,45261,
Wyre Council,http://opendatacommunities.org/doc/district-council/wyre,30/08/2022,Resources,Housing General Fund,134A,Mobility Care Services,31/08/2022,RS143596,308.00,0.00,REDACT,Minor Adaptations,45261,
Wyre Council,http://opendatacommunities.org/doc/district-council/wyre,30/08/2022,Resources,Housing General Fund,134A,J A DICKENS LIMITED,24/08/2022,RS143487,60.00,0.00,REDACT,Minor Adaptations,45261,
Wyre Council,http://opendatacommunities.org/doc/district-council/wyre,30/08/2022,Resources,Housing General Fund,134A,J A DICKENS LIMITED,24/08/2022,RS143487,94.00,0.00,REDACT,Minor Adaptations,45261,
Wyre Council,http://opendatacommunities.org/doc/district-council/wyre,30/08/2022,Resources,Housing General Fund,134A,J A DICKENS LIMITED,24/08/2022,RS143488,130.00,0.00,REDACT,Minor Adaptations,45261,
Wyre Council,http://opendatacommunities.org/doc/district-council/wyre,30/08/2022,Resources,Housing General Fund,134A,J A DICKENS LIMITED,24/08/2022,RS143488,157.00,0.00,REDACT,Minor Adaptations,45261,
Wyre Council,http://opendatacommunities.org/doc/district-council/wyre,30/08/2022,Resources,Housing General Fund,134A,J A DICKENS LIMITED,24/08/2022,RS143489,60.00,0.00,REDACT,Minor Adaptations,45261,
Wyre Council,http://opendatacommunities.org/doc/district-council/wyre,30/08/2022,Resources,Housing General Fund,134A,J A DICKENS LIMITED,24/08/2022,RS143489,94.00,0.00,REDACT,Minor Adaptations,45261,
Wyre Council,http://opendatacommunities.org/doc/district-council/wyre,30/08/2022,Resources,Housing General Fund,134A,J A DICKENS LIMITED,24/08/2022,RS143490,60.00,0.00,REDACT,Minor Adaptations,45261,
Wyre Council,http://opendatacommunities.org/doc/district-council/wyre,30/08/2022,Resources,Housing General Fund,134A,J A DICKENS LIMITED,24/08/2022,RS143490,94.00,0.00,REDACT,Minor Adaptations,45261,
Wyre Council,http://opendatacommunities.org/doc/district-council/wyre,30/08/2022,Resources,Housing General Fund,134A,J A DICKENS LIMITED,24/08/2022,RS143491,60.00,0.00,REDACT,Minor Adaptations,45261,
Wyre Council,http://opendatacommunities.org/doc/district-council/wyre,30/08/2022,Resources,Housing General Fund,134A,J A DICKENS LIMITED,24/08/2022,RS143491,94.00,0.00,REDACT,Minor Adaptations,45261,
Wyre Council,http://opendatacommunities.org/doc/district-council/wyre,30/08/2022,Resources,Housing General Fund,134A,J A DICKENS LIMITED,24/08/2022,RS143492,60.00,0.00,REDACT,Minor Adaptations,45261,
Wyre Council,http://opendatacommunities.org/doc/district-council/wyre,30/08/2022,Resources,Housing General Fund,134A,J A DICKENS LIMITED,24/08/2022,RS143492,94.00,0.00,REDACT,Minor Adaptations,45261,
Wyre Council,http://opendatacommunities.org/doc/district-council/wyre,30/08/2022,Resources,Housing General Fund,134A,J A DICKENS LIMITED,24/08/2022,RS143502,150.00,0.00,REDACT,Minor Adaptations,45261,
Wyre Council,http://opendatacommunities.org/doc/district-council/wyre,30/08/2022,Resources,Housing General Fund,134A,J A DICKENS LIMITED,24/08/2022,RS143502,260.00,0.00,REDACT,Minor Adaptations,45261,
Wyre Council,http://opendatacommunities.org/doc/district-council/wyre,30/08/2022,Resources,Housing General Fund,134A,J A DICKENS LIMITED,24/08/2022,RS143503,279.00,0.00,REDACT,Minor Adaptations,45261,
Wyre Council,http://opendatacommunities.org/doc/district-council/wyre,30/08/2022,Resources,Housing General Fund,134A,J A DICKENS LIMITED,24/08/2022,RS143503,120.00,0.00,REDACT,Minor Adaptations,45261,
Wyre Council,http://opendatacommunities.org/doc/district-council/wyre,30/08/2022,Resources,Housing General Fund,134A,J A DICKENS LIMITED,24/08/2022,RS143504,300.00,0.00,REDACT,Minor Adaptations,45261,
Wyre Council,http://opendatacommunities.org/doc/district-council/wyre,30/08/2022,Resources,Housing General Fund,134A,J A DICKENS LIMITED,24/08/2022,RS143496,60.00,0.00,REDACT,Minor Adaptations,45261,
Wyre Council,http://opendatacommunities.org/doc/district-council/wyre,30/08/2022,Resources,Housing General Fund,134A,J A DICKENS LIMITED,24/08/2022,RS143496,73.00,0.00,REDACT,Minor Adaptations,45261,
Wyre Council,http://opendatacommunities.org/doc/district-council/wyre,30/08/2022,Resources,Housing General Fund,134A,J A DICKENS LIMITED,24/08/2022,RS143497,60.00,0.00,REDACT,Minor Adaptations,45261,
Wyre Council,http://opendatacommunities.org/doc/district-council/wyre,30/08/2022,Resources,Housing General Fund,134A,J A DICKENS LIMITED,24/08/2022,RS143497,73.00,0.00,REDACT,Minor Adaptations,45261,
Wyre Council,http://opendatacommunities.org/doc/district-council/wyre,30/08/2022,Resources,Housing General Fund,134A,J A DICKENS LIMITED,24/08/2022,RS143498,80.00,0.00,REDACT,Minor Adaptations,45261,
Wyre Council,http://opendatacommunities.org/doc/district-council/wyre,30/08/2022,Resources,Housing General Fund,134A,J A DICKENS LIMITED,24/08/2022,RS143498,228.00,0.00,REDACT,Minor Adaptations,45261,
Wyre Council,http://opendatacommunities.org/doc/district-council/wyre,30/08/2022,Resources,Housing General Fund,134A,J A DICKENS LIMITED,24/08/2022,RS143499,80.00,0.00,REDACT,Minor Adaptations,45261,
Wyre Council,http://opendatacommunities.org/doc/district-council/wyre,30/08/2022,Resources,Housing General Fund,134A,J A DICKENS LIMITED,24/08/2022,RS143499,228.00,0.00,REDACT,Minor Adaptations,45261,
Wyre Council,http://opendatacommunities.org/doc/district-council/wyre,30/08/2022,Resources,Housing General Fund,134A,J A DICKENS LIMITED,24/08/2022,RS143500,80.00,0.00,REDACT,Minor Adaptations,45261,
Wyre Council,http://opendatacommunities.org/doc/district-council/wyre,30/08/2022,Resources,Housing General Fund,134A,J A DICKENS LIMITED,24/08/2022,RS143500,228.00,0.00,REDACT,Minor Adaptations,45261,
Wyre Council,http://opendatacommunities.org/doc/district-council/wyre,30/08/2022,Resources,Housing General Fund,134A,J A DICKENS LIMITED,24/08/2022,RS143505,362.00,0.00,REDACT,Minor Adaptations,45261,
Wyre Council,http://opendatacommunities.org/doc/district-council/wyre,30/08/2022,Resources,Housing General Fund,134A,J A DICKENS LIMITED,24/08/2022,RS143506,133.00,0.00,REDACT,Minor Adaptations,45261,
Wyre Council,http://opendatacommunities.org/doc/district-council/wyre,30/08/2022,Resources,Housing General Fund,134A,J A DICKENS LIMITED,24/08/2022,RS143506,308.00,0.00,REDACT,Minor Adaptations,45261,
Wyre Council,http://opendatacommunities.org/doc/district-council/wyre,30/08/2022,Resources,Housing General Fund,134A,J A DICKENS LIMITED,24/08/2022,RS143501,300.00,0.00,REDACT,Minor Adaptations,45261,
Wyre Council,http://opendatacommunities.org/doc/district-council/wyre,30/08/2022,Resources,Housing General Fund,134A,J A DICKENS LIMITED,24/08/2022,RS143501,480.00,0.00,REDACT,Minor Adaptations,45261,
Wyre Council,http://opendatacommunities.org/doc/district-council/wyre,30/08/2022,Resources,Housing General Fund,134A,J A DICKENS LIMITED,24/08/2022,RS143504,320.00,0.00,REDACT,Minor Adaptations,45261,
Wyre Council,http://opendatacommunities.org/doc/district-council/wyre,30/08/2022,Resources,Housing General Fund,134A,J A DICKENS LIMITED,24/08/2022,RS143493,60.00,0.00,REDACT,Minor Adaptations,45261,
Wyre Council,http://opendatacommunities.org/doc/district-council/wyre,30/08/2022,Resources,Housing General Fund,134A,J A DICKENS LIMITED,24/08/2022,RS143493,94.00,0.00,REDACT,Minor Adaptations,45261,
Wyre Council,http://opendatacommunities.org/doc/district-council/wyre,30/08/2022,Resources,Housing General Fund,134A,J A DICKENS LIMITED,24/08/2022,RS143494,60.00,0.00,REDACT,Minor Adaptations,45261,
Wyre Council,http://opendatacommunities.org/doc/district-council/wyre,30/08/2022,Resources,Housing General Fund,134A,J A DICKENS LIMITED,24/08/2022,RS143494,94.00,0.00,REDACT,Minor Adaptations,45261,
Wyre Council,http://opendatacommunities.org/doc/district-council/wyre,30/08/2022,Resources,Housing General Fund,134A,J A DICKENS LIMITED,24/08/2022,RS143495,60.00,0.00,REDACT,Minor Adaptations,45261,
Wyre Council,http://opendatacommunities.org/doc/district-council/wyre,30/08/2022,Resources,Housing General Fund,134A,J A DICKENS LIMITED,24/08/2022,RS143495,73.00,0.00,REDACT,Minor Adaptations,45261,
Wyre Council,http://opendatacommunities.org/doc/district-council/wyre,30/08/2022,Resources,Housing General Fund,134A,J A DICKENS LIMITED,24/08/2022,RS143505,100.00,0.00,REDACT,Minor Adaptations,45261,
Wyre Council,http://opendatacommunities.org/doc/district-council/wyre,30/08/2022,Resources,Current Liabilities,130C,"Department for Business, Energy & Industrial Strat",23/08/2022,RS143524,442703.00,0.00,OHLG Grant (ref: OHL22305),Miscellaneous Debits,01600,
Wyre Council,http://opendatacommunities.org/doc/district-council/wyre,30/08/2022,Resources,Cultural and Related Services,132A,VODAFONE LIMITED,15/08/2022,RS142964,33.00,0.00,Monthly Charges,Mobile Devices,43103,
Wyre Council,http://opendatacommunities.org/doc/district-council/wyre,30/08/2022,Resources,Cultural and Related Services,132A,VODAFONE LIMITED,15/08/2022,RS142964,33.00,0.00,Monthly Charges,Mobile Devices,43103,
Wyre Council,http://opendatacommunities.org/doc/district-council/wyre,30/08/2022,Resources,Central Services to the Public,131C,VODAFONE LIMITED,15/08/2022,RS142964,12.00,0.00,Monthly Charges,Mobile Devices,43103,
Wyre Council,http://opendatacommunities.org/doc/district-council/wyre,30/08/2022,Resources,Support Services,135B,VODAFONE LIMITED,15/08/2022,RS142964,12.00,0.00,Monthly Charges,Mobile Devices,43103,
Wyre Council,http://opendatacommunities.org/doc/district-council/wyre,30/08/2022,Resources,Support Services,135B,VODAFONE LIMITED,15/08/2022,RS142964,12.00,0.00,Monthly Charges,Mobile Devices,43103,
Wyre Council,http://opendatacommunities.org/doc/district-council/wyre,30/08/2022,Resources,Support Services,135B,VODAFONE LIMITED,15/08/2022,RS142964,12.00,0.00,Monthly Charges,Mobile Devices,43103,
Wyre Council,http://opendatacommunities.org/doc/district-council/wyre,30/08/2022,Resources,Support Services,135B,VODAFONE LIMITED,15/08/2022,RS142964,85.00,0.00,Monthly Charges,Mobile Devices,43103,
Wyre Council,http://opendatacommunities.org/doc/district-council/wyre,30/08/2022,Resources,Support Services,135B,VODAFONE LIMITED,15/08/2022,RS142964,205.00,0.00,Monthly Charges,Mobile Devices,43103,
Wyre Council,http://opendatacommunities.org/doc/district-council/wyre,30/08/2022,Resources,Support Services,135B,VODAFONE LIMITED,15/08/2022,RS142964,12.00,0.00,Monthly Charges,Mobile Devices,43103,
Wyre Council,http://opendatacommunities.org/doc/district-council/wyre,30/08/2022,Resources,Support Services,135B,VODAFONE LIMITED,15/08/2022,RS142964,12.00,0.00,Monthly Charges,Mobile Devices,43103,
Wyre Council,http://opendatacommunities.org/doc/district-council/wyre,30/08/2022,Resources,Environmental Services,132B,VODAFONE LIMITED,15/08/2022,RS142964,117.00,0.00,Monthly Charges,Mobile Devices,43103,
Wyre Council,http://opendatacommunities.org/doc/district-council/wyre,30/08/2022,Resources,Central Services to the Public,131C,VODAFONE LIMITED,15/08/2022,RS142964,12.00,0.00,Monthly Charges,Mobile Devices,43103,
Wyre Council,http://opendatacommunities.org/doc/district-council/wyre,30/08/2022,Resources,Support Services,135B,VODAFONE LIMITED,15/08/2022,RS142964,16.00,0.00,Monthly Charges,Mobile Devices,43103,
Wyre Council,http://opendatacommunities.org/doc/district-council/wyre,30/08/2022,Resources,Corporate and Democratic Core,131A,VODAFONE LIMITED,15/08/2022,RS142964,12.00,0.00,Monthly Charges,Mobile Devices,43103,
Wyre Council,http://opendatacommunities.org/doc/district-council/wyre,30/08/2022,Resources,Support Services,135B,VODAFONE LIMITED,15/08/2022,RS142964,52.00,0.00,Monthly Charges,Mobile Devices,43103,
Wyre Council,http://opendatacommunities.org/doc/district-council/wyre,30/08/2022,Resources,Support Services,135B,VODAFONE LIMITED,15/08/2022,RS142964,12.00,0.00,Monthly Charges,Mobile Devices,43103,
Wyre Council,http://opendatacommunities.org/doc/district-council/wyre,30/08/2022,Resources,Support Services,135B,VODAFONE LIMITED,15/08/2022,RS142964,216.31,0.00,Monthly Charges,Mobile Devices,43103,
Wyre Council,http://opendatacommunities.org/doc/district-council/wyre,30/08/2022,Resources,Support Services,135B,VODAFONE LIMITED,15/08/2022,RS142964,12.00,0.00,Monthly Charges,Mobile Devices,43103,
Wyre Council,http://opendatacommunities.org/doc/district-council/wyre,30/08/2022,Resources,Environmental Services,132B,VODAFONE LIMITED,15/08/2022,RS142964,37.00,0.00,Monthly Charges,Mobile Devices,43103,
Wyre Council,http://opendatacommunities.org/doc/district-council/wyre,30/08/2022,Resources,Planning and Development Servs,132C,VODAFONE LIMITED,15/08/2022,RS142964,12.00,0.00,Monthly Charges,Mobile Devices,43103,
Wyre Council,http://opendatacommunities.org/doc/district-council/wyre,30/08/2022,Resources,Housing General Fund,134A,VODAFONE LIMITED,15/08/2022,RS142964,64.00,0.00,Monthly Charges,Mobile Devices,43103,
Wyre Council,http://opendatacommunities.org/doc/district-council/wyre,30/08/2022,Resources,Housing General Fund,134A,VODAFONE LIMITED,15/08/2022,RS142964,4.00,0.00,Monthly Charges,Mobile Devices,43103,
Wyre Council,http://opendatacommunities.org/doc/district-council/wyre,30/08/2022,Resources,Support Services,135B,VODAFONE LIMITED,15/08/2022,RS142964,36.00,0.00,Monthly Charges,Mobile Devices,43103,
Wyre Council,http://opendatacommunities.org/doc/district-council/wyre,30/08/2022,Resources,Support Services,135B,VODAFONE LIMITED,15/08/2022,RS142964,217.00,0.00,Monthly Charges,Mobile Devices,43103,
Wyre Council,http://opendatacommunities.org/doc/district-council/wyre,30/08/2022,Resources,Support Services,135B,VODAFONE LIMITED,15/08/2022,RS142964,57.00,0.00,Monthly Charges,Mobile Devices,43103,
Wyre Council,http://opendatacommunities.org/doc/district-council/wyre,30/08/2022,Resources,Support Services,135B,VODAFONE LIMITED,15/08/2022,RS142964,53.00,0.00,Monthly Charges,Mobile Devices,43103,
Wyre Council,http://opendatacommunities.org/doc/district-council/wyre,30/08/2022,Resources,Support Services,135B,VODAFONE LIMITED,15/08/2022,RS142964,12.00,0.00,Monthly Charges,Mobile Devices,43103,
Wyre Council,http://opendatacommunities.org/doc/district-council/wyre,30/08/2022,Resources,Support Services,135B,VODAFONE LIMITED,15/08/2022,RS142964,114.48,0.00,Monthly Charges,Mobile Devices,43103,
Wyre Council,http://opendatacommunities.org/doc/district-council/wyre,30/08/2022,Resources,Support Services,135B,VODAFONE LIMITED,15/08/2022,RS142964,136.00,0.00,Monthly Charges,Mobile Devices,43103,
Wyre Council,http://opendatacommunities.org/doc/district-council/wyre,30/08/2022,Resources,Cultural and Related Services,132A,VODAFONE LIMITED,15/08/2022,RS142964,4.00,0.00,Monthly Charges,Mobile Devices,43103,
Wyre Council,http://opendatacommunities.org/doc/district-council/wyre,30/08/2022,Resources,Support Services,135B,VODAFONE LIMITED,15/08/2022,RS142964,58.40,0.00,Monthly Charges,Mobile Devices,43103,
Wyre Council,http://opendatacommunities.org/doc/district-council/wyre,30/08/2022,Resources,Support Services,135B,VODAFONE LIMITED,15/08/2022,RS142964,159.00,0.00,Monthly Charges,Mobile Devices,43103,
Wyre Council,http://opendatacommunities.org/doc/district-council/wyre,30/08/2022,Resources,Support Services,135B,VODAFONE LIMITED,15/08/2022,RS142964,26.71,0.00,Monthly Charges,Mobile Devices,43103,
Wyre Council,http://opendatacommunities.org/doc/district-council/wyre,30/08/2022,People and Places,Highways,133B,Andrew Signs LTD,31/08/2022,PE143621,243.00,0.00,full payment of  INV-1263 - goods already received,Naming of Streets,28023,
Wyre Council,http://opendatacommunities.org/doc/district-council/wyre,30/08/2022,Finance,Current Assets,130B,,04/08/2022,WPST00066635,20762.52,0.00,nndr refunds 22/7,NNDR Refunds,01200,
Wyre Council,http://opendatacommunities.org/doc/district-council/wyre,30/08/2022,Finance,Current Assets,130B,,09/08/2022,WPST00067459,41518.28,0.00,29/7 REFUNDS,NNDR Refunds,01200,
Wyre Council,http://opendatacommunities.org/doc/district-council/wyre,30/08/2022,Finance,Current Assets,130B,,15/08/2022,WPST00068219,14264.71,0.00,nndr refunds 5/8,NNDR Refunds,01200,
Wyre Council,http://opendatacommunities.org/doc/district-council/wyre,30/08/2022,Finance,Collection Fund Revenue Accts,138A,DEPARTMENT FOR COMMUNITIES AND LOCAL GOVERNMENT,30/08/2022,WPST00071002,866408.00,0.00,DLUHC-BUSINESS RATES CENTRAL SHARE 22/8,NNDR Tariff to Government,54000,
Wyre Council,http://opendatacommunities.org/doc/district-council/wyre,30/08/2022,Finance,General Fund below the line,136A,DEPARTMENT FOR COMMUNITIES AND LOCAL GOVERNMENT,30/08/2022,WPST00071000,547001.00,0.00,rvbc - 22/8,NNDR Tariff to Government,54000,
Wyre Council,http://opendatacommunities.org/doc/district-council/wyre,30/08/2022,People and Places,Environmental Services,132B,DANFO (UK) LTD,09/08/2022,PE143229,21763.10,0.00,Public Conveniences - Maintenance and Cleaning 2022/23,Other Establishments,56000,
Wyre Council,http://opendatacommunities.org/doc/district-council/wyre,30/08/2022,People and Places,Parking Services,133F,CHIPSIDE LTD,02/08/2022,PE143042,668.28,0.00,Provision of Services for June 2022,Other Local Authorities,52000,
Wyre Council,http://opendatacommunities.org/doc/district-council/wyre,30/08/2022,People and Places,Parking Services,133F,Park Now Limited,30/08/2022,PE143443,553.94,0.00,Ring Charges for July 2022,Other Parking Fees and Commission,42622,
Wyre Council,http://opendatacommunities.org/doc/district-council/wyre,30/08/2022,People and Places,Environmental Services,132B,D Hollowell & Sons LTD,02/08/2022,PE143018,875.00,0.00,REDACT,Other Rechargeable Services,46812,
Wyre Council,http://opendatacommunities.org/doc/district-council/wyre,30/08/2022,People and Places,Environmental Services,132B,D Hollowell & Sons LTD,04/08/2022,PE143025,875.00,0.00,REDACT,Other Rechargeable Services,46812,
Wyre Council,http://opendatacommunities.org/doc/district-council/wyre,30/08/2022,People and Places,Parking Services,133F,Andrew Signs LTD,31/08/2022,PE143621,22.50,0.00,full payment of  INV-1263 - goods already received,"Paths, Roads and Car Park Mtnce Annual",28050,
Wyre Council,http://opendatacommunities.org/doc/district-council/wyre,30/08/2022,Finance,Corporate and Democratic Core,131A,LANCASHIRE COUNTY COUNCIL,09/08/2022,WPST00067455,15447.93,0.00,,Pension Increase Act Payments,19004,
Wyre Council,http://opendatacommunities.org/doc/district-council/wyre,30/08/2022,People and Places,Support Services,135B,Allstar Business Solutions LTD,11/08/2022,PE142965,7.15,0.00,Late Payment Fee,Petrol,30511,
Wyre Council,http://opendatacommunities.org/doc/district-council/wyre,30/08/2022,People and Places,Support Services,135B,Allstar Business Solutions LTD,11/08/2022,PE143155,50.77,0.00,Fuel Charges,Petrol,30511,
Wyre Council,http://opendatacommunities.org/doc/district-council/wyre,30/08/2022,People and Places,Support Services,135B,Allstar Business Solutions LTD,11/08/2022,PE142965,7.15,0.00,Late Payment Fee,Petrol,30511,
Wyre Council,http://opendatacommunities.org/doc/district-council/wyre,30/08/2022,People and Places,Support Services,135B,Allstar Business Solutions LTD,11/08/2022,PE142965,65.04,0.00,Fuel Charges,Petrol,30511,
Wyre Council,http://opendatacommunities.org/doc/district-council/wyre,30/08/2022,People and Places,Support Services,135B,Allstar Business Solutions LTD,31/08/2022,PE143507,144.17,0.00,Monthly Fuel Charges,Petrol,30511,
Wyre Council,http://opendatacommunities.org/doc/district-council/wyre,30/08/2022,People and Places,Support Services,135B,Allstar Business Solutions LTD,31/08/2022,PE143507,168.22,0.00,Monthly Fuel Charges,Petrol,30511,
Wyre Council,http://opendatacommunities.org/doc/district-council/wyre,30/08/2022,People and Places,Support Services,135B,Allstar Business Solutions LTD,11/08/2022,PE142965,200.06,0.00,Fuel Charges,Petrol,30511,
Wyre Council,http://opendatacommunities.org/doc/district-council/wyre,30/08/2022,People and Places,Support Services,135B,Allstar Business Solutions LTD,11/08/2022,PE142965,7.14,0.00,Late Payment Fee,Petrol,30511,
Wyre Council,http://opendatacommunities.org/doc/district-council/wyre,30/08/2022,People and Places,Support Services,135B,Allstar Business Solutions LTD,11/08/2022,PE143155,129.94,0.00,Fuel Charges,Petrol,30511,
Wyre Council,http://opendatacommunities.org/doc/district-council/wyre,30/08/2022,People and Places,Support Services,135B,Allstar Business Solutions LTD,31/08/2022,PE143507,80.37,0.00,Monthly Fuel Charges,Petrol,30511,
Wyre Council,http://opendatacommunities.org/doc/district-council/wyre,30/08/2022,People and Places,Support Services,135B,Allstar Business Solutions LTD,11/08/2022,PE142965,167.21,0.00,Fuel Charges,Petrol,30511,
Wyre Council,http://opendatacommunities.org/doc/district-council/wyre,30/08/2022,People and Places,Support Services,135B,Allstar Business Solutions LTD,11/08/2022,PE143155,84.48,0.00,Fuel Charges,Petrol,30511,
Wyre Council,http://opendatacommunities.org/doc/district-council/wyre,30/08/2022,People and Places,Support Services,135B,Allstar Business Solutions LTD,11/08/2022,PE142965,7.14,0.00,Late Payment Fee,Petrol,30511,
Wyre Council,http://opendatacommunities.org/doc/district-council/wyre,30/08/2022,People and Places,Support Services,135B,Allstar Business Solutions LTD,11/08/2022,PE142965,139.52,0.00,Fuel Charges,Petrol,30511,
Wyre Council,http://opendatacommunities.org/doc/district-council/wyre,30/08/2022,People and Places,Support Services,135B,Allstar Business Solutions LTD,31/08/2022,PE143507,106.38,0.00,Monthly Fuel Charges,Petrol,30511,
Wyre Council,http://opendatacommunities.org/doc/district-council/wyre,30/08/2022,People and Places,Support Services,135B,Allstar Business Solutions LTD,31/08/2022,PE143507,60.90,0.00,Monthly Fuel Charges,Petrol,30511,
Wyre Council,http://opendatacommunities.org/doc/district-council/wyre,30/08/2022,People and Places,Support Services,135B,Allstar Business Solutions LTD,11/08/2022,PE143155,123.05,0.00,Fuel Charges,Petrol,30511,
Wyre Council,http://opendatacommunities.org/doc/district-council/wyre,30/08/2022,People and Places,Support Services,135B,Allstar Business Solutions LTD,11/08/2022,PE142965,67.56,0.00,Fuel Charges,Petrol,30511,
Wyre Council,http://opendatacommunities.org/doc/district-council/wyre,30/08/2022,People and Places,Support Services,135B,Allstar Business Solutions LTD,11/08/2022,PE142965,7.14,0.00,Late Payment Fee,Petrol,30511,
Wyre Council,http://opendatacommunities.org/doc/district-council/wyre,30/08/2022,People and Places,Support Services,135B,M D Security,31/08/2022,PE143564,60.00,0.00,Carried out emergency light test for month 08/22 at Civic Centre,Planned Building Maintenance,21000,
Wyre Council,http://opendatacommunities.org/doc/district-council/wyre,30/08/2022,People and Places,Planning and Development Servs,132C,COWLEY FIRE,09/08/2022,PE143131,701.32,0.00,Fire Safety Equipment,Planned Building Maintenance,21000,
Wyre Council,http://opendatacommunities.org/doc/district-council/wyre,30/08/2022,Finance,Central Services to the Public,131C,SANTANDER,11/08/2022,WPST00067933,833.90,0.00,santander 04/08,Plastic Cards Processing Fees,42608,
Wyre Council,http://opendatacommunities.org/doc/district-council/wyre,30/08/2022,People and Places,Support Services,135B,GB  Sport & Leisure UK LTD,24/08/2022,PE143540,1584.00,0.00,SP-01-011 Pod Cradle Seat 8mm,Playground Equipment,40201,
Wyre Council,http://opendatacommunities.org/doc/district-council/wyre,30/08/2022,People and Places,Support Services,135B,GB  Sport & Leisure UK LTD,24/08/2022,PE143540,148.00,0.00,SP-02-007 Flat Seat Tail Chains - pair,Playground Equipment,40201,
Wyre Council,http://opendatacommunities.org/doc/district-council/wyre,30/08/2022,People and Places,Support Services,135B,GB  Sport & Leisure UK LTD,24/08/2022,PE143540,147.22,0.00,Delivery,Playground Equipment,40201,
Wyre Council,http://opendatacommunities.org/doc/district-council/wyre,30/08/2022,Resources,Central Services to the Public,131C,Critiqom LTD,31/08/2022,RS143616,2945.17,0.00,Household Support Fund,Postage,43000,
Wyre Council,http://opendatacommunities.org/doc/district-council/wyre,30/08/2022,Resources,Housing General Fund,134A,Critiqom LTD,31/08/2022,RS143616,34.98,0.00,Benefit Notifications,Postage,43000,
Wyre Council,http://opendatacommunities.org/doc/district-council/wyre,30/08/2022,Resources,Housing General Fund,134A,Critiqom LTD,31/08/2022,RS143574,131.20,0.00,Benefit Notifications,Postage,43000,
Wyre Council,http://opendatacommunities.org/doc/district-council/wyre,30/08/2022,Resources,Support Services,135B,Critiqom LTD,31/08/2022,RS143616,568.18,0.00,IQ post - CC,Postage,43000,
Wyre Council,http://opendatacommunities.org/doc/district-council/wyre,30/08/2022,Resources,Support Services,135B,Critiqom LTD,31/08/2022,RS143616,213.94,0.00,IQ Post - Planning,Postage,43000,
Wyre Council,http://opendatacommunities.org/doc/district-council/wyre,30/08/2022,Resources,Support Services,135B,Critiqom LTD,31/08/2022,RS143616,253.89,0.00,IQ post - Off Serv Admin,Postage,43000,
Wyre Council,http://opendatacommunities.org/doc/district-council/wyre,30/08/2022,Resources,Support Services,135B,Critiqom LTD,31/08/2022,RS143616,5.14,0.00,IQ post - Recovery,Postage,43000,
Wyre Council,http://opendatacommunities.org/doc/district-council/wyre,30/08/2022,Resources,Central Services to the Public,131C,Critiqom LTD,31/08/2022,RS143574,1487.57,0.00,Daily Bills,Postage,43000,
Wyre Council,http://opendatacommunities.org/doc/district-council/wyre,30/08/2022,Resources,Central Services to the Public,131C,Critiqom LTD,31/08/2022,RS143616,363.28,0.00,Daily Bills,Postage,43000,
Wyre Council,http://opendatacommunities.org/doc/district-council/wyre,30/08/2022,Resources,Central Services to the Public,131C,Critiqom LTD,31/08/2022,RS143616,97.28,0.00,IQ post - Electoral,Postage,43000,
Wyre Council,http://opendatacommunities.org/doc/district-council/wyre,30/08/2022,Resources,Central Services to the Public,131C,Print Image Facilities LLP,24/08/2022,RS143550,16753.62,0.00,Canvass 2022 Postage CCA,Postage,43000,
Wyre Council,http://opendatacommunities.org/doc/district-council/wyre,30/08/2022,Resources,Central Services to the Public,131C,Print Image Facilities LLP,24/08/2022,RS143550,4864.46,0.00,CF - Mailsorted,Postage,43000,
Wyre Council,http://opendatacommunities.org/doc/district-council/wyre,30/08/2022,Resources,Central Services to the Public,131C,Print Image Facilities LLP,24/08/2022,RS143550,1.65,0.00,Standard Tariff,Postage,43000,
Wyre Council,http://opendatacommunities.org/doc/district-council/wyre,30/08/2022,People and Places,Environmental Services,132B,PermiServ Ltd,08/08/2022,PE143214,4121.10,0.00,"Production, postage and management of green waste subscription stickers/portal as per Lancashire agreement.Please leave PO open and it will be drawn off each month",Postage,43000,
Wyre Council,http://opendatacommunities.org/doc/district-council/wyre,30/08/2022,Resources,Environmental Services,132B,PermiServ Ltd,08/08/2022,RS142671,3.80,0.00,"Production, postage and management of green waste subscription stickers/portal as per Lancashire agreement.  Please leave PO open and it will be drawn off each month",Postage,43000,
Wyre Council,http://opendatacommunities.org/doc/district-council/wyre,30/08/2022,People and Places,Cultural and Related Services,132A,Bates Office Services Ltd,01/08/2022,PE142953,136.00,0.00,SECOND CLASS POSTAGE STAMPS BOOK OF 100,Postage,43000,
Wyre Council,http://opendatacommunities.org/doc/district-council/wyre,30/08/2022,Resources,Central Services to the Public,131C,Post Office Limited,31/08/2022,RS143568,446.60,0.00,Payout Scheme 065 01/07/22-31/07/22,Postage,43000,
Wyre Council,http://opendatacommunities.org/doc/district-council/wyre,30/08/2022,Resources,Central Services to the Public,131C,Print Image Network LTD,11/08/2022,RS143292,1462.00,0.00,Preesall Ward By-Election 18 August 2022Poll Cards Printing - 4426,Printing,42000,
Wyre Council,http://opendatacommunities.org/doc/district-council/wyre,30/08/2022,Finance,Housing General Fund,134A,,22/08/2022,WPST00068999,12063.25,0.00,homes for ukraine payment - 12/8,Private Contractors,57000,
Wyre Council,http://opendatacommunities.org/doc/district-council/wyre,30/08/2022,People and Places,Support Services,135B,The Tom Lucas Partnership,31/08/2022,PE143617,500.00,0.00,preparation of feasibility study for covid memorial garden,Private Contractors,57000,
Wyre Council,http://opendatacommunities.org/doc/district-council/wyre,30/08/2022,People and Places,Public Transport,133G,Wyre Marine Services,03/08/2022,PE143090,17370.00,0.00,"Fleetwood - Knott End Ferry Service. Schedule of payments  12 April 2022             - 11 May 2022                        �,8685.00 12 May 2022             - 11 June 2022                       8,685.00 12 June 2022            - 11 July 2022",Private Contractors,57000,
Wyre Council,http://opendatacommunities.org/doc/district-council/wyre,30/08/2022,Resources,Parking Services,133F,NSL Services Group,09/08/2022,RS143244,5153.77,0.00,Variable Car Park Fee,Private Contractors,57000,
Wyre Council,http://opendatacommunities.org/doc/district-council/wyre,30/08/2022,People and Places,Parking Services,133F,CHIPSIDE LTD,24/08/2022,PE143509,818.76,0.00,Processing and postage services for July 2022,Private Contractors,57000,
Wyre Council,http://opendatacommunities.org/doc/district-council/wyre,30/08/2022,People and Places,Parking Services,133F,CHIPSIDE LTD,10/08/2022,PE143266,30.00,0.00,Provide 2 no 500mb SiMS for Wyre handheld units 1 April 2022 - 31 March 2023,Private Contractors,57000,
Wyre Council,http://opendatacommunities.org/doc/district-council/wyre,30/08/2022,People and Places,Parking Services,133F,CHIPSIDE LTD,10/08/2022,PE143236,49.30,0.00,Wyre Council parking - Bank Transaction Fees 1 April 2022 - 31 March 2023,Private Contractors,57000,
Wyre Council,http://opendatacommunities.org/doc/district-council/wyre,30/08/2022,People and Places,Planning and Development Servs,132C,National World Publishing Ltd,16/08/2022,PE143355,425.18,0.00,Jubilee event adverts x 3 and front strip,Promotions - General,46104,
Wyre Council,http://opendatacommunities.org/doc/district-council/wyre,30/08/2022,Resources,Planning and Development Servs,132C,Preston City Council,02/08/2022,RS143083,60.84,0.00,  3 x Bus stop 6-sheet posters  Cleveleys Market,Promotions - General,46104,
Wyre Council,http://opendatacommunities.org/doc/district-council/wyre,30/08/2022,Resources,Planning and Development Servs,132C,Preston City Council,02/08/2022,RS143083,82.50,0.00,2000 leaflets,Promotions - General,46104,
Wyre Council,http://opendatacommunities.org/doc/district-council/wyre,30/08/2022,Resources,Planning and Development Servs,132C,Yandell Publishing LTD,30/08/2022,RS142493,510.00,0.00,Full Page for Coach and Groups Summer 2,Promotions - General,46104,
Wyre Council,http://opendatacommunities.org/doc/district-council/wyre,30/08/2022,Resources,Environmental Services,132B,Critiqom LTD,31/08/2022,RS143616,2991.28,0.00,Green Waste Final Reminder Letter,Promotions - General,46104,
Wyre Council,http://opendatacommunities.org/doc/district-council/wyre,30/08/2022,People and Places,Environmental Services,132B,PermiServ Ltd,08/08/2022,PE143214,4121.10,0.00,"Production, postage and management of green waste subscription stickers/portal as per Lancashire agreement.Please leave PO open and it will be drawn off each month",Promotions - General,46104,
Wyre Council,http://opendatacommunities.org/doc/district-council/wyre,30/08/2022,Resources,Environmental Services,132B,PermiServ Ltd,08/08/2022,RS142671,3.80,0.00,"Production, postage and management of green waste subscription stickers/portal as per Lancashire agreement.  Please leave PO open and it will be drawn off each month",Promotions - General,46104,
Wyre Council,http://opendatacommunities.org/doc/district-council/wyre,30/08/2022,People and Places,Planning and Development Servs,132C,Be Inspired,10/08/2022,PE143251,325.00,0.00,Full Page July,Promotions - General,46104,
Wyre Council,http://opendatacommunities.org/doc/district-council/wyre,30/08/2022,Resources,Planning and Development Servs,132C,Amazon Business,03/08/2022,RS142644,15.82,0.00,Warm White balloons,Promotions - General,46104,
Wyre Council,http://opendatacommunities.org/doc/district-council/wyre,30/08/2022,Resources,Planning and Development Servs,132C,Amazon Business,03/08/2022,RS142644,4.16,0.00,Shipping charges,Promotions - General,46104,
Wyre Council,http://opendatacommunities.org/doc/district-council/wyre,30/08/2022,People and Places,Support Services,135B,Key Engineering & Hygiene Supplies LTD,30/08/2022,PE143356,31.32,0.00,Clothing,Protective Clothing,41600,
Wyre Council,http://opendatacommunities.org/doc/district-council/wyre,30/08/2022,People and Places,Support Services,135B,Key Engineering & Hygiene Supplies LTD,30/08/2022,PE143356,68.58,0.00,"URGENT SUPPLY AND DELIVER TRA152BLACKL 2 REGATTA WOMANS CLASSIC 3 IN 1 JACKET BLACK LARGE (14) 32.29 EACH 64.58 LOGOEMB/WYRECOUNCIL 2 EMBROIDERED LOGO FOR WYRE COUNCIL 2.00 EACH 4.00 68.58   DELIVERY TO WYRE COUNCIL, COPSE ROAD DEPOT, COPSE ROAD, FLEETWOO",Protective Clothing,41600,
Wyre Council,http://opendatacommunities.org/doc/district-council/wyre,30/08/2022,People and Places,Support Services,135B,Key Engineering & Hygiene Supplies LTD,22/08/2022,PE143110,6.00,0.00,3 Wyre emb logo to the front of each shirt @ 2.00 each,Protective Clothing,41600,
Wyre Council,http://opendatacommunities.org/doc/district-council/wyre,30/08/2022,People and Places,Support Services,135B,Key Engineering & Hygiene Supplies LTD,22/08/2022,PE143110,41.04,0.00,"8 x Hi-vis yellow vests with Wyre logo to front and rear in size 3XL @ 5.13 inc logo   Delivery to Wyre Council, Copse Road Depot, Copse Road, Fleetwood, FY7 6RP.",Protective Clothing,41600,
Wyre Council,http://opendatacommunities.org/doc/district-council/wyre,30/08/2022,People and Places,Support Services,135B,Key Engineering & Hygiene Supplies LTD,22/08/2022,PE143110,51.48,0.00,"Urgent supply   3 x Premium Disley Williams Pilot Men`s white short-sleeve shirts, made from 155g/m2 fabric (65% polyester, 35% Cotton) @ 17.16 each",Protective Clothing,41600,
Wyre Council,http://opendatacommunities.org/doc/district-council/wyre,30/08/2022,People and Places,Support Services,135B,Key Engineering & Hygiene Supplies LTD,30/08/2022,PE143111,37.89,0.00,FW17BRR42 Steelite Welted Safety Boot Brown SIZE 8,Protective Clothing,41600,
Wyre Council,http://opendatacommunities.org/doc/district-council/wyre,30/08/2022,People and Places,Environmental Services,132B,Key Engineering & Hygiene Supplies LTD,30/08/2022,PE143356,119.10,0.00,Boots,Protective Clothing,41600,
Wyre Council,http://opendatacommunities.org/doc/district-council/wyre,30/08/2022,People and Places,Environmental Services,132B,Key Engineering & Hygiene Supplies LTD,30/08/2022,PE143356,69.71,0.00,Clothing,Protective Clothing,41600,
Wyre Council,http://opendatacommunities.org/doc/district-council/wyre,30/08/2022,People and Places,Environmental Services,132B,Key Engineering & Hygiene Supplies LTD,30/08/2022,PE143356,495.06,0.00,"Supply PPE as per quotation 14112 As per John   Delivery to Wyre Council, Copse Road Depot, Copse Road, Fleetwood, FY7 6RP.",Protective Clothing,41600,
Wyre Council,http://opendatacommunities.org/doc/district-council/wyre,30/08/2022,People and Places,Environmental Services,132B,Key Engineering & Hygiene Supplies LTD,22/08/2022,PE143110,30.01,0.00,SUPPLY AND DELIVER AS PER QUOTATION 14714  RC076BLKONE 10 RESULT FOLD UP LEGIONNAIRES CAP BLACK ONE 4.26 EACH 42.60 803YWXS 1 UC803 YELLOW XS HI VIS TRAFFIC JACKET 19.20 EACH 19.20 S480YERXS 1 HI-VIS TRAFFIC TROUSER XS YELLOW 10.81 EACH 10.81  72.61  DELI,Protective Clothing,41600,
Wyre Council,http://opendatacommunities.org/doc/district-council/wyre,30/08/2022,People and Places,Support Services,135B,Key Engineering & Hygiene Supplies LTD,22/08/2022,PE143110,133.38,0.00,"Supply Hi-vis yellow vests in various sizes with Wyre logo to front and rear   6 x SMALL 10 X LARGE  10 X XLARGE   DELIVERY TO WYRE COUNCIL, COPSE ROAD DEPOT, COPSE ROAD, FLEETWOOD, FY7 6RP",Protective Clothing,41600,
Wyre Council,http://opendatacommunities.org/doc/district-council/wyre,30/08/2022,People and Places,Support Services,135B,Key Engineering & Hygiene Supplies LTD,22/08/2022,PE143110,76.96,0.00,bootd,Protective Clothing,41600,
Wyre Council,http://opendatacommunities.org/doc/district-council/wyre,30/08/2022,People and Places,Support Services,135B,Key Engineering & Hygiene Supplies LTD,22/08/2022,PE143110,5.59,0.00,"SUPPLY AND DELIVER AS PER YOUR QUOTATION 14689  DELIVERY TO WYRE COUNCIL, COPSE ROAD DEPOT, COPSE ROAD, FLEETWOOD, FY7 6RP.",Protective Clothing,41600,
Wyre Council,http://opendatacommunities.org/doc/district-council/wyre,30/08/2022,People and Places,Support Services,135B,Key Engineering & Hygiene Supplies LTD,22/08/2022,PE143110,13.86,0.00,Clothing,Protective Clothing,41600,
Wyre Council,http://opendatacommunities.org/doc/district-council/wyre,30/08/2022,People and Places,Support Services,135B,Key Engineering & Hygiene Supplies LTD,17/08/2022,PE143370,122.27,0.00,S477YERL 5 HI-VIS S/S POLO SHIRT LARGE YELLOW 7.00 EACH WITH WYRE EMB LOGO TO FRONT S477YERXL 5 HI-VIS S/S POLO SHIRT XL YELLOW 7.00 EACH WITH WYRE EMB LOGO TO FRONTCD884BKR36 2 PORTWEST CD884 SUPER WORK TROUSERS BLACK SIZE 36R 13.87LOGO`S @ 2.00,Protective Clothing,41600,
Wyre Council,http://opendatacommunities.org/doc/district-council/wyre,30/08/2022,People and Places,Support Services,135B,Key Engineering & Hygiene Supplies LTD,22/08/2022,PE143110,146.10,0.00,"SUPPLY AND DELIVER AS PER QUOTE 14688 S477YERL - 5 HI VIS POLOSHIRTS IN YELLOW - LARGE S477YERXL - 5 HI VIS POLOSHIRTS IN YELLOW - XLARGE 15 EMB WITH WYRE LOGO   DELIVERY TO WYRE COUNCIL, COPSE ROAD DEPOT, COPSE ROAD, FLEETWOOD, FY7 6RP",Protective Clothing,41600,
Wyre Council,http://opendatacommunities.org/doc/district-council/wyre,30/08/2022,People and Places,Environmental Services,132B,Glasdon UK LTD,11/08/2022,PE143277,4348.43,0.00,"Supply and deliver bins as per your quotationEQ700690398/6/22Delivery FAO Phil Gooden, Wyre Council, Copse Road Depot, Copse Road, Fleetwood, FY7 6RP.","Provision of Bins, Boxes and Sacks",40500,
Wyre Council,http://opendatacommunities.org/doc/district-council/wyre,30/08/2022,People and Places,Environmental Services,132B,Key Engineering & Hygiene Supplies LTD,22/08/2022,PE143110,845.50,0.00,"SUPPLY BL09OCI 50 BOXES OF BLUE REFUSE BAGS 18X29X39 15KG/90LTR, 200 PER BOX AT 16.91 PER BOX   DELIVERY TO WYRE COUNCIL, COPSE ROAD DEPOT, COPSE ROAD, FLEETWOOD, FY7 6RP","Provision of Bins, Boxes and Sacks",40500,
Wyre Council,http://opendatacommunities.org/doc/district-council/wyre,30/08/2022,People and Places,Environmental Services,132B,Key Engineering & Hygiene Supplies LTD,30/08/2022,PE143356,189.50,0.00,"NA090C1 10 SUPER CLEAR REFUSE SACKS 18X29X39 160G 90LTR (PER 200) 18.95 EACH  DELIVERY TO WYRE COUNCIL, COPSE ROAD DEPOT, COPSE ROAD, FLEETWOOD, FY7 6RP.","Provision of Bins, Boxes and Sacks",40500,
Wyre Council,http://opendatacommunities.org/doc/district-council/wyre,30/08/2022,People and Places,Environmental Services,132B,Key Engineering & Hygiene Supplies LTD,30/08/2022,PE143356,845.50,0.00,SUPPLY AND DELIVER AS PRICES PER QUOTATION 14046 BL090C1 50 BLUE REFUSE SACK 18X29X39 15KG/90LTR 200 PER BOX 16.91 EACH,"Provision of Bins, Boxes and Sacks",40500,
Wyre Council,http://opendatacommunities.org/doc/district-council/wyre,30/08/2022,People and Places,Environmental Services,132B,Key Engineering & Hygiene Supplies LTD,30/08/2022,PE143356,233.60,0.00,"URGENT SUPPLY AS PER QUOTATION 14210 NA240B1 10 NATURAL CLEAR GOLIATH BAG 30X45X54 150G (PER 100) 23.36 EACH 233.60  DELIVERY TO WYRE COUNCIL, COPSE ROAD DEPOT, COPSE ROAD, FLEETWOOD, FY7 6RP.","Provision of Bins, Boxes and Sacks",40500,
Wyre Council,http://opendatacommunities.org/doc/district-council/wyre,30/08/2022,People and Places,Environmental Services,132B,Key Engineering & Hygiene Supplies LTD,30/08/2022,PE143356,694.68,0.00,Blue bags,"Provision of Bins, Boxes and Sacks",40500,
Wyre Council,http://opendatacommunities.org/doc/district-council/wyre,30/08/2022,People and Places,Environmental Services,132B,Blackpool Skip Hire LTD,31/08/2022,PE143572,486.00,0.00,"Provision of skips Copse Road Depot, Fleetwood","Provision of Bins, Boxes and Sacks",40500,
Wyre Council,http://opendatacommunities.org/doc/district-council/wyre,30/08/2022,People and Places,Environmental Services,132B,Blackpool Skip Hire LTD,31/08/2022,PE143573,1440.96,0.00,"Provision of skips Copse Road Depot, Fleetwood","Provision of Bins, Boxes and Sacks",40500,
Wyre Council,http://opendatacommunities.org/doc/district-council/wyre,30/08/2022,People and Places,Environmental Services,132B,A & C Weber UK LTD,01/08/2022,PE143006,6694.80,0.00,240ltr Grey Carcasses with Blue Lid @ 23.91 per unit,"Provision of Bins, Boxes and Sacks",40500,
Wyre Council,http://opendatacommunities.org/doc/district-council/wyre,30/08/2022,People and Places,Environmental Services,132B,A & C Weber UK LTD,01/08/2022,PE143006,330.00,0.00,"DeliveryPrices as per ESPO Contract Schedule 860ADDAnticipated delivery ASAP (can accept delivery any time, but please advise in advance ifpossible)e-mail address:sales@w-weber.com & d.elliott@w-weber.com  & t.anklam@w-weber.com   To","Provision of Bins, Boxes and Sacks",40500,
Wyre Council,http://opendatacommunities.org/doc/district-council/wyre,30/08/2022,People and Places,Environmental Services,132B,Veolia ES (UK) LTD,24/08/2022,PE143535,4584.66,0.00,Bin delivery,"Provision of Bins, Boxes and Sacks",40500,
Wyre Council,http://opendatacommunities.org/doc/district-council/wyre,30/08/2022,People and Places,Cultural and Related Services,132A,Wildaid,23/08/2022,PE143521,1410.00,0.00,"Cut & Strim urban Core Public Rights of Way paths, Pilling Pig line (path) - Garstang and Wyre Way concession path between St Michaels and Churchtown. July/August 2022",Public Footpaths/Rights Of Way,28016,
Wyre Council,http://opendatacommunities.org/doc/district-council/wyre,30/08/2022,Resources,Support Services,135B,Preston City Council,02/08/2022,RS143083,39.68,0.00,2 x Jubilee bus stops,Public Relations,46107,
Wyre Council,http://opendatacommunities.org/doc/district-council/wyre,30/08/2022,People and Places,Support Services,135B,Bates Office Services Ltd,03/08/2022,PE143101,199.00,0.00,"1 x TSK/ZA Chair, Black with Arms (Jo Collinson)",Purchase Furniture,40300,
Wyre Council,http://opendatacommunities.org/doc/district-council/wyre,30/08/2022,Resources,Support Services,135B,Bates Office Services Ltd,02/08/2022,RS143105,199.00,0.00,"1 x TSK/ZA Task Chair, Black with Arms (Kathy Winstanley)",Purchase Furniture,40300,
Wyre Council,http://opendatacommunities.org/doc/district-council/wyre,30/08/2022,Resources,Central Services to the Public,131C,Bates Office Services Ltd,30/08/2022,RS143412,199.99,0.00,"TSK/ZA office chair, black with arms for:  Debra Thornton",Purchase Furniture,40300,
Wyre Council,http://opendatacommunities.org/doc/district-council/wyre,30/08/2022,People and Places,Cultural and Related Services,132A,Allcool (NW) Ltd,10/08/2022,PE142670,644.25,0.00,supply and deliver a double door bottle cooler,Purchase of Tools or Equipment,40100,
Wyre Council,http://opendatacommunities.org/doc/district-council/wyre,30/08/2022,People and Places,Planning and Development Servs,132C,Trident Rentals Ltd,31/08/2022,PE143580,489.67,0.00,rental compactor,Purchase of Tools or Equipment,40100,
Wyre Council,http://opendatacommunities.org/doc/district-council/wyre,30/08/2022,People and Places,Planning and Development Servs,132C,Trident Rentals Ltd,31/08/2022,PE143581,489.67,0.00,rental compactor,Purchase of Tools or Equipment,40100,
Wyre Council,http://opendatacommunities.org/doc/district-council/wyre,30/08/2022,People and Places,Cultural and Related Services,132A,Nisbetts Next Day Catering Equipment,11/08/2022,PE143289,1099.99,0.00,Potato baker - Marine Hall,Purchase of Tools or Equipment,40100,
Wyre Council,http://opendatacommunities.org/doc/district-council/wyre,30/08/2022,People and Places,Support Services,135B,Balmers GM LTD,02/08/2022,PE143107,3485.00,0.00,Stihl Brushcutter,Purchase of Tools or Equipment,40100,
Wyre Council,http://opendatacommunities.org/doc/district-council/wyre,30/08/2022,People and Places,Cultural and Related Services,132A,HUWS GRAY LTD,09/08/2022,PE143234,122.06,0.00,various tools 3 x lump hammersScrewswashersdrill bit adaptersbungee`s,Purchase of Tools or Equipment,40100,
Wyre Council,http://opendatacommunities.org/doc/district-council/wyre,30/08/2022,People and Places,Cultural and Related Services,132A,HUWS GRAY LTD,30/08/2022,PE142541,17.83,0.00,20mm drill bit,Purchase of Tools or Equipment,40100,
Wyre Council,http://opendatacommunities.org/doc/district-council/wyre,30/08/2022,People and Places,Cultural and Related Services,132A,HUWS GRAY LTD,30/08/2022,PE142541,87.03,0.00,3 x drill bit sets,Purchase of Tools or Equipment,40100,
Wyre Council,http://opendatacommunities.org/doc/district-council/wyre,30/08/2022,People and Places,Cultural and Related Services,132A,HUWS GRAY LTD,30/08/2022,PE142541,168.21,0.00,1 x saw 2 x masonry drills carpenters angle set,Purchase of Tools or Equipment,40100,
Wyre Council,http://opendatacommunities.org/doc/district-council/wyre,30/08/2022,People and Places,Cultural and Related Services,132A,HUWS GRAY LTD,30/08/2022,PE142541,43.34,0.00,various gate fittings,Purchase of Tools or Equipment,40100,
Wyre Council,http://opendatacommunities.org/doc/district-council/wyre,30/08/2022,Resources,Housing General Fund,134A,VODAFONE LIMITED,15/08/2022,RS142964,20.90,0.00,Monthly Charges,Purchase of Tools or Equipment,40100,
Wyre Council,http://opendatacommunities.org/doc/district-council/wyre,30/08/2022,Resources,Support Services,135B,Amazon Business,03/08/2022,RS142441,52.49,0.00,"Sharp R272WM Solo Touch Control Microwave, 20 Litre capacity, 800W, White",Purchase of Tools or Equipment,40100,
Wyre Council,http://opendatacommunities.org/doc/district-council/wyre,30/08/2022,People and Places,Cultural and Related Services,132A,MELTING POT/VISAGE,15/08/2022,PE143306,1675.00,0.00,Refund of ticket sales,Refund of Ticket Sales to Ext Promoters,46830,
Wyre Council,http://opendatacommunities.org/doc/district-council/wyre,30/08/2022,People and Places,Cultural and Related Services,132A,Wilding Dance Company,11/08/2022,PE143288,3860.00,0.00,Refund of ticket sales  15th & 16th July 2022,Refund of Ticket Sales to Ext Promoters,46830,
Wyre Council,http://opendatacommunities.org/doc/district-council/wyre,30/08/2022,People and Places,Environmental Services,132B,Veolia ES (UK) LTD,24/08/2022,PE143535,178535.32,0.00,Domestic Waste Management Collection Contract 2022/23,Refuse Collection Contract,27009,
Wyre Council,http://opendatacommunities.org/doc/district-council/wyre,30/08/2022,People and Places,Environmental Services,132B,Veolia ES (UK) LTD,24/08/2022,PE143535,1531.80,0.00,Pension pass through,Refuse Collection Contract,27009,
Wyre Council,http://opendatacommunities.org/doc/district-council/wyre,30/08/2022,People and Places,Planning and Development Servs,132C,EAS Electrical Mechanical,03/08/2022,PE142994,125.37,0.00,Supply day light tubes at Fleetwood Market,Responsive Building Maintenance,21002,
Wyre Council,http://opendatacommunities.org/doc/district-council/wyre,30/08/2022,People and Places,Support Services,135B,EAS Electrical Mechanical,01/08/2022,PE142736,75.65,0.00,Investigate flickering light at Civic Centre,Responsive Building Maintenance,21002,
Wyre Council,http://opendatacommunities.org/doc/district-council/wyre,30/08/2022,People and Places,Support Services,135B,EAS Electrical Mechanical,02/08/2022,PE143082,169.93,0.00,Isolate and drain waster heater at Civic Centre,Responsive Building Maintenance,21002,
Wyre Council,http://opendatacommunities.org/doc/district-council/wyre,30/08/2022,Resources,Planning and Development Servs,132C,EAS Electrical Mechanical,15/08/2022,RS143294,253.35,0.00,Replacing faulty fan and digital timeclock,Responsive Building Maintenance,21002,
Wyre Council,http://opendatacommunities.org/doc/district-council/wyre,30/08/2022,Resources,Cultural and Related Services,132A,EAS Electrical Mechanical,03/08/2022,RS143136,141.53,0.00,Cottam Hall Maintenance,Responsive Building Maintenance,21002,
Wyre Council,http://opendatacommunities.org/doc/district-council/wyre,30/08/2022,Resources,Planning and Development Servs,132C,EAS Electrical Mechanical,03/08/2022,RS143139,62.44,0.00,Copse Road Faulty light,Responsive Building Maintenance,21002,
Wyre Council,http://opendatacommunities.org/doc/district-council/wyre,30/08/2022,Resources,Cultural and Related Services,132A,EAS Electrical Mechanical,03/08/2022,RS143137,24.00,0.00,Thornton Little Theatre Maintenance,Responsive Building Maintenance,21002,
Wyre Council,http://opendatacommunities.org/doc/district-council/wyre,30/08/2022,Resources,Support Services,135B,EAS Electrical Mechanical,15/08/2022,RS143345,396.99,0.00,Investigate brown stain on water heater,Responsive Building Maintenance,21002,
Wyre Council,http://opendatacommunities.org/doc/district-council/wyre,30/08/2022,Resources,Support Services,135B,EAS Electrical Mechanical,03/08/2022,RS143138,162.10,0.00,Civic Centre Install stop tap and drain,Responsive Building Maintenance,21002,
Wyre Council,http://opendatacommunities.org/doc/district-council/wyre,30/08/2022,Resources,Planning and Development Servs,132C,EAS Electrical Mechanical,15/08/2022,RS143310,483.31,0.00,Fleetwood Market public toilets replacing hand dryer x 2,Responsive Building Maintenance,21002,
Wyre Council,http://opendatacommunities.org/doc/district-council/wyre,30/08/2022,Resources,Cultural and Related Services,132A,EAS Electrical Mechanical,11/08/2022,RS143291,716.56,0.00,Repairs and replacements at Memorial park Bowling club,Responsive Building Maintenance,21002,
Wyre Council,http://opendatacommunities.org/doc/district-council/wyre,30/08/2022,People and Places,Cultural and Related Services,132A,EAS Electrical Mechanical,22/08/2022,PE143080,110.65,0.00,Investigate loss of water pressure at Beach Chalets,Responsive Building Maintenance,21002,
Wyre Council,http://opendatacommunities.org/doc/district-council/wyre,30/08/2022,People and Places,Cultural and Related Services,132A,EAS Electrical Mechanical,02/08/2022,PE143081,421.22,0.00,Isolate power and replace spot lights at the Pavilion Fleetwood,Responsive Building Maintenance,21002,
Wyre Council,http://opendatacommunities.org/doc/district-council/wyre,30/08/2022,Resources,Support Services,135B,M D Security,10/08/2022,RS143246,160.00,0.00,Labour and replacing faulty planning office emergency light switch,Responsive Building Maintenance,21002,
Wyre Council,http://opendatacommunities.org/doc/district-council/wyre,30/08/2022,People and Places,Support Services,135B,John Carney,24/08/2022,PE143511,80.00,0.00,Tile repairs over rear entrance to Civic Centre,Responsive Building Maintenance,21002,
Wyre Council,http://opendatacommunities.org/doc/district-council/wyre,30/08/2022,People and Places,Support Services,135B,John Carney,24/08/2022,PE143512,160.00,0.00,Unblocking leaves to central valley at Civic Centre Room 128,Responsive Building Maintenance,21002,
Wyre Council,http://opendatacommunities.org/doc/district-council/wyre,30/08/2022,People and Places,Cultural and Related Services,132A,John Carney,24/08/2022,PE143513,450.00,0.00,Emergency repairs to roof at Cottam Hall Pavillion,Responsive Building Maintenance,21002,
Wyre Council,http://opendatacommunities.org/doc/district-council/wyre,30/08/2022,Resources,Support Services,135B,John Carney,17/08/2022,RS143403,550.00,0.00,Roofing repairs to room 153 & 154. Supply and fixing loose hop tiles to both ends of hip. Supply and fix small tiles. supply and fix broken hip times to lower roof,Responsive Building Maintenance,21002,
Wyre Council,http://opendatacommunities.org/doc/district-council/wyre,30/08/2022,People and Places,Support Services,135B,GARRY CARR BUILDING SERVICES LTD,10/08/2022,PE143011,1167.00,0.00,Redecoration of room 142,Responsive Building Maintenance,21002,
Wyre Council,http://opendatacommunities.org/doc/district-council/wyre,30/08/2022,People and Places,Support Services,135B,GARRY CARR BUILDING SERVICES LTD,10/08/2022,PE143040,1199.00,0.00,Redecorating rooms 143 and 145,Responsive Building Maintenance,21002,
Wyre Council,http://opendatacommunities.org/doc/district-council/wyre,30/08/2022,Resources,Cultural and Related Services,132A,GARRY CARR BUILDING SERVICES LTD,01/08/2022,RS142928,133.00,0.00,Clean Graffitti from wall at Meorial Park,Responsive Building Maintenance,21002,
Wyre Council,http://opendatacommunities.org/doc/district-council/wyre,30/08/2022,Resources,Planning and Development Servs,132C,GARRY CARR BUILDING SERVICES LTD,02/08/2022,RS142929,440.00,0.00,Supply perspex sheets to doors at Fleetwood Market,Responsive Building Maintenance,21002,
Wyre Council,http://opendatacommunities.org/doc/district-council/wyre,30/08/2022,Resources,Cultural and Related Services,132A,GARRY CARR BUILDING SERVICES LTD,02/08/2022,RS142925,9750.00,0.00,"Carry out essential refurbishment of Maple floor to main hall  approx  550 m� Completely sand existing floor to a reasonable finish, depending on thickness of timbers and apply 3 no. coats of Sports Coat 2 Pack Diamond Glaze All as per your quote 9 May 22",Responsive Building Maintenance,21002,
Wyre Council,http://opendatacommunities.org/doc/district-council/wyre,30/08/2022,Resources,Support Services,135B,GARRY CARR BUILDING SERVICES LTD,01/08/2022,RS142927,80.00,0.00,Replace roof tiles over post room porch,Responsive Building Maintenance,21002,
Wyre Council,http://opendatacommunities.org/doc/district-council/wyre,30/08/2022,Resources,Cultural and Related Services,132A,GARRY CARR BUILDING SERVICES LTD,11/08/2022,RS143268,45.00,0.00,Remove Graffiti from rear door and steps from the WFCB,Responsive Building Maintenance,21002,
Wyre Council,http://opendatacommunities.org/doc/district-council/wyre,30/08/2022,People and Places,Cultural and Related Services,132A,GARRY CARR BUILDING SERVICES LTD,02/08/2022,PE142924,1425.00,0.00,Work carried out at Marine Hall,Responsive Building Maintenance,21002,
Wyre Council,http://opendatacommunities.org/doc/district-council/wyre,30/08/2022,People and Places,Cultural and Related Services,132A,GARRY CARR BUILDING SERVICES LTD,02/08/2022,PE142407,3919.00,0.00,Replacement fire exit doors at Marine Hall,Responsive Building Maintenance,21002,
Wyre Council,http://opendatacommunities.org/doc/district-council/wyre,30/08/2022,People and Places,Cultural and Related Services,132A,GARRY CARR BUILDING SERVICES LTD,01/08/2022,PE142901,74.00,0.00,Remove graffitti from archway at Mount Cottages,Responsive Building Maintenance,21002,
Wyre Council,http://opendatacommunities.org/doc/district-council/wyre,30/08/2022,People and Places,Cultural and Related Services,132A,EVOLUTION CONSTRUCTION GROUP LTD,10/08/2022,PE143053,911.43,0.00,Joinery repairs on maple floor,Responsive Building Maintenance,21002,
Wyre Council,http://opendatacommunities.org/doc/district-council/wyre,30/08/2022,People and Places,Cultural and Related Services,132A,EVOLUTION CONSTRUCTION GROUP LTD,10/08/2022,PE143049,254.49,0.00,Make safe/board over smashes glass to door in porch 2,Responsive Building Maintenance,21002,
Wyre Council,http://opendatacommunities.org/doc/district-council/wyre,30/08/2022,People and Places,Cultural and Related Services,132A,EVOLUTION CONSTRUCTION GROUP LTD,03/08/2022,PE143061,73.65,0.00,,Responsive Building Maintenance,21002,
Wyre Council,http://opendatacommunities.org/doc/district-council/wyre,30/08/2022,People and Places,Cultural and Related Services,132A,EVOLUTION CONSTRUCTION GROUP LTD,03/08/2022,PE143057,80.22,0.00,Clear broken glass from Floor at Civic Centre,Responsive Building Maintenance,21002,
Wyre Council,http://opendatacommunities.org/doc/district-council/wyre,30/08/2022,People and Places,Cultural and Related Services,132A,EVOLUTION CONSTRUCTION GROUP LTD,10/08/2022,PE143055,284.21,0.00,Carry out timber repairs to door at the top of the terrace,Responsive Building Maintenance,21002,
Wyre Council,http://opendatacommunities.org/doc/district-council/wyre,30/08/2022,People and Places,Cultural and Related Services,132A,EVOLUTION CONSTRUCTION GROUP LTD,10/08/2022,PE143058,249.88,0.00,Carry out repairs to prevent water ingress,Responsive Building Maintenance,21002,
Wyre Council,http://opendatacommunities.org/doc/district-council/wyre,30/08/2022,People and Places,Cultural and Related Services,132A,EVOLUTION CONSTRUCTION GROUP LTD,03/08/2022,PE143063,49.10,0.00,Ease the outdoor fuse box,Responsive Building Maintenance,21002,
Wyre Council,http://opendatacommunities.org/doc/district-council/wyre,30/08/2022,People and Places,Cultural and Related Services,132A,EVOLUTION CONSTRUCTION GROUP LTD,03/08/2022,PE143056,49.10,0.00,Wok carried out at chalet 20,Responsive Building Maintenance,21002,
Wyre Council,http://opendatacommunities.org/doc/district-council/wyre,30/08/2022,People and Places,Cultural and Related Services,132A,EVOLUTION CONSTRUCTION GROUP LTD,03/08/2022,PE143071,49.80,0.00,Repair to hatch at the clock shelter,Responsive Building Maintenance,21002,
Wyre Council,http://opendatacommunities.org/doc/district-council/wyre,30/08/2022,People and Places,Cultural and Related Services,132A,EVOLUTION CONSTRUCTION GROUP LTD,03/08/2022,PE143059,73.65,0.00,repairs to decking at entrance doors,Responsive Building Maintenance,21002,
Wyre Council,http://opendatacommunities.org/doc/district-council/wyre,30/08/2022,People and Places,Cultural and Related Services,132A,EVOLUTION CONSTRUCTION GROUP LTD,10/08/2022,PE143062,222.92,0.00,Replace rotten timber for metal,Responsive Building Maintenance,21002,
Wyre Council,http://opendatacommunities.org/doc/district-council/wyre,30/08/2022,People and Places,Cultural and Related Services,132A,EVOLUTION CONSTRUCTION GROUP LTD,03/08/2022,PE143060,121.17,0.00,Repairs to soffit boards at the rear of cottam hall,Responsive Building Maintenance,21002,
Wyre Council,http://opendatacommunities.org/doc/district-council/wyre,30/08/2022,People and Places,Cultural and Related Services,132A,EVOLUTION CONSTRUCTION GROUP LTD,03/08/2022,PE143047,79.69,0.00,Replace broken handle in operations room,Responsive Building Maintenance,21002,
Wyre Council,http://opendatacommunities.org/doc/district-council/wyre,30/08/2022,People and Places,Planning and Development Servs,132C,EVOLUTION CONSTRUCTION GROUP LTD,10/08/2022,PE143073,287.43,0.00,Take doen all damaged ceiling tiles,Responsive Building Maintenance,21002,
Wyre Council,http://opendatacommunities.org/doc/district-council/wyre,30/08/2022,People and Places,Planning and Development Servs,132C,EVOLUTION CONSTRUCTION GROUP LTD,10/08/2022,PE143066,400.97,0.00,Install polycarbonate screens to internal face of auto doors,Responsive Building Maintenance,21002,
Wyre Council,http://opendatacommunities.org/doc/district-council/wyre,30/08/2022,People and Places,Cultural and Related Services,132A,EVOLUTION CONSTRUCTION GROUP LTD,03/08/2022,PE143052,77.34,0.00,Make safe broken window at Mount Cottages,Responsive Building Maintenance,21002,
Wyre Council,http://opendatacommunities.org/doc/district-council/wyre,30/08/2022,People and Places,Cultural and Related Services,132A,EVOLUTION CONSTRUCTION GROUP LTD,03/08/2022,PE143054,122.75,0.00,Repair damaged lock to understairs store,Responsive Building Maintenance,21002,
Wyre Council,http://opendatacommunities.org/doc/district-council/wyre,30/08/2022,People and Places,Cultural and Related Services,132A,EVOLUTION CONSTRUCTION GROUP LTD,03/08/2022,PE143048,83.28,0.00,Make safe smashed ground floor window,Responsive Building Maintenance,21002,
Wyre Council,http://opendatacommunities.org/doc/district-council/wyre,30/08/2022,People and Places,Cultural and Related Services,132A,EVOLUTION CONSTRUCTION GROUP LTD,03/08/2022,PE143070,61.95,0.00,Repair or replace faulty lock at east lodge,Responsive Building Maintenance,21002,
Wyre Council,http://opendatacommunities.org/doc/district-council/wyre,30/08/2022,People and Places,Support Services,135B,EVOLUTION CONSTRUCTION GROUP LTD,01/08/2022,PE140958,73.65,0.00,Repair to external fire door at Civic Centre,Responsive Building Maintenance,21002,
Wyre Council,http://opendatacommunities.org/doc/district-council/wyre,30/08/2022,People and Places,Planning and Development Servs,132C,EVOLUTION CONSTRUCTION GROUP LTD,03/08/2022,PE143065,99.74,0.00,Replace the digi lock on office door,Responsive Building Maintenance,21002,
Wyre Council,http://opendatacommunities.org/doc/district-council/wyre,30/08/2022,People and Places,Cultural and Related Services,132A,EVOLUTION CONSTRUCTION GROUP LTD,10/08/2022,PE143074,200.38,0.00,Replace aprox 20nr ceiling tiles following major leaks,Responsive Building Maintenance,21002,
Wyre Council,http://opendatacommunities.org/doc/district-council/wyre,30/08/2022,People and Places,Cultural and Related Services,132A,EVOLUTION CONSTRUCTION GROUP LTD,03/08/2022,PE143072,24.55,0.00,Replacing the lock to the bi-fold doors in the wyre bar,Responsive Building Maintenance,21002,
Wyre Council,http://opendatacommunities.org/doc/district-council/wyre,30/08/2022,People and Places,Cultural and Related Services,132A,EVOLUTION CONSTRUCTION GROUP LTD,03/08/2022,PE143068,73.65,0.00,Repairs damaged,Responsive Building Maintenance,21002,
Wyre Council,http://opendatacommunities.org/doc/district-council/wyre,30/08/2022,People and Places,Cultural and Related Services,132A,EVOLUTION CONSTRUCTION GROUP LTD,03/08/2022,PE143064,103.99,0.00,Repair and replace any hinges to the cellar door,Responsive Building Maintenance,21002,
Wyre Council,http://opendatacommunities.org/doc/district-council/wyre,30/08/2022,People and Places,Cultural and Related Services,132A,EVOLUTION CONSTRUCTION GROUP LTD,03/08/2022,PE143051,200.58,0.00,Re glaze damaged glass,Responsive Building Maintenance,21002,
Wyre Council,http://opendatacommunities.org/doc/district-council/wyre,30/08/2022,People and Places,Cultural and Related Services,132A,EVOLUTION CONSTRUCTION GROUP LTD,03/08/2022,PE143050,199.27,0.00,Reglaze window at Marine Hall,Responsive Building Maintenance,21002,
Wyre Council,http://opendatacommunities.org/doc/district-council/wyre,30/08/2022,People and Places,Cultural and Related Services,132A,EVOLUTION CONSTRUCTION GROUP LTD,03/08/2022,PE143069,38.95,0.00,Re fix downpipe at Marine Hall,Responsive Building Maintenance,21002,
Wyre Council,http://opendatacommunities.org/doc/district-council/wyre,30/08/2022,People and Places,Cultural and Related Services,132A,EVOLUTION CONSTRUCTION GROUP LTD,03/08/2022,PE143067,36.83,0.00,Re-fit door closer to dressing room door,Responsive Building Maintenance,21002,
Wyre Council,http://opendatacommunities.org/doc/district-council/wyre,30/08/2022,Resources,Housing General Fund,134A,Creative Support LTD,08/08/2022,RS143193,639.35,0.00,REDACT,Rough Sleeper Project/NSNO,46846,
Wyre Council,http://opendatacommunities.org/doc/district-council/wyre,30/08/2022,Resources,Housing General Fund,134A,,09/08/2022,RS143238,823.33,0.00,,Rough Sleeper Project/NSNO,46846,
Wyre Council,http://opendatacommunities.org/doc/district-council/wyre,30/08/2022,People and Places,Highways,133B,Glasdon UK LTD,04/08/2022,PE143169,486.70,0.00,"Supply one black phoenix memorial bench with plaque. Plaque inscription to read   In the Memory of Leslie Archer (Les) 16th February 1945  31st May 2022   Please deliver bench to Copse Road Depot, Copse Road,  Fleetwood.  Please contact Bob Greaves on 07",Seats and Shelters (Non BM),21012,
Wyre Council,http://opendatacommunities.org/doc/district-council/wyre,30/08/2022,People and Places,Central Services to the Public,131C,WATER PLUS LTD,03/08/2022,PE142980,49.18,0.00,Water/Waste Water Charges,Sewerage,24001,
Wyre Council,http://opendatacommunities.org/doc/district-council/wyre,30/08/2022,People and Places,Cultural and Related Services,132A,WATER PLUS LTD,03/08/2022,PE142980,132.32,0.00,Water/Waste Water Charges,Sewerage,24001,
Wyre Council,http://opendatacommunities.org/doc/district-council/wyre,30/08/2022,People and Places,Cultural and Related Services,132A,WATER PLUS LTD,03/08/2022,PE142980,31.61,0.00,Water/Waste Water Charges,Sewerage,24001,
Wyre Council,http://opendatacommunities.org/doc/district-council/wyre,30/08/2022,People and Places,Cultural and Related Services,132A,WATER PLUS LTD,03/08/2022,PE142980,31.61,0.00,Water/Waste Water Charges,Sewerage,24001,
Wyre Council,http://opendatacommunities.org/doc/district-council/wyre,30/08/2022,People and Places,Cultural and Related Services,132A,WATER PLUS LTD,03/08/2022,PE142980,2.34,0.00,Water/Waste Water Charges,Sewerage,24001,
Wyre Council,http://opendatacommunities.org/doc/district-council/wyre,30/08/2022,People and Places,Environmental Services,132B,WATER PLUS LTD,03/08/2022,PE142980,14.05,0.00,Water/Waste Water Charges,Sewerage,24001,
Wyre Council,http://opendatacommunities.org/doc/district-council/wyre,30/08/2022,People and Places,Environmental Services,132B,WATER PLUS LTD,03/08/2022,PE142980,9.37,0.00,Water/Waste Water Charges,Sewerage,24001,
Wyre Council,http://opendatacommunities.org/doc/district-council/wyre,30/08/2022,People and Places,Support Services,135B,WATER PLUS LTD,03/08/2022,PE142980,6503.54,0.00,Water/Waste Water Charges,Sewerage,24001,
Wyre Council,http://opendatacommunities.org/doc/district-council/wyre,30/08/2022,People and Places,Cultural and Related Services,132A,WATER PLUS LTD,03/08/2022,PE142980,50.35,0.00,Water/Waste Water Charges,Sewerage,24001,
Wyre Council,http://opendatacommunities.org/doc/district-council/wyre,30/08/2022,People and Places,Cultural and Related Services,132A,WATER PLUS LTD,03/08/2022,PE142980,53.86,0.00,Water/Waste Water Charges,Sewerage,24001,
Wyre Council,http://opendatacommunities.org/doc/district-council/wyre,30/08/2022,People and Places,Cultural and Related Services,132A,WATER PLUS LTD,03/08/2022,PE142980,357.18,0.00,Water/Waste Water Charges,Sewerage,24001,
Wyre Council,http://opendatacommunities.org/doc/district-council/wyre,30/08/2022,People and Places,Cultural and Related Services,132A,WATER PLUS LTD,03/08/2022,PE142979,1297.75,0.00,Water/Wastewater Charges,Sewerage,24001,
Wyre Council,http://opendatacommunities.org/doc/district-council/wyre,30/08/2022,People and Places,Cultural and Related Services,132A,WATER PLUS LTD,03/08/2022,PE142978,-4007.71,0.00,Credit for Water/Wastewater charges,Sewerage,24001,
Wyre Council,http://opendatacommunities.org/doc/district-council/wyre,30/08/2022,People and Places,Cultural and Related Services,132A,WATER PLUS LTD,03/08/2022,PE142980,10.53,0.00,Water/Waste Water Charges,Sewerage,24001,
Wyre Council,http://opendatacommunities.org/doc/district-council/wyre,30/08/2022,People and Places,Cultural and Related Services,132A,WATER PLUS LTD,03/08/2022,PE142980,9.36,0.00,Water/Waste Water Charges,Sewerage,24001,
Wyre Council,http://opendatacommunities.org/doc/district-council/wyre,30/08/2022,People and Places,Environmental Services,132B,WATER PLUS LTD,03/08/2022,PE142980,463.68,0.00,Water/Waste Water Charges,Sewerage,24001,
Wyre Council,http://opendatacommunities.org/doc/district-council/wyre,30/08/2022,People and Places,Cultural and Related Services,132A,WATER PLUS LTD,03/08/2022,PE142980,1.17,0.00,Water/Waste Water Charges,Sewerage,24001,
Wyre Council,http://opendatacommunities.org/doc/district-council/wyre,30/08/2022,People and Places,Planning and Development Servs,132C,WATER PLUS LTD,03/08/2022,PE142980,124.11,0.00,Water/Waste Water Charges,Sewerage,24001,
Wyre Council,http://opendatacommunities.org/doc/district-council/wyre,30/08/2022,People and Places,Planning and Development Servs,132C,WATER PLUS LTD,03/08/2022,PE142980,53.59,0.00,Water/Waste Water Charges,Sewerage,24001,
Wyre Council,http://opendatacommunities.org/doc/district-council/wyre,30/08/2022,People and Places,Cultural and Related Services,132A,WATER PLUS LTD,03/08/2022,PE142980,242.38,0.00,Water/Waste Water Charges,Sewerage,24001,
Wyre Council,http://opendatacommunities.org/doc/district-council/wyre,30/08/2022,People and Places,Cultural and Related Services,132A,WATER PLUS LTD,03/08/2022,PE142980,2.34,0.00,Water/Waste Water Charges,Sewerage,24001,
Wyre Council,http://opendatacommunities.org/doc/district-council/wyre,30/08/2022,People and Places,Environmental Services,132B,WATER PLUS LTD,03/08/2022,PE142980,3.51,0.00,Water/Waste Water Charges,Sewerage,24001,
Wyre Council,http://opendatacommunities.org/doc/district-council/wyre,30/08/2022,Resources,Support Services,135B,NEC Software Solutions UK Limited,08/08/2022,RS143189,7000.00,0.00,"Contract reference number:CAT: 4373Supplier reference number: CRM: 113774NEC Document Management software to be hosted in the Supplier cloudYear One ChargesNEC Document ManagementSoftware                    21,250 on Contract Signature",Software Maintenance,43604,
Wyre Council,http://opendatacommunities.org/doc/district-council/wyre,30/08/2022,People and Places,Support Services,135B,Bartec Municipal Technologies LTD,24/08/2022,PE143546,12600.00,0.00,Annual renewal 1st July 2022 to 30th June 2023 Collective Hosting (Legacy) Collective IC150 Subscriptions Collective Data Plans,Software Maintenance,43604,
Wyre Council,http://opendatacommunities.org/doc/district-council/wyre,30/08/2022,Resources,Support Services,135B,Coolspirit LTD,30/08/2022,RS143570,2233.08,0.00,"18 COMCV-MCS-EC-TB Commvault Metallic Cloud Storage Service for Commvault, EMEA, Cool Tier, Subscription, Per TB, 12 Months 124.06",Software Maintenance,43604,
Wyre Council,http://opendatacommunities.org/doc/district-council/wyre,30/08/2022,Resources,Support Services,135B,JADU CREATIVE LTD,11/08/2022,RS143275,4200.00,0.00,PayBridge Support24/09/2022 to 23/09/2023,Software Maintenance,43604,
Wyre Council,http://opendatacommunities.org/doc/district-council/wyre,30/08/2022,Resources,Support Services,135B,JADU CREATIVE LTD,24/08/2022,RS142816,6500.00,0.00,CMS Basic Support - Jadu Hosted 23/08/2022 to 22/08/2023,Software Maintenance,43604,
Wyre Council,http://opendatacommunities.org/doc/district-council/wyre,30/08/2022,Resources,Support Services,135B,JADU CREATIVE LTD,24/08/2022,RS142816,6500.00,0.00,XFP Basic Support - Jadu Hosted 23/08/2022 to 22/08/2023,Software Maintenance,43604,
Wyre Council,http://opendatacommunities.org/doc/district-council/wyre,30/08/2022,People and Places,Support Services,135B,PROACTIS LTD,26/08/2022,PE143167,2200.00,0.00,01/08/2022  31/07/2023 Annual Pro Contract subscription (invoice PGL_TSI5214560),Software Maintenance,43604,
Wyre Council,http://opendatacommunities.org/doc/district-council/wyre,30/08/2022,People and Places,Cultural and Related Services,132A,Tina Dempsey,31/08/2022,PE143561,1440.00,0.00,Fee for Summer HAF 2022,Special Events,46522,
Wyre Council,http://opendatacommunities.org/doc/district-council/wyre,30/08/2022,People and Places,Cultural and Related Services,132A,Gambolling Arena Theatre Company,17/08/2022,PE143407,650.00,0.00,GA - TO PROVIDE        GLORIA AND THE BUNNY WITH FULL TECH SUPPORT AND OPERATOR WHEN - SAT 13TH AUGUST,Special Events,46522,
Wyre Council,http://opendatacommunities.org/doc/district-council/wyre,30/08/2022,People and Places,Cultural and Related Services,132A,LISA WIGHAM,30/08/2022,PE143609,720.00,0.00,Fee for Summer HAF 2022,Special Events,46522,
Wyre Council,http://opendatacommunities.org/doc/district-council/wyre,30/08/2022,People and Places,Cultural and Related Services,132A,Acorns,11/08/2022,PE143279,-837.87,0.00,Equipment costs - HAF summer 2022,Special Events,46522,
Wyre Council,http://opendatacommunities.org/doc/district-council/wyre,30/08/2022,People and Places,Cultural and Related Services,132A,Acorns,22/08/2022,PE143444,1000.00,0.00,Equipment costs - HAF summer 2022,Special Events,46522,
Wyre Council,http://opendatacommunities.org/doc/district-council/wyre,30/08/2022,People and Places,Cultural and Related Services,132A,Acorns,11/08/2022,PE143279,837.87,0.00,Equipment costs - HAF summer 2022,Special Events,46522,
Wyre Council,http://opendatacommunities.org/doc/district-council/wyre,30/08/2022,People and Places,Cultural and Related Services,132A,Hausfrau UK (Ltd),24/08/2022,PE143541,720.00,0.00,Fee for Summer HAF 2022,Special Events,46522,
Wyre Council,http://opendatacommunities.org/doc/district-council/wyre,30/08/2022,Resources,Cultural and Related Services,132A,GARRY CARR BUILDING SERVICES LTD,15/08/2022,RS143278,100.00,0.00,Turning of sails at marsh mill,Special Events,46522,
Wyre Council,http://opendatacommunities.org/doc/district-council/wyre,30/08/2022,People and Places,Support Services,135B,Dr Tree Surgeons,30/08/2022,PE143612,400.00,0.00,Quotation 600Extra work at The Avenue - PLFThe reduction of x2 Maple trees.Total Net Amount: 400.00VAT @ 20%: 80.00Quote Total: 480.00,Special Maintenance - Trees,28004,
Wyre Council,http://opendatacommunities.org/doc/district-council/wyre,30/08/2022,People and Places,Support Services,135B,Dr Tree Surgeons,30/08/2022,PE143567,291.67,0.00,"Quote Number: 591Quote Date: 29th Jul `22 - SkippoolReduce the limb in contact with the pillar coping stone to belowcontact leaving a few feet of stub , and, to raise the remainder of thecrown to 5.5 metres roadside for statutory clearance.Rem",Special Maintenance - Trees,28004,
Wyre Council,http://opendatacommunities.org/doc/district-council/wyre,30/08/2022,People and Places,Support Services,135B,Dr Tree Surgeons,16/08/2022,PE143371,2200.00,0.00,"Quotation 549 - War Memorial - Thornton Cleveleys 1 Tree work as per tree survey provided.Tree work requirements re G1&#8208;G6 undertaken as identified asneeded within the War Memorial , Thornton Tree Survey andupdate email of 27/05/22 sent to",Special Maintenance - Trees,28004,
Wyre Council,http://opendatacommunities.org/doc/district-council/wyre,30/08/2022,People and Places,Support Services,135B,Dr Tree Surgeons,31/08/2022,PE143615,1500.00,0.00,"Quotation 526  1 Tree work as per tree survey on G2,G5,G6 & tree 1 from report . 1,500.00   Total Net Amount: 1,500.00 VAT @ 20%: 300.00 Quote Total: 1,800.00",Special Maintenance - Trees,28004,
Wyre Council,http://opendatacommunities.org/doc/district-council/wyre,30/08/2022,People and Places,Support Services,135B,Dr Tree Surgeons,02/08/2022,PE143116,380.00,0.00,Number: 3381787 Purchase Order: Croston Road Garstang1 To dead wood two Ash trees on the open space to side of 34 BostonRoad Garstang.380.00 380.00Net: 380.00VAT @ 20%: 76.00TOTAL: 456.00,Special Maintenance - Trees,28004,
Wyre Council,http://opendatacommunities.org/doc/district-council/wyre,30/08/2022,People and Places,Support Services,135B,Dr Tree Surgeons,02/08/2022,PE143103,740.00,0.00,Quote Number: 568 Quote Ref: Pheasants wood1 To Re&#8208;pollard Willow bak to previous points. 280.00 280.001 To alleviate weight over pond with the removal of large  mberleaving a 4  stump.460.00 460.00Total Net Amount: 740.00VAT @ 20,Special Maintenance - Trees,28004,
Wyre Council,http://opendatacommunities.org/doc/district-council/wyre,30/08/2022,People and Places,Environmental Services,132B,Finsbury House Carpets,09/08/2022,PE143179,991.67,0.00,"to supply and fit apollo plus scarlet carpet , with charcoal entrance matting , plates, adhesives and silver lining contract underlay",Special Works,28003,
Wyre Council,http://opendatacommunities.org/doc/district-council/wyre,30/08/2022,Resources,Central Services to the Public,131C,Print Image Network LTD,24/08/2022,RS143551,1804.14,0.00,Laser and enclose,Stationery,42200,
Wyre Council,http://opendatacommunities.org/doc/district-council/wyre,30/08/2022,Resources,Central Services to the Public,131C,Print Image Network LTD,24/08/2022,RS143551,6496.14,0.00,Laser and enclose,Stationery,42200,
Wyre Council,http://opendatacommunities.org/doc/district-council/wyre,30/08/2022,Resources,Central Services to the Public,131C,Print Image Network LTD,24/08/2022,RS143551,225.00,0.00,Additional BRE stock requested,Stationery,42200,
Wyre Council,http://opendatacommunities.org/doc/district-council/wyre,30/08/2022,Resources,Central Services to the Public,131C,Print Image Network LTD,24/08/2022,RS143551,286.00,0.00,Additional Outer Envelope stock requested,Stationery,42200,
Wyre Council,http://opendatacommunities.org/doc/district-council/wyre,30/08/2022,Resources,Central Services to the Public,131C,Print Image Network LTD,24/08/2022,RS143551,596.00,0.00,BRE Envelopes to stock,Stationery,42200,
Wyre Council,http://opendatacommunities.org/doc/district-council/wyre,30/08/2022,Resources,Central Services to the Public,131C,Print Image Network LTD,24/08/2022,RS143551,1153.24,0.00,2022 Canvass Mailings Outer Envelopes to stock,Stationery,42200,
Wyre Council,http://opendatacommunities.org/doc/district-council/wyre,30/08/2022,People and Places,Cultural and Related Services,132A,Bates Office Services Ltd,01/08/2022,PE142953,1.80,0.00,Q CONNECT RULER SHATTERPROOF 30CM WHITE,Stationery,42200,
Wyre Council,http://opendatacommunities.org/doc/district-council/wyre,30/08/2022,People and Places,Cultural and Related Services,132A,Bates Office Services Ltd,01/08/2022,PE142953,7.77,0.00,AURORA SEMI DESKTOP CALCULATOR DB453B,Stationery,42200,
Wyre Council,http://opendatacommunities.org/doc/district-council/wyre,30/08/2022,People and Places,Support Services,135B,Bates Office Services Ltd,03/08/2022,PE142944,5.40,0.00,INITIATIVE PP TAPE 24MMX66M CLEAR,Stationery,42200,
Wyre Council,http://opendatacommunities.org/doc/district-council/wyre,30/08/2022,People and Places,Support Services,135B,Bates Office Services Ltd,03/08/2022,PE142944,9.74,0.00,TIPPEX RAPID FLUID 801296,Stationery,42200,
Wyre Council,http://opendatacommunities.org/doc/district-council/wyre,30/08/2022,People and Places,Support Services,135B,Bates Office Services Ltd,03/08/2022,PE142944,25.85,0.00,FELLOWES PLUSHTOUCH BACK SUPPORT,Stationery,42200,
Wyre Council,http://opendatacommunities.org/doc/district-council/wyre,30/08/2022,People and Places,Support Services,135B,Bates Office Services Ltd,03/08/2022,PE142944,2.35,0.00,RAPESCO POPPER WALLET ASSORTED 688 PK5,Stationery,42200,
Wyre Council,http://opendatacommunities.org/doc/district-council/wyre,30/08/2022,People and Places,Support Services,135B,Bates Office Services Ltd,03/08/2022,PE142944,14.64,0.00,Q-CONNECT GREY GEL MOUSE MAT,Stationery,42200,
Wyre Council,http://opendatacommunities.org/doc/district-council/wyre,30/08/2022,People and Places,Support Services,135B,Bates Office Services Ltd,03/08/2022,PE142944,1.26,0.00,Q-CONNECT METAL PENCIL SHARPENER PK20,Stationery,42200,
Wyre Council,http://opendatacommunities.org/doc/district-council/wyre,30/08/2022,People and Places,Support Services,135B,Bates Office Services Ltd,03/08/2022,PE142944,254.08,0.00,ELBA LEGAL WLT FCP 75MM 2FW93 100080792,Stationery,42200,
Wyre Council,http://opendatacommunities.org/doc/district-council/wyre,30/08/2022,People and Places,Support Services,135B,Bates Office Services Ltd,03/08/2022,PE142944,1.78,0.00,INITIATIVE DRYWIPE/FLIPCHART MARKER BLK,Stationery,42200,
Wyre Council,http://opendatacommunities.org/doc/district-council/wyre,30/08/2022,People and Places,Support Services,135B,Bates Office Services Ltd,03/08/2022,PE142944,17.46,0.00,CASIO 12-DIGIT POCKET CALCULATOR,Stationery,42200,
Wyre Council,http://opendatacommunities.org/doc/district-council/wyre,30/08/2022,People and Places,Support Services,135B,Bates Office Services Ltd,03/08/2022,PE142944,1.50,0.00,INITIATIVE STAPLES 26/6 BOX 5000,Stationery,42200,
Wyre Council,http://opendatacommunities.org/doc/district-council/wyre,30/08/2022,People and Places,Support Services,135B,Bates Office Services Ltd,03/08/2022,PE142944,6.17,0.00,WESTDESIGN STEPHENS A4 CRD 8SHT WHT PK10,Stationery,42200,
Wyre Council,http://opendatacommunities.org/doc/district-council/wyre,30/08/2022,People and Places,Support Services,135B,Bates Office Services Ltd,03/08/2022,PE142944,1.24,0.00,INITIATIVE STICKY TAC 70G,Stationery,42200,
Wyre Council,http://opendatacommunities.org/doc/district-council/wyre,30/08/2022,People and Places,Support Services,135B,Bates Office Services Ltd,03/08/2022,PE142944,1.06,0.00,Q-CONNECT 32MM BLACK FOLDBACK CLIP PK10,Stationery,42200,
Wyre Council,http://opendatacommunities.org/doc/district-council/wyre,30/08/2022,People and Places,Support Services,135B,Bates Office Services Ltd,03/08/2022,PE142944,11.24,0.00,POST-IT DURABLE FILING TAB FLAT PK24,Stationery,42200,
Wyre Council,http://opendatacommunities.org/doc/district-council/wyre,30/08/2022,People and Places,Support Services,135B,Bates Office Services Ltd,03/08/2022,PE142944,9.07,0.00,SHARPIE PERMANENT MARKER FINE ASSTD PK12,Stationery,42200,
Wyre Council,http://opendatacommunities.org/doc/district-council/wyre,30/08/2022,People and Places,Support Services,135B,Bates Office Services Ltd,03/08/2022,PE142944,8.65,0.00,SHARPIE BLACK PERMANENT MARKER FINE PK1,Stationery,42200,
Wyre Council,http://opendatacommunities.org/doc/district-council/wyre,30/08/2022,People and Places,Support Services,135B,Bates Office Services Ltd,03/08/2022,PE142944,16.50,0.00,Q-CONNECT QUICK DRY GEL PEN BLACK PK12,Stationery,42200,
Wyre Council,http://opendatacommunities.org/doc/district-council/wyre,30/08/2022,People and Places,Support Services,135B,Bates Office Services Ltd,03/08/2022,PE142944,3.86,0.00,PAPERMATE PENCIL NON-STOP HB 10701,Stationery,42200,
Wyre Council,http://opendatacommunities.org/doc/district-council/wyre,30/08/2022,People and Places,Support Services,135B,Bates Office Services Ltd,03/08/2022,PE142944,0.21,0.00,Q-CONNECT SHATTERPROOF 300MM CLEAR RULER,Stationery,42200,
Wyre Council,http://opendatacommunities.org/doc/district-council/wyre,30/08/2022,People and Places,Support Services,135B,Bates Office Services Ltd,15/08/2022,PE142391,32.79,0.00,PILOT DISPOSABLE FOUNTAIN PEN MED BLACK,Stationery,42200,
Wyre Council,http://opendatacommunities.org/doc/district-council/wyre,30/08/2022,People and Places,Support Services,135B,Bates Office Services Ltd,15/08/2022,PE142391,10.76,0.00,Q CONNECT A4 COPYHOLDER DESKTOP,Stationery,42200,
Wyre Council,http://opendatacommunities.org/doc/district-council/wyre,30/08/2022,People and Places,Support Services,135B,Bates Office Services Ltd,15/08/2022,PE142391,25.85,0.00,FELLOWES PLUSHTOUCH BACK SUPPORT,Stationery,42200,
Wyre Council,http://opendatacommunities.org/doc/district-council/wyre,30/08/2022,People and Places,Support Services,135B,Bates Office Services Ltd,15/08/2022,PE142391,8.65,0.00,SHARPIE BLACK PERMANENT MARKER FINE PK1,Stationery,42200,
Wyre Council,http://opendatacommunities.org/doc/district-council/wyre,30/08/2022,People and Places,Support Services,135B,Bates Office Services Ltd,15/08/2022,PE142391,0.95,0.00,WB WHITEBOARD MARKER CHISEL BLUE,Stationery,42200,
Wyre Council,http://opendatacommunities.org/doc/district-council/wyre,30/08/2022,People and Places,Support Services,135B,Bates Office Services Ltd,15/08/2022,PE142391,7.82,0.00,Q CONNECT D BATTERY PK2,Stationery,42200,
Wyre Council,http://opendatacommunities.org/doc/district-council/wyre,30/08/2022,People and Places,Support Services,135B,Bates Office Services Ltd,15/08/2022,PE142391,7.20,0.00,A4 CLEAR PUNCHED POCKETS PK100,Stationery,42200,
Wyre Council,http://opendatacommunities.org/doc/district-council/wyre,30/08/2022,People and Places,Support Services,135B,Bates Office Services Ltd,15/08/2022,PE142391,2.59,0.00,SPIRAL SHORTHAND NOTEBOOK 80LF PK10,Stationery,42200,
Wyre Council,http://opendatacommunities.org/doc/district-council/wyre,30/08/2022,People and Places,Support Services,135B,Bates Office Services Ltd,15/08/2022,PE142391,1.42,0.00,Q-CONNECT BLUE ECONOMY MOUSE MAT,Stationery,42200,
Wyre Council,http://opendatacommunities.org/doc/district-council/wyre,30/08/2022,People and Places,Support Services,135B,Bates Office Services Ltd,15/08/2022,PE142391,3.86,0.00,PAPERMATE PENCIL NON-STOP HB 10701,Stationery,42200,
Wyre Council,http://opendatacommunities.org/doc/district-council/wyre,30/08/2022,People and Places,Support Services,135B,Bates Office Services Ltd,15/08/2022,PE142391,0.63,0.00,Q-CONNECT SHATTERPROOF 300MM CLEAR RULER,Stationery,42200,
Wyre Council,http://opendatacommunities.org/doc/district-council/wyre,30/08/2022,People and Places,Support Services,135B,Bates Office Services Ltd,15/08/2022,PE142391,7.49,0.00,A4 ruled pad,Stationery,42200,
Wyre Council,http://opendatacommunities.org/doc/district-council/wyre,30/08/2022,Resources,Housing General Fund,134A,Bates Office Services Ltd,30/08/2022,RS141068,21.61,0.00,SPIRAL SHORTHAND NOTEBOOK 80LF PK10,Stationery,42200,
Wyre Council,http://opendatacommunities.org/doc/district-council/wyre,30/08/2022,Resources,Housing General Fund,134A,Bates Office Services Ltd,30/08/2022,RS141068,29.50,0.00,INITIATIVE MEMO PAD A4 FEINT RULED 80SH,Stationery,42200,
Wyre Council,http://opendatacommunities.org/doc/district-council/wyre,30/08/2022,Resources,Housing General Fund,134A,Bates Office Services Ltd,30/08/2022,RS141068,6.75,0.00,INITIATIVE REPB NOTES 76X76MM YELLOW,Stationery,42200,
Wyre Council,http://opendatacommunities.org/doc/district-council/wyre,30/08/2022,Resources,Housing General Fund,134A,Bates Office Services Ltd,30/08/2022,RS141068,7.00,0.00,Q CONNECT QUICKNOTE 75X125MM YLW,Stationery,42200,
Wyre Council,http://opendatacommunities.org/doc/district-council/wyre,30/08/2022,Resources,Housing General Fund,134A,Bates Office Services Ltd,30/08/2022,RS141068,17.04,0.00,EDDING 8404 AEROSPACE MARKER BLK PK10,Stationery,42200,
Wyre Council,http://opendatacommunities.org/doc/district-council/wyre,30/08/2022,Resources,Housing General Fund,134A,Bates Office Services Ltd,30/08/2022,RS141068,3.84,0.00,INITIATIVE PP TAPE 48MMX66M BUFF,Stationery,42200,
Wyre Council,http://opendatacommunities.org/doc/district-council/wyre,30/08/2022,Resources,Housing General Fund,134A,Bates Office Services Ltd,30/08/2022,RS141068,1.80,0.00,INITIATIVE PP TAPE 24MMX66M CLEAR,Stationery,42200,
Wyre Council,http://opendatacommunities.org/doc/district-council/wyre,30/08/2022,Resources,Housing General Fund,134A,Bates Office Services Ltd,15/08/2022,RS141875,593.10,0.00,A4 80GSM WHITEBOX COPIER PAPER,Stationery,42200,
Wyre Council,http://opendatacommunities.org/doc/district-council/wyre,30/08/2022,Resources,Support Services,135B,Bates Office Services Ltd,01/08/2022,RS142909,593.10,0.00,A4 80GSM WHITEBOX COPIER PAPER,Stationery,42200,
Wyre Council,http://opendatacommunities.org/doc/district-council/wyre,30/08/2022,Resources,Support Services,135B,Bates Office Services Ltd,04/08/2022,RS143181,43.74,0.00,QCONNECT SLIDE BINDER/COVER KITS BLK P20,Stationery,42200,
Wyre Council,http://opendatacommunities.org/doc/district-council/wyre,30/08/2022,Resources,Support Services,135B,Bates Office Services Ltd,15/08/2022,RS140792,454.50,0.00,A4 80GSM WHITEBOX COPIER PAPER,Stationery,42200,
Wyre Council,http://opendatacommunities.org/doc/district-council/wyre,30/08/2022,Resources,Support Services,135B,Bates Office Services Ltd,15/08/2022,RS143206,65.48,0.00,Q CONNECT COMB BNDR CVR 150MIC A4 PK250,Stationery,42200,
Wyre Council,http://opendatacommunities.org/doc/district-council/wyre,30/08/2022,Resources,Support Services,135B,Bates Office Services Ltd,30/08/2022,RS141768,28.70,0.00,Q-CONNECT CUT FLUSH FOLDER A4 CLEAR P100,Stationery,42200,
Wyre Council,http://opendatacommunities.org/doc/district-council/wyre,30/08/2022,Resources,Housing General Fund,134A,Bates Office Services Ltd,30/08/2022,RS141068,23.64,0.00,PENTEL ENERGEL XM RETRCT PEN BLACK PK12,Stationery,42200,
Wyre Council,http://opendatacommunities.org/doc/district-council/wyre,30/08/2022,Resources,Housing General Fund,134A,Bates Office Services Ltd,30/08/2022,RS141068,71.37,0.00,INITIATIVE LAMG POUCH A4 150 MIC PK100,Stationery,42200,
Wyre Council,http://opendatacommunities.org/doc/district-council/wyre,30/08/2022,Resources,Housing General Fund,134A,Bates Office Services Ltd,30/08/2022,RS141068,15.90,0.00,BIC CRISTAL BLACK MED BALLPOINT PEN PK5,Stationery,42200,
Wyre Council,http://opendatacommunities.org/doc/district-council/wyre,30/08/2022,Resources,Housing General Fund,134A,Bates Office Services Ltd,30/08/2022,RS141068,0.82,0.00,UHU WHITE TACK HANDY 42196,Stationery,42200,
Wyre Council,http://opendatacommunities.org/doc/district-council/wyre,30/08/2022,Resources,Support Services,135B,Bates Office Services Ltd,15/08/2022,RS142952,14.50,0.00,INITIATIVE FLIPCHART PAD A1 PLAIN 40SH,Stationery,42200,
Wyre Council,http://opendatacommunities.org/doc/district-council/wyre,30/08/2022,Resources,Support Services,135B,Bates Office Services Ltd,15/08/2022,RS143237,19.36,0.00,QCONNECT CLEAR GEL WRIST REST BLUE,Stationery,42200,
Wyre Council,http://opendatacommunities.org/doc/district-council/wyre,30/08/2022,Resources,Support Services,135B,Amazon Business,08/08/2022,RS143184,7.04,0.00,"12 Whiteboard Pens by SmartPanda � Dual Tip, Thin White Board Markers Erasable, Medium and Fine � Dry Erase Marker Pens, Colour Dry Wipe Markers for Kids - 12 Set Whiteboard Markers White Board Pens.",Stationery,42200,
Wyre Council,http://opendatacommunities.org/doc/district-council/wyre,30/08/2022,People and Places,Current Assets,130B,Standard Fuel Oils,30/08/2022,PE143442,51310.00,0.00,"CONFIRMATION ORDER FOR 35000 LITRES OF WHITE DIESEL  @ 1.4660 PPL 5/8/22 DELIVERED TO WYRE COUNCIL, COPSE ROAD DEPOT, COPSE ROAD, FLEETWOOD",Stock - Copse Road Fuel,01836,
Wyre Council,http://opendatacommunities.org/doc/district-council/wyre,30/08/2022,Resources,Current Assets,130B,Whistl Uk Limited,18/08/2022,RS143409,213.33,0.00,Annual postage charges 01/04/2022 - 31/03/2022,Stores Purchases,01823,
Wyre Council,http://opendatacommunities.org/doc/district-council/wyre,30/08/2022,Resources,Current Assets,130B,Whistl Uk Limited,09/08/2022,RS143240,649.52,0.00,Annual postage charges 01/04/2022 - 31/03/2022,Stores Purchases,01823,
Wyre Council,http://opendatacommunities.org/doc/district-council/wyre,30/08/2022,Resources,Current Assets,130B,Whistl Uk Limited,31/08/2022,RS143599,254.30,0.00,Annual postage charges 01/04/2022 - 31/03/2022,Stores Purchases,01823,
Wyre Council,http://opendatacommunities.org/doc/district-council/wyre,30/08/2022,Resources,Current Assets,130B,Whistl Uk Limited,03/08/2022,RS143112,781.46,0.00,Annual postage charges 01/04/2022 - 31/03/2022,Stores Purchases,01823,
Wyre Council,http://opendatacommunities.org/doc/district-council/wyre,30/08/2022,Resources,Current Assets,130B,Whistl Uk Limited,11/08/2022,RS143274,48.52,0.00,Annual postage charges 01/04/2022 - 31/03/2022,Stores Purchases,01823,
Wyre Council,http://opendatacommunities.org/doc/district-council/wyre,30/08/2022,Resources,Current Assets,130B,Preston City Council,02/08/2022,RS143084,907.38,0.00,"50,000 Wyre Council Letterheads.",Stores Purchases,01823,
Wyre Council,http://opendatacommunities.org/doc/district-council/wyre,30/08/2022,Resources,Current Assets,130B,Pitney Bowes LTD  Postage By Phone,24/08/2022,RS143527,1004.60,0.00,Meter Reset 04/07/2022,Stores Purchases,01823,
Wyre Council,http://opendatacommunities.org/doc/district-council/wyre,30/08/2022,People and Places,Environmental Services,132B,Key Engineering & Hygiene Supplies LTD,30/08/2022,PE143356,495.06,0.00,"Supply PPE as per quotation 14112 As per John   Delivery to Wyre Council, Copse Road Depot, Copse Road, Fleetwood, FY7 6RP.",Street Cleansing Projects,46849,
Wyre Council,http://opendatacommunities.org/doc/district-council/wyre,30/08/2022,People and Places,Environmental Services,132B,Key Engineering & Hygiene Supplies LTD,30/08/2022,PE143356,119.11,0.00,boots,Street Cleansing Projects,46849,
Wyre Council,http://opendatacommunities.org/doc/district-council/wyre,30/08/2022,People and Places,Cultural and Related Services,132A,WATER PLUS LTD,03/08/2022,PE142980,3.45,0.00,Water/Waste Water Charges,Surface Water/Highway Drainage,24003,
Wyre Council,http://opendatacommunities.org/doc/district-council/wyre,30/08/2022,People and Places,Cultural and Related Services,132A,WATER PLUS LTD,03/08/2022,PE142980,65.81,0.00,Water/Waste Water Charges,Surface Water/Highway Drainage,24003,
Wyre Council,http://opendatacommunities.org/doc/district-council/wyre,30/08/2022,People and Places,Cultural and Related Services,132A,WATER PLUS LTD,03/08/2022,PE142980,691.48,0.00,Water/Waste Water Charges,Surface Water/Highway Drainage,24003,
Wyre Council,http://opendatacommunities.org/doc/district-council/wyre,30/08/2022,People and Places,Cultural and Related Services,132A,WATER PLUS LTD,03/08/2022,PE142980,164.33,0.00,Water/Waste Water Charges,Surface Water/Highway Drainage,24003,
Wyre Council,http://opendatacommunities.org/doc/district-council/wyre,30/08/2022,People and Places,Environmental Services,132B,WATER PLUS LTD,03/08/2022,PE142980,18.54,0.00,Water/Waste Water Charges,Surface Water/Highway Drainage,24003,
Wyre Council,http://opendatacommunities.org/doc/district-council/wyre,30/08/2022,People and Places,Environmental Services,132B,WATER PLUS LTD,03/08/2022,PE142980,15.09,0.00,Water/Waste Water Charges,Surface Water/Highway Drainage,24003,
Wyre Council,http://opendatacommunities.org/doc/district-council/wyre,30/08/2022,People and Places,Environmental Services,132B,WATER PLUS LTD,03/08/2022,PE142980,149.24,0.00,Water/Waste Water Charges,Surface Water/Highway Drainage,24003,
Wyre Council,http://opendatacommunities.org/doc/district-council/wyre,30/08/2022,People and Places,Environmental Services,132B,WATER PLUS LTD,03/08/2022,PE142980,356.74,0.00,Water/Waste Water Charges,Surface Water/Highway Drainage,24003,
Wyre Council,http://opendatacommunities.org/doc/district-council/wyre,30/08/2022,People and Places,Support Services,135B,WATER PLUS LTD,03/08/2022,PE142980,3.45,0.00,Water/Waste Water Charges,Surface Water/Highway Drainage,24003,
Wyre Council,http://opendatacommunities.org/doc/district-council/wyre,30/08/2022,People and Places,Cultural and Related Services,132A,WATER PLUS LTD,03/08/2022,PE142980,3.45,0.00,Water/Waste Water Charges,Surface Water/Highway Drainage,24003,
Wyre Council,http://opendatacommunities.org/doc/district-council/wyre,30/08/2022,People and Places,Cultural and Related Services,132A,WATER PLUS LTD,03/08/2022,PE142980,15.09,0.00,Water/Waste Water Charges,Surface Water/Highway Drainage,24003,
Wyre Council,http://opendatacommunities.org/doc/district-council/wyre,30/08/2022,People and Places,Planning and Development Servs,132C,WATER PLUS LTD,03/08/2022,PE142980,11.64,0.00,Water/Waste Water Charges,Surface Water/Highway Drainage,24003,
Wyre Council,http://opendatacommunities.org/doc/district-council/wyre,30/08/2022,People and Places,Cultural and Related Services,132A,WATER PLUS LTD,03/08/2022,PE142980,15.09,0.00,Water/Waste Water Charges,Surface Water/Highway Drainage,24003,
Wyre Council,http://opendatacommunities.org/doc/district-council/wyre,30/08/2022,People and Places,Cultural and Related Services,132A,WATER PLUS LTD,03/08/2022,PE142980,75.08,0.00,Water/Waste Water Charges,Surface Water/Highway Drainage,24003,
Wyre Council,http://opendatacommunities.org/doc/district-council/wyre,30/08/2022,People and Places,Central Services to the Public,131C,WATER PLUS LTD,03/08/2022,PE142980,15.09,0.00,Water/Waste Water Charges,Surface Water/Highway Drainage,24003,
Wyre Council,http://opendatacommunities.org/doc/district-council/wyre,30/08/2022,People and Places,Cultural and Related Services,132A,WATER PLUS LTD,03/08/2022,PE142980,308.39,0.00,Water/Waste Water Charges,Surface Water/Highway Drainage,24003,
Wyre Council,http://opendatacommunities.org/doc/district-council/wyre,30/08/2022,People and Places,Cultural and Related Services,132A,WATER PLUS LTD,03/08/2022,PE142980,308.39,0.00,Water/Waste Water Charges,Surface Water/Highway Drainage,24003,
Wyre Council,http://opendatacommunities.org/doc/district-council/wyre,30/08/2022,People and Places,Planning and Development Servs,132C,WATER PLUS LTD,03/08/2022,PE142980,6.90,0.00,Water/Waste Water Charges,Surface Water/Highway Drainage,24003,
Wyre Council,http://opendatacommunities.org/doc/district-council/wyre,30/08/2022,People and Places,Planning and Development Servs,132C,WATER PLUS LTD,03/08/2022,PE142980,38.37,0.00,Water/Waste Water Charges,Surface Water/Highway Drainage,24003,
Wyre Council,http://opendatacommunities.org/doc/district-council/wyre,30/08/2022,People and Places,Cultural and Related Services,132A,WATER PLUS LTD,03/08/2022,PE142979,45.60,0.00,Water/Wastewater Charges,Surface Water/Highway Drainage,24003,
Wyre Council,http://opendatacommunities.org/doc/district-council/wyre,30/08/2022,People and Places,Cultural and Related Services,132A,WATER PLUS LTD,03/08/2022,PE142980,6.90,0.00,Water/Waste Water Charges,Surface Water/Highway Drainage,24003,
Wyre Council,http://opendatacommunities.org/doc/district-council/wyre,30/08/2022,People and Places,Cultural and Related Services,132A,WATER PLUS LTD,03/08/2022,PE142980,3.45,0.00,Water/Waste Water Charges,Surface Water/Highway Drainage,24003,
Wyre Council,http://opendatacommunities.org/doc/district-council/wyre,30/08/2022,People and Places,Cultural and Related Services,132A,WATER PLUS LTD,03/08/2022,PE142980,3.45,0.00,Water/Waste Water Charges,Surface Water/Highway Drainage,24003,
Wyre Council,http://opendatacommunities.org/doc/district-council/wyre,30/08/2022,People and Places,Environmental Services,132B,CTS Traffic And Transportation  LTD,16/08/2022,PE142876,6250.00,0.00,"Wyre Council unmet demand survey starting around March 2022. 12,500 + VAT",Taxi Unmet Demand Study,42614,
Wyre Council,http://opendatacommunities.org/doc/district-council/wyre,30/08/2022,People and Places,Environmental Services,132B,Lancaster Training Services LTD,31/08/2022,PE142761,155.00,0.00,DSA Test Fee,Technical Training,17010,
Wyre Council,http://opendatacommunities.org/doc/district-council/wyre,30/08/2022,People and Places,Environmental Services,132B,Lancaster Training Services LTD,31/08/2022,PE142761,1134.00,0.00,Class C Training - Simon Wilkinson 19.7.2022,Technical Training,17010,
Wyre Council,http://opendatacommunities.org/doc/district-council/wyre,30/08/2022,Resources,Support Services,135B,Mallard Consultancy LTD,18/08/2022,RS143416,999.00,0.00,Mallard Support Service Network Membership 1 July 2022 to 30 June 2023,Technical Training,17010,
Wyre Council,http://opendatacommunities.org/doc/district-council/wyre,30/08/2022,Resources,Support Services,135B,Daisy Communications LTD,03/08/2022,RS142976,1.95,0.00,Monthly Charges,Telephone - Buildings and Offices,43100,
Wyre Council,http://opendatacommunities.org/doc/district-council/wyre,30/08/2022,Resources,Planning and Development Servs,132C,Daisy Communications LTD,03/08/2022,RS142976,9.48,0.00,Monthly Charges,Telephone - Buildings and Offices,43100,
Wyre Council,http://opendatacommunities.org/doc/district-council/wyre,30/08/2022,Resources,Cultural and Related Services,132A,Daisy Communications LTD,03/08/2022,RS142976,18.96,0.00,Monthly Charges,Telephone - Buildings and Offices,43100,
Wyre Council,http://opendatacommunities.org/doc/district-council/wyre,30/08/2022,Resources,Cultural and Related Services,132A,Daisy Communications LTD,03/08/2022,RS142976,9.48,0.00,Monthly Charges,Telephone - Buildings and Offices,43100,
Wyre Council,http://opendatacommunities.org/doc/district-council/wyre,30/08/2022,Resources,Cultural and Related Services,132A,Daisy Communications LTD,03/08/2022,RS142976,58.94,0.00,Monthly Charges,Telephone - Buildings and Offices,43100,
Wyre Council,http://opendatacommunities.org/doc/district-council/wyre,30/08/2022,Resources,Cultural and Related Services,132A,Daisy Communications LTD,03/08/2022,RS142976,9.92,0.00,Monthly Charges,Telephone - Buildings and Offices,43100,
Wyre Council,http://opendatacommunities.org/doc/district-council/wyre,30/08/2022,Resources,Cultural and Related Services,132A,Daisy Communications LTD,03/08/2022,RS142976,9.48,0.00,Monthly Charges,Telephone - Buildings and Offices,43100,
Wyre Council,http://opendatacommunities.org/doc/district-council/wyre,30/08/2022,Resources,Cultural and Related Services,132A,Daisy Communications LTD,03/08/2022,RS142976,68.72,0.00,Monthly Charges,Telephone - Buildings and Offices,43100,
Wyre Council,http://opendatacommunities.org/doc/district-council/wyre,30/08/2022,Resources,Environmental Services,132B,Daisy Communications LTD,03/08/2022,RS142976,9.48,0.00,Monthly Charges,Telephone - Buildings and Offices,43100,
Wyre Council,http://opendatacommunities.org/doc/district-council/wyre,30/08/2022,Resources,Planning and Development Servs,132C,Daisy Communications LTD,03/08/2022,RS142976,0.46,0.00,Monthly Charges,Telephone - Buildings and Offices,43100,
Wyre Council,http://opendatacommunities.org/doc/district-council/wyre,30/08/2022,Resources,Cultural and Related Services,132A,Daisy Communications LTD,03/08/2022,RS142976,9.48,0.00,Monthly Charges,Telephone - Buildings and Offices,43100,
Wyre Council,http://opendatacommunities.org/doc/district-council/wyre,30/08/2022,Resources,Environmental Services,132B,Daisy Communications LTD,03/08/2022,RS142976,28.44,0.00,Monthly Charges,Telephone - Buildings and Offices,43100,
Wyre Council,http://opendatacommunities.org/doc/district-council/wyre,30/08/2022,Resources,Support Services,135B,Daisy Communications LTD,03/08/2022,RS142976,9.48,0.00,Monthly Charges,Telephone - Buildings and Offices,43100,
Wyre Council,http://opendatacommunities.org/doc/district-council/wyre,30/08/2022,Resources,Support Services,135B,Daisy Communications LTD,03/08/2022,RS142976,1871.20,0.00,Monthly Charges,Telephone - Buildings and Offices,43100,
Wyre Council,http://opendatacommunities.org/doc/district-council/wyre,30/08/2022,Resources,Planning and Development Servs,132C,Daisy Communications LTD,03/08/2022,RS142976,1.95,0.00,Monthly Charges,Telephone - Buildings and Offices,43100,
Wyre Council,http://opendatacommunities.org/doc/district-council/wyre,30/08/2022,Resources,Cultural and Related Services,132A,Daisy Communications LTD,03/08/2022,RS142976,53.94,0.00,Monthly Charges,Telephone - Buildings and Offices,43100,
Wyre Council,http://opendatacommunities.org/doc/district-council/wyre,30/08/2022,Resources,Support Services,135B,Daisy Communications LTD,03/08/2022,RS142976,29.47,0.00,Monthly Charges,Telephone - Buildings and Offices,43100,
Wyre Council,http://opendatacommunities.org/doc/district-council/wyre,30/08/2022,People and Places,Support Services,135B,Inskip with Sowerby Parish Council,31/08/2022,PE143623,600.00,0.00,Contributions towards 2022 `in Bloom`,Tourism Support,46500,
Wyre Council,http://opendatacommunities.org/doc/district-council/wyre,30/08/2022,People and Places,Support Services,135B,c. Kirkland Parish Council,03/08/2022,PE143117,600.00,0.00,Contributions towards 2022 `in Bloom`  Kirkland/Churchtown,Tourism Support,46500,
Wyre Council,http://opendatacommunities.org/doc/district-council/wyre,30/08/2022,People and Places,Support Services,135B,The County Tyre (Holdings) LTD,04/08/2022,PE143174,412.08,0.00,6 avon tyres,Tyres,30503,
Wyre Council,http://opendatacommunities.org/doc/district-council/wyre,30/08/2022,People and Places,Environmental Services,132B,M J Wilkinson,30/08/2022,PE143404,278.00,0.00,Hire of JCB Telehandler @ KnottEnd timesheet 10767 @ 208.00 Each way Transport @ 70,Vehicle Hire,32000,
Wyre Council,http://opendatacommunities.org/doc/district-council/wyre,30/08/2022,People and Places,Environmental Services,132B,M J Wilkinson,17/08/2022,PE143401,337.76,0.00,Hire of Hitachi ZX30 @ 337.76,Vehicle Hire,32000,
Wyre Council,http://opendatacommunities.org/doc/district-council/wyre,30/08/2022,People and Places,Environmental Services,132B,M J Wilkinson,17/08/2022,PE143401,152.08,0.00,Hire of Hitachi ZX19 @ 152.08,Vehicle Hire,32000,
Wyre Council,http://opendatacommunities.org/doc/district-council/wyre,30/08/2022,People and Places,Environmental Services,132B,M J Wilkinson,17/08/2022,PE143401,31.68,0.00,Hire of Breaker @ 31.68,Vehicle Hire,32000,
Wyre Council,http://opendatacommunities.org/doc/district-council/wyre,30/08/2022,People and Places,Environmental Services,132B,M J Wilkinson,17/08/2022,PE143400,781.07,0.00,"Hire of Hitachi ZX30 13/6/22 to 17/6/22, timesheet 10770 @ 781.07",Vehicle Hire,32000,
Wyre Council,http://opendatacommunities.org/doc/district-council/wyre,30/08/2022,People and Places,Environmental Services,132B,M J Wilkinson,17/08/2022,PE143398,473.12,0.00,Hire of Hitachi ZX130 Timesheet 107659/5/22 to 10/5/22@ 473.12,Vehicle Hire,32000,
Wyre Council,http://opendatacommunities.org/doc/district-council/wyre,30/08/2022,People and Places,Environmental Services,132B,M J Wilkinson,16/08/2022,PE143380,1075.07,0.00,Hire of JCB 714 Dump Truck timesheet 107643/5/22 to 6/5/22 @916.67 = each way transport @ 158.40 Invoice no: 34692,Vehicle Hire,32000,
Wyre Council,http://opendatacommunities.org/doc/district-council/wyre,30/08/2022,People and Places,Environmental Services,132B,M J Wilkinson,16/08/2022,PE143380,916.67,0.00,Hire of Hitachi ZX130 Timesheet 107633/5/22 to 6/5/22 @ 916.67,Vehicle Hire,32000,
Wyre Council,http://opendatacommunities.org/doc/district-council/wyre,30/08/2022,People and Places,Planning and Development Servs,132C,WATER PLUS LTD,03/08/2022,PE142980,1.65,0.00,Water/Waste Water Charges,Water Charges-Metered,24000,
Wyre Council,http://opendatacommunities.org/doc/district-council/wyre,30/08/2022,People and Places,Support Services,135B,WATER PLUS LTD,03/08/2022,PE142980,11.89,0.00,Water/Waste Water Charges,Water Charges-Metered,24000,
Wyre Council,http://opendatacommunities.org/doc/district-council/wyre,30/08/2022,People and Places,Support Services,135B,WATER PLUS LTD,03/08/2022,PE142980,9807.66,0.00,Water/Waste Water Charges,Water Charges-Metered,24000,
Wyre Council,http://opendatacommunities.org/doc/district-council/wyre,30/08/2022,People and Places,Planning and Development Servs,132C,WATER PLUS LTD,03/08/2022,PE142980,12.85,0.00,Water/Waste Water Charges,Water Charges-Metered,24000,
Wyre Council,http://opendatacommunities.org/doc/district-council/wyre,30/08/2022,People and Places,Planning and Development Servs,132C,WATER PLUS LTD,03/08/2022,PE142980,437.86,0.00,Water/Waste Water Charges,Water Charges-Metered,24000,
Wyre Council,http://opendatacommunities.org/doc/district-council/wyre,30/08/2022,People and Places,Environmental Services,132B,WATER PLUS LTD,03/08/2022,PE142980,727.14,0.00,Water/Waste Water Charges,Water Charges-Metered,24000,
Wyre Council,http://opendatacommunities.org/doc/district-council/wyre,30/08/2022,People and Places,Environmental Services,132B,WATER PLUS LTD,03/08/2022,PE142980,31.22,0.00,Water/Waste Water Charges,Water Charges-Metered,24000,
Wyre Council,http://opendatacommunities.org/doc/district-council/wyre,30/08/2022,People and Places,Cultural and Related Services,132A,WATER PLUS LTD,03/08/2022,PE142980,357.74,0.00,Water/Waste Water Charges,Water Charges-Metered,24000,
Wyre Council,http://opendatacommunities.org/doc/district-council/wyre,30/08/2022,People and Places,Cultural and Related Services,132A,WATER PLUS LTD,03/08/2022,PE142980,5.06,0.00,Water/Waste Water Charges,Water Charges-Metered,24000,
Wyre Council,http://opendatacommunities.org/doc/district-council/wyre,30/08/2022,People and Places,Central Services to the Public,131C,WATER PLUS LTD,03/08/2022,PE142980,74.99,0.00,Water/Waste Water Charges,Water Charges-Metered,24000,
Wyre Council,http://opendatacommunities.org/doc/district-council/wyre,30/08/2022,People and Places,Central Services to the Public,131C,WATER PLUS LTD,03/08/2022,PE142980,3.55,0.00,Water/Waste Water Charges,Water Charges-Metered,24000,
Wyre Council,http://opendatacommunities.org/doc/district-council/wyre,30/08/2022,People and Places,Cultural and Related Services,132A,WATER PLUS LTD,03/08/2022,PE142980,8.34,0.00,Water/Waste Water Charges,Water Charges-Metered,24000,
Wyre Council,http://opendatacommunities.org/doc/district-council/wyre,30/08/2022,People and Places,Cultural and Related Services,132A,WATER PLUS LTD,03/08/2022,PE142980,196.66,0.00,Water/Waste Water Charges,Water Charges-Metered,24000,
Wyre Council,http://opendatacommunities.org/doc/district-council/wyre,30/08/2022,People and Places,Cultural and Related Services,132A,WATER PLUS LTD,03/08/2022,PE142980,3.02,0.00,Water/Waste Water Charges,Water Charges-Metered,24000,
Wyre Council,http://opendatacommunities.org/doc/district-council/wyre,30/08/2022,People and Places,Cultural and Related Services,132A,WATER PLUS LTD,03/08/2022,PE142980,1.83,0.00,Water/Waste Water Charges,Water Charges-Metered,24000,
Wyre Council,http://opendatacommunities.org/doc/district-council/wyre,30/08/2022,People and Places,Cultural and Related Services,132A,WATER PLUS LTD,03/08/2022,PE142980,3.55,0.00,Water/Waste Water Charges,Water Charges-Metered,24000,
Wyre Council,http://opendatacommunities.org/doc/district-council/wyre,30/08/2022,People and Places,Cultural and Related Services,132A,WATER PLUS LTD,03/08/2022,PE142980,49.29,0.00,Water/Waste Water Charges,Water Charges-Metered,24000,
Wyre Council,http://opendatacommunities.org/doc/district-council/wyre,30/08/2022,People and Places,Cultural and Related Services,132A,WATER PLUS LTD,03/08/2022,PE142980,11.89,0.00,Water/Waste Water Charges,Water Charges-Metered,24000,
Wyre Council,http://opendatacommunities.org/doc/district-council/wyre,30/08/2022,People and Places,Cultural and Related Services,132A,WATER PLUS LTD,03/08/2022,PE142980,49.29,0.00,Water/Waste Water Charges,Water Charges-Metered,24000,
Wyre Council,http://opendatacommunities.org/doc/district-council/wyre,30/08/2022,People and Places,Environmental Services,132B,WATER PLUS LTD,03/08/2022,PE142980,26.60,0.00,Water/Waste Water Charges,Water Charges-Metered,24000,
Wyre Council,http://opendatacommunities.org/doc/district-council/wyre,30/08/2022,People and Places,Environmental Services,132B,WATER PLUS LTD,03/08/2022,PE142980,6.89,0.00,Water/Waste Water Charges,Water Charges-Metered,24000,
Wyre Council,http://opendatacommunities.org/doc/district-council/wyre,30/08/2022,People and Places,Environmental Services,132B,WATER PLUS LTD,03/08/2022,PE142980,1.65,0.00,Water/Waste Water Charges,Water Charges-Metered,24000,
Wyre Council,http://opendatacommunities.org/doc/district-council/wyre,30/08/2022,People and Places,Environmental Services,132B,WATER PLUS LTD,03/08/2022,PE142980,4.73,0.00,Water/Waste Water Charges,Water Charges-Metered,24000,
Wyre Council,http://opendatacommunities.org/doc/district-council/wyre,30/08/2022,People and Places,Environmental Services,132B,WATER PLUS LTD,03/08/2022,PE142980,16.73,0.00,Water/Waste Water Charges,Water Charges-Metered,24000,
Wyre Council,http://opendatacommunities.org/doc/district-council/wyre,30/08/2022,People and Places,Environmental Services,132B,WATER PLUS LTD,03/08/2022,PE142980,1.83,0.00,Water/Waste Water Charges,Water Charges-Metered,24000,
Wyre Council,http://opendatacommunities.org/doc/district-council/wyre,30/08/2022,People and Places,Environmental Services,132B,WATER PLUS LTD,03/08/2022,PE142980,1.65,0.00,Water/Waste Water Charges,Water Charges-Metered,24000,
Wyre Council,http://opendatacommunities.org/doc/district-council/wyre,30/08/2022,People and Places,Environmental Services,132B,WATER PLUS LTD,03/08/2022,PE142980,8.16,0.00,Water/Waste Water Charges,Water Charges-Metered,24000,
Wyre Council,http://opendatacommunities.org/doc/district-council/wyre,30/08/2022,People and Places,Planning and Development Servs,132C,WATER PLUS LTD,03/08/2022,PE142980,3.02,0.00,Water/Waste Water Charges,Water Charges-Metered,24000,
Wyre Council,http://opendatacommunities.org/doc/district-council/wyre,30/08/2022,People and Places,Cultural and Related Services,132A,WATER PLUS LTD,03/08/2022,PE142980,76.70,0.00,Water/Waste Water Charges,Water Charges-Metered,24000,
Wyre Council,http://opendatacommunities.org/doc/district-council/wyre,30/08/2022,People and Places,Cultural and Related Services,132A,WATER PLUS LTD,03/08/2022,PE142980,3.55,0.00,Water/Waste Water Charges,Water Charges-Metered,24000,
Wyre Council,http://opendatacommunities.org/doc/district-council/wyre,30/08/2022,People and Places,Cultural and Related Services,132A,WATER PLUS LTD,03/08/2022,PE142980,7.79,0.00,Water/Waste Water Charges,Water Charges-Metered,24000,
Wyre Council,http://opendatacommunities.org/doc/district-council/wyre,30/08/2022,People and Places,Cultural and Related Services,132A,WATER PLUS LTD,03/08/2022,PE142980,81.85,0.00,Water/Waste Water Charges,Water Charges-Metered,24000,
Wyre Council,http://opendatacommunities.org/doc/district-council/wyre,30/08/2022,People and Places,Cultural and Related Services,132A,WATER PLUS LTD,03/08/2022,PE142980,18.08,0.00,Water/Waste Water Charges,Water Charges-Metered,24000,
Wyre Council,http://opendatacommunities.org/doc/district-council/wyre,30/08/2022,People and Places,Cultural and Related Services,132A,WATER PLUS LTD,03/08/2022,PE142980,16.82,0.00,Water/Waste Water Charges,Water Charges-Metered,24000,
Wyre Council,http://opendatacommunities.org/doc/district-council/wyre,30/08/2022,People and Places,Cultural and Related Services,132A,WATER PLUS LTD,03/08/2022,PE142980,6.45,0.00,Water/Waste Water Charges,Water Charges-Metered,24000,
Wyre Council,http://opendatacommunities.org/doc/district-council/wyre,30/08/2022,People and Places,Cultural and Related Services,132A,WATER PLUS LTD,03/08/2022,PE142980,1.65,0.00,Water/Waste Water Charges,Water Charges-Metered,24000,
Wyre Council,http://opendatacommunities.org/doc/district-council/wyre,30/08/2022,People and Places,Cultural and Related Services,132A,WATER PLUS LTD,03/08/2022,PE142980,3.72,0.00,Water/Waste Water Charges,Water Charges-Metered,24000,
